Workbook

Sheet Main
B10: 2019-12-02
B12: Sheet No. | C12: Template Name | D12: Summary
B13: 1 | C13: Future Intra | D13: For Intraday trading in F&O segment
B14: 2 | C14: Cash Intra | D14: For Intraday trading in cash market segment
B15: 3 | C15: Mid-cap Intra | D15: For Intraday trading in Mid-cap stocks
B16: 4 | C16: Bulk Deals | D16: Reveals Bulk Deals carried on NSE & BSE
B17: 5 | C17: Call Tracker
K27: `

Sheet Future Intra
M5: Back to Main Page
A6: FOR INTRA DAY TRADING | L6: =Main!B10 -> 2019-12-02
A9: Sr.no | B9: Sector | C9: Scrip | D9: CLOSE RATE | E9: Pivot Point | F9: Supports | I9: Resistances
B10: Sector | D10: Point | E10: Point | F10: S1 | G10: S2 | H10: S3 | I10: R1 | J10: R2 | K10: R3 | L10: HIGH | M10: LOW | N10: OI | O10: % Change in OI
A11: 1 | B11: Index | C11: BANKNIFTY | D11: 32003.85 | E11: 31990.62 | F11: 31833.23 | G11: 31662.62 | H11: 31505.23 | I11: 32161.23 | J11: 32318.62 | K11: 32489.23 | L11: 32148 | M11: 31820 | N11: 1731060 | O11: -8.64%
A12: 2 | B12: Index | C12: NIFTY | D12: 12099.85 | E12: 12108.58 | F12: 12042.27 | G12: 11984.68 | H12: 11918.37 | I12: 12166.17 | J12: 12232.48 | K12: 12290.07 | L12: 12174.9 | M12: 12051 | N12: 14175675 | O12: -3.54%
A13: 3 | B13: Index | C13: NIFTYIT | D13: 15124.00 | E13: 15161.33 | F13: 15072.67 | G13: 15021.33 | H13: 14932.67 | I13: 15212.67 | J13: 15301.33 | K13: 15352.67 | L13: 15250 | M13: 15110 | N13: 10100 | O13: 9.19%
A14: 4 | B14: Cement | C14: ACC | D14: 1526.20 | E14: 1527.63 | F14: 1514.32 | G14: 1502.43 | H14: 1489.12 | I14: 1539.52 | J14: 1552.83 | K14: 1564.72 | L14: 1540.95 | M14: 1515.75 | N14: 3223600 | O14: -1.49%
A15: 5 | B15: Others | C15: ADANIENT | D15: 215.05 | E15: 216.67 | F15: 210.98 | G15: 206.92 | H15: 201.23 | I15: 220.73 | J15: 226.42 | K15: 230.48 | L15: 222.35 | M15: 212.6 | N15: 29512000 | O15: 1.29%
A16: 6 | B16: Others | C16: ADANIPORTS | D16: 384.25 | E16: 381.40 | F16: 375.30 | G16: 366.35 | H16: 360.25 | I16: 390.35 | J16: 396.45 | K16: 405.40 | L16: 387.5 | M16: 372.45 | N16: 34180000 | O16: 64.39%
A17: 7 | B17: Power | C17: ADANIPOWER | D17: 63.65 | E17: 64.00 | F17: 61.25 | G17: 58.85 | H17: 56.10 | I17: 66.40 | J17: 69.15 | K17: 71.55 | L17: 66.75 | M17: 61.6 | N17: 75790000 | O17: -1.01%
A18: 8 | B18: Automobile | C18: AMARAJABAT | D18: 752.90 | E18: 752.20 | F18: 746.60 | G18: 740.30 | H18: 734.70 | I18: 758.50 | J18: 764.10 | K18: 770.40 | L18: 757.8 | M18: 745.9 | N18: 1379400 | O18: -2.86%
A19: 9 | B19: Cement | C19: AMBUJACEM | D19: 205.60 | E19: 206.57 | F19: 204.03 | G19: 202.47 | H19: 199.93 | I19: 208.13 | J19: 210.67 | K19: 212.23 | L19: 209.1 | M19: 205 | N19: 17562500 | O19: 1.18%
A20: 10 | B20: Others | C20: APOLLOHOSP | D20: 1446.40 | E20: 1451.52 | F20: 1432.98 | G20: 1419.57 | H20: 1401.03 | I20: 1464.93 | J20: 1483.47 | K20: 1496.88 | L20: 1470.05 | M20: 1438.1 | N20: 1407500 | O20: -0.07%
A21: 11 | B21: Automobile | C21: APOLLOTYRE | D21: 167.75 | E21: 169.23 | F21: 165.27 | G21: 162.78 | H21: 158.82 | I21: 171.72 | J21: 175.68 | K21: 178.17 | L21: 173.2 | M21: 166.75 | N21: 8532000 | O21: -1.04%
A22: 12 | B22: Automobile | C22: ASHOKLEY | D22: 79.00 | E22: 79.82 | F22: 77.43 | G22: 75.87 | H22: 73.48 | I22: 81.38 | J22: 83.77 | K22: 85.33 | L22: 82.2 | M22: 78.25 | N22: 62236000 | O22: 2.39%
A23: 13 | B23: FMCG | C23: ASIANPAINT | D23: 1711.35 | E23: 1706.83 | F23: 1690.67 | G23: 1669.98 | H23: 1653.82 | I23: 1727.52 | J23: 1743.68 | K23: 1764.37 | L23: 1723 | M23: 1686.15 | N23: 9644400 | O23: 1.73%
A24: 14 | B24: Pharma | C24: AUROPHARMA | D24: 451.75 | E24: 453.60 | F24: 444.50 | G24: 437.25 | H24: 428.15 | I24: 460.85 | J24: 469.95 | K24: 477.20 | L24: 462.7 | M24: 446.35 | N24: 16084000 | O24: -0.95%
A25: 15 | B25: Banking | C25: AXISBANK | D25: 742.75 | E25: 747.18 | F25: 736.27 | G25: 729.78 | H25: 718.87 | I25: 753.67 | J25: 764.58 | K25: 771.07 | L25: 758.1 | M25: 740.7 | N25: 56808000 | O25: 4.02%
A26: 16 | B26: Automobile | C26: BAJAJ-AUTO | D26: 3191.70 | E26: 3187.68 | F26: 3162.02 | G26: 3132.33 | H26: 3106.67 | I26: 3217.37 | J26: 3243.03 | K26: 3272.72 | L26: 3213.35 | M26: 3158 | N26: 2210750 | O26: -0.48%
A27: 17 | B27: Finance | C27: BAJAJFINSV | D27: 9155.60 | E27: 9182.00 | F27: 9099.05 | G27: 9042.50 | H27: 8959.55 | I27: 9238.55 | J27: 9321.50 | K27: 9378.05 | L27: 9264.95 | M27: 9125.45 | N27: 1336625 | O27: -0.18%
A28: 18 | B28: Finance | C28: BAJFINANCE | D28: 4094.85 | E28: 4110.87 | F28: 4066.98 | G28: 4039.12 | H28: 3995.23 | I28: 4138.73 | J28: 4182.62 | K28: 4210.48 | L28: 4154.75 | M28: 4083 | N28: 7868500 | O28: 1.63%
A29: 19 | B29: Automobile | C29: BALKRISIND | D29: 922.00 | E29: 919.38 | F29: 911.67 | G29: 901.33 | H29: 893.62 | I29: 929.72 | J29: 937.43 | K29: 947.77 | L29: 927.1 | M29: 909.05 | N29: 1734400 | O29: -5.82%
A30: 20 | B30: Banking | C30: BANKBARODA | D30: 105.25 | E30: 106.18 | F30: 103.67 | G30: 102.08 | H30: 99.57 | I30: 107.77 | J30: 110.28 | K30: 111.87 | L30: 108.7 | M30: 104.6 | N30: 65852100 | O30: -9.89%
A31: 21 | B31: FMCG | C31: BATAINDIA | D31: 1636.45 | E31: 1638.55 | F31: 1625.65 | G31: 1614.85 | H31: 1601.95 | I31: 1649.35 | J31: 1662.25 | K31: 1673.05 | L31: 1651.45 | M31: 1627.75 | N31: 2145000 | O31: 1.14%
A32: 22 | B32: Capital_Goods | C32: BEL | D32: 103.50 | E32: 104.07 | F32: 102.68 | G32: 101.87 | H32: 100.48 | I32: 104.88 | J32: 106.27 | K32: 107.08 | L32: 105.45 | M32: 103.25 | N32: 29094000 | O32: 1.91%
A33: 23 | B33: FMCG | C33: BERGEPAINT | D33: 468.20 | E33: 466.82 | F33: 462.08 | G33: 455.97 | H33: 451.23 | I33: 472.93 | J33: 477.67 | K33: 483.78 | L33: 471.55 | M33: 460.7 | N33: 9928600 | O33: -1.91%
A34: 24 | B34: Automobile | C34: BHARATFORG | D34: 465.30 | E34: 465.17 | F34: 460.63 | G34: 455.97 | H34: 451.43 | I34: 469.83 | J34: 474.37 | K34: 479.03 | L34: 469.7 | M34: 460.5 | N34: 8490400 | O34: -0.87%
A35: 25 | B35: Telecom | C35: BHARTIARTL | D35: 444.40 | E35: 444.10 | F35: 437.15 | G35: 429.90 | H35: 422.95 | I35: 451.35 | J35: 458.30 | K35: 465.55 | L35: 451.05 | M35: 436.85 | N35: 41256939 | O35: 0.47%
A36: 26 | B36: Capital_Goods | C36: BHEL | D36: 53.50 | E36: 53.95 | F36: 52.70 | G36: 51.90 | H36: 50.65 | I36: 54.75 | J36: 56.00 | K36: 56.80 | L36: 55.2 | M36: 53.15 | N36: 40662200 | O36: 0.42%
A37: 27 | B37: Pharma | C37: BIOCON | D37: 282.15 | E37: 283.05 | F37: 279.10 | G37: 276.05 | H37: 272.10 | I37: 286.10 | J37: 290.05 | K37: 293.10 | L37: 287 | M37: 280 | N37: 9129600 | O37: 1.56%
A38: 28 | B38: Automobile | C38: BOSCHLTD | D38: 16225.45 | E38: 16232.27 | F38: 16031.53 | G38: 15837.62 | H38: 15636.88 | I38: 16426.18 | J38: 16626.92 | K38: 16820.83 | L38: 16433 | M38: 16038.35 | N38: 135780 | O38: 0.30%
A39: 29 | B39: Oil_Gas | C39: BPCL | D39: 513.80 | E39: 513.32 | F39: 507.13 | G39: 500.47 | H39: 494.28 | I39: 519.98 | J39: 526.17 | K39: 532.83 | L39: 519.5 | M39: 506.65 | N39: 26359200 | O39: 1.26%
A40: 30 | B40: FMCG | C40: BRITANNIA | D40: 3067.50 | E40: 3077.38 | F40: 3046.72 | G40: 3025.93 | H40: 2995.27 | I40: 3098.17 | J40: 3128.83 | K40: 3149.62 | L40: 3108.05 | M40: 3056.6 | N40: 2014200 | O40: 1.97%
A41: 31 | B41: Pharma | C41: CADILAHC | D41: 255.60 | E41: 258.67 | F41: 250.53 | G41: 245.47 | H41: 237.33 | I41: 263.73 | J41: 271.87 | K41: 276.93 | L41: 266.8 | M41: 253.6 | N41: 8715400 | O41: 9.59%
A42: 32 | B42: Banking | C42: CANBK | D42: 227.70 | E42: 229.90 | F42: 224.40 | G42: 221.10 | H42: 215.60 | I42: 233.20 | J42: 238.70 | K42: 242.00 | L42: 235.4 | M42: 226.6 | N42: 11620400 | O42: -7.71%
A43: 33 | B43: Oil_Gas | C43: CASTROLIND | D43: 141.50 | E43: 142.03 | F43: 139.92 | G43: 138.33 | H43: 136.22 | I43: 143.62 | J43: 145.73 | K43: 147.32 | L43: 144.15 | M43: 140.45 | N43: 5961200 | O43: -2.14%
A44: 34 | B44: Textile | C44: CENTURYTEX | D44: 465.05 | E44: 467.42 | F44: 456.18 | G44: 447.32 | H44: 436.08 | I44: 476.28 | J44: 487.52 | K44: 496.38 | L44: 478.65 | M44: 458.55 | N44: 3408000 | O44: 1.28%
A45: 35 | B45: Power | C45: CESC | D45: 754.45 | E45: 757.32 | F45: 747.13 | G45: 739.82 | H45: 729.63 | I45: 764.63 | J45: 774.82 | K45: 782.13 | L45: 767.5 | M45: 750 | N45: 1150400 | O45: -2.57%
A46: 36 | B46: Finance | C46: CHOLAFIN | D46: 313.20 | E46: 314.83 | F46: 310.27 | G46: 307.33 | H46: 302.77 | I46: 317.77 | J46: 322.33 | K46: 325.27 | L46: 319.4 | M46: 311.9 | N46: 3312500 | O46: -1.41%
A47: 37 | B47: Pharma | C47: CIPLA | D47: 468.25 | E47: 470.03 | F47: 465.12 | G47: 461.98 | H47: 457.07 | I47: 473.17 | J47: 478.08 | K47: 481.22 | L47: 474.95 | M47: 466.9 | N47: 12860900 | O47: -0.77%
A48: 38 | B48: Others | C48: COALINDIA | D48: 203.35 | E48: 204.55 | F48: 201.40 | G48: 199.45 | H48: 196.30 | I48: 206.50 | J48: 209.65 | K48: 211.60 | L48: 207.7 | M48: 202.6 | N48: 13248900 | O48: -0.27%
A49: 39 | B49: FMCG | C49: COLPAL | D49: 1476.50 | E49: 1475.33 | F49: 1459.67 | G49: 1442.83 | H49: 1427.17 | I49: 1492.17 | J49: 1507.83 | K49: 1524.67 | L49: 1491 | M49: 1458.5 | N49: 2401000 | O49: -2.86%
A50: 40 | B50: Others | C50: CONCOR | D50: 580.25 | E50: 572.37 | F50: 562.73 | G50: 545.22 | H50: 535.58 | I50: 589.88 | J50: 599.52 | K50: 617.03 | L50: 582 | M50: 554.85 | N50: 6933468 | O50: -2.89%
A51: 41 | B51: Capital_Goods | C51: CUMMINSIND | D51: 543.10 | E51: 545.07 | F51: 536.23 | G51: 529.37 | H51: 520.53 | I51: 551.93 | J51: 560.77 | K51: 567.63 | L51: 553.9 | M51: 538.2 | N51: 1856400 | O51: -0.80%
A52: 42 | B52: FMCG | C52: DABUR | D52: 460.65 | E52: 462.63 | F52: 457.27 | G52: 453.88 | H52: 448.52 | I52: 466.02 | J52: 471.38 | K52: 474.77 | L52: 468 | M52: 459.25 | N52: 11528750 | O52: 6.30%
A53: 43 | B53: Media | C53: DISHTV | D53: 12.70 | E53: 13.28 | F53: 10.82 | G53: 8.93 | H53: 6.47 | I53: 15.17 | J53: 17.63 | K53: 19.52 | L53: 15.75 | M53: 11.4 | N53: 97676900 | O53: -3.68%
A54: 44 | B54: Pharma | C54: DIVISLAB | D54: 1795.35 | E54: 1798.12 | F54: 1786.33 | G54: 1777.32 | H54: 1765.53 | I54: 1807.13 | J54: 1818.92 | K54: 1827.93 | L54: 1809.9 | M54: 1789.1 | N54: 2430400 | O54: 0.86%
A55: 45 | B55: Realty | C55: DLF | D55: 220.85 | E55: 220.52 | F55: 215.63 | G55: 210.42 | H55: 205.53 | I55: 225.73 | J55: 230.62 | K55: 235.83 | L55: 225.4 | M55: 215.3 | N55: 36615700 | O55: 2.35%
A56: 46 | B56: Pharma | C56: DRREDDY | D56: 2928.40 | E56: 2939.92 | F56: 2897.48 | G56: 2866.57 | H56: 2824.13 | I56: 2970.83 | J56: 3013.27 | K56: 3044.18 | L56: 2982.35 | M56: 2909 | N56: 3193250 | O56: 2.95%
A57: 47 | B57: Automobile | C57: EICHERMOT | D57: 23003.80 | E57: 22959.13 | F57: 22804.67 | G57: 22605.53 | H57: 22451.07 | I57: 23158.27 | J57: 23312.73 | K57: 23511.87 | L57: 23113.6 | M57: 22760 | N57: 282555 | O57: -1.04%
A58: 48 | B58: Finance | C58: EQUITAS | D58: 106.20 | E58: 106.00 | F58: 101.20 | G58: 96.20 | H58: 91.40 | I58: 111.00 | J58: 115.80 | K58: 120.80 | L58: 110.8 | M58: 101 | N58: 10538900 | O58: -5.63%
A59: 49 | B59: Automobile | C59: ESCORTS | D59: 636.60 | E59: 641.07 | F59: 627.48 | G59: 618.37 | H59: 604.78 | I59: 650.18 | J59: 663.77 | K59: 672.88 | L59: 654.65 | M59: 631.95 | N59: 4892800 | O59: 2.58%
A60: 50 | B60: Automobile | C60: EXIDEIND | D60: 195.30 | E60: 194.93 | F60: 193.52 | G60: 191.73 | H60: 190.32 | I60: 196.72 | J60: 198.13 | K60: 199.92 | L60: 196.35 | M60: 193.15 | N60: 8668200 | O60: -7.25%
A61: 51 | B61: Banking | C61: FEDERALBNK | D61: 89.35 | E61: 90.18 | F61: 88.32 | G61: 87.28 | H61: 85.42 | I61: 91.22 | J61: 93.08 | K61: 94.12 | L61: 92.05 | M61: 89.15 | N61: 58828000 | O61: 0.27%
A62: 52 | B62: Oil_Gas | C62: GAIL | D62: 126.25 | E62: 126.92 | F62: 124.83 | G62: 123.42 | H62: 121.33 | I62: 128.33 | J62: 130.42 | K62: 131.83 | L62: 129 | M62: 125.5 | N62: 53489352 | O62: 1.21%
A63: 53 | B63: Pharma | C63: GLENMARK | D63: 338.45 | E63: 341.93 | F63: 333.37 | G63: 328.28 | H63: 319.72 | I63: 347.02 | J63: 355.58 | K63: 360.67 | L63: 350.5 | M63: 336.85 | N63: 6910800 | O63: -1.38%
A64: 54 | B64: Infrastructure | C64: GMRINFRA | D64: 22.00 | E64: 22.08 | F64: 21.57 | G64: 21.13 | H64: 20.62 | I64: 22.52 | J64: 23.03 | K64: 23.47 | L64: 22.6 | M64: 21.65 | N64: 158715000 | O64: 1.61%
A65: 55 | B65: FMCG | C65: GODREJCP | D65: 726.50 | E65: 723.77 | F65: 719.23 | G65: 711.97 | H65: 707.43 | I65: 731.03 | J65: 735.57 | K65: 742.83 | L65: 728.3 | M65: 716.5 | N65: 4014400 | O65: 0.08%
A66: 56 | B66: Cement | C66: GRASIM | D66: 791.25 | E66: 797.28 | F66: 782.07 | G66: 772.88 | H66: 757.67 | I66: 806.47 | J66: 821.68 | K66: 830.87 | L66: 812.5 | M66: 788.1 | N66: 21102750 | O66: 0.87%
A67: 57 | B67: Others | C67: HAVELLS | D67: 670.35 | E67: 670.90 | F67: 662.85 | G67: 655.35 | H67: 647.30 | I67: 678.40 | J67: 686.45 | K67: 693.95 | L67: 678.95 | M67: 663.4 | N67: 5207000 | O67: 1.84%
A68: 58 | B68: Technology | C68: HCLTECH | D68: 1130.80 | E68: 1132.53 | F68: 1126.72 | G68: 1122.63 | H68: 1116.82 | I68: 1136.62 | J68: 1142.43 | K68: 1146.52 | L68: 1138.35 | M68: 1128.45 | N68: 11739700 | O68: 1.30%
A69: 59 | B69: Finance | C69: HDFC | D69: 2308.50 | E69: 2307.87 | F69: 2291.18 | G69: 2273.87 | H69: 2257.18 | I69: 2325.18 | J69: 2341.87 | K69: 2359.18 | L69: 2324.55 | M69: 2290.55 | N69: 33502000 | O69: 0.56%
A70: 60 | B70: Banking | C70: HDFCBANK | D70: 1277.40 | E70: 1272.05 | F70: 1261.95 | G70: 1246.50 | H70: 1236.40 | I70: 1287.50 | J70: 1297.60 | K70: 1313.05 | L70: 1282.15 | M70: 1256.6 | N70: 25457000 | O70: 0.35%
A71: 61 | B71: Automobile | C71: HEROMOTOCO | D71: 2441.40 | E71: 2451.55 | F71: 2415.15 | G71: 2388.90 | H71: 2352.50 | I71: 2477.80 | J71: 2514.20 | K71: 2540.45 | L71: 2487.95 | M71: 2425.3 | N71: 3821200 | O71: 1.67%
A72: 62 | B72: Technology | C72: HEXAWARE | D72: 339.85 | E72: 341.87 | F72: 336.68 | G72: 333.52 | H72: 328.33 | I72: 345.03 | J72: 350.22 | K72: 353.38 | L72: 347.05 | M72: 338.7 | N72: 1159500 | O72: -5.27%
A73: 63 | B73: Metals | C73: HINDALCO | D73: 200.65 | E73: 201.15 | F73: 196.95 | G73: 193.25 | H73: 189.05 | I73: 204.85 | J73: 209.05 | K73: 212.75 | L73: 205.35 | M73: 197.45 | N73: 29060500 | O73: -2.27%
A74: 64 | B74: Oil_Gas | C74: HINDPETRO | D74: 283.45 | E74: 286.07 | F74: 278.98 | G74: 274.52 | H74: 267.43 | I74: 290.53 | J74: 297.62 | K74: 302.08 | L74: 293.15 | M74: 281.6 | N74: 22600200 | O74: 3.72%
A75: 65 | B75: FMCG | C75: HINDUNILVR | D75: 2045.60 | E75: 2056.42 | F75: 2026.73 | G75: 2007.87 | H75: 1978.18 | I75: 2075.28 | J75: 2104.97 | K75: 2123.83 | L75: 2086.1 | M75: 2037.55 | N75: 8647500 | O75: 0.51%
A76: 66 | B76: Finance | C76: IBULHSGFIN | D76: 286.15 | E76: 311.50 | F76: 250.15 | G76: 214.15 | H76: 152.80 | I76: 347.50 | J76: 408.85 | K76: 444.85 | L76: 372.85 | M76: 275.5 | N76: 24566800 | O76: -12.96%
A77: 67 | B77: Banking | C77: ICICIBANK | D77: 513.80 | E77: 513.95 | F77: 511.15 | G77: 508.50 | H77: 505.70 | I77: 516.60 | J77: 519.40 | K77: 522.05 | L77: 516.75 | M77: 511.3 | N77: 112066625 | O77: -1.15%
A78: 68 | B78: Finance | C78: ICICIPRULI | D78: 504.00 | E78: 503.63 | F78: 499.67 | G78: 495.33 | H78: 491.37 | I78: 507.97 | J78: 511.93 | K78: 516.27 | L78: 507.6 | M78: 499.3 | N78: 10057500 | O78: 2.92%
A79: 69 | B79: Telecom | C79: IDEA | D79: 6.90 | E79: 6.95 | F79: 6.65 | G79: 6.40 | H79: 6.10 | I79: 7.20 | J79: 7.50 | K79: 7.75 | L79: 7.25 | M79: 6.7 | N79: 545412000 | O79: -4.76%
A80: 70 | B80: Banking | C80: IDFCFIRSTB | D80: 46.95 | E80: 46.30 | F80: 44.65 | G80: 42.35 | H80: 40.70 | I80: 48.60 | J80: 50.25 | K80: 52.55 | L80: 47.95 | M80: 44 | N80: 213588000 | O80: 2.75%
A81: 71 | B81: Oil_Gas | C81: IGL | D81: 415.05 | E81: 415.38 | F81: 411.47 | G81: 407.88 | H81: 403.97 | I81: 418.97 | J81: 422.88 | K81: 426.47 | L81: 419.3 | M81: 411.8 | N81: 5175500 | O81: -1.41%
A82: 72 | B82: Others | C82: INDIGO | D82: 1447.15 | E82: 1449.30 | F82: 1421.35 | G82: 1395.55 | H82: 1367.60 | I82: 1475.10 | J82: 1503.05 | K82: 1528.85 | L82: 1477.25 | M82: 1423.5 | N82: 2834400 | O82: 0.13%
A83: 73 | B83: Banking | C83: INDUSINDBK | D83: 1570.55 | E83: 1569.98 | F83: 1555.57 | G83: 1540.58 | H83: 1526.17 | I83: 1584.97 | J83: 1599.38 | K83: 1614.37 | L83: 1584.4 | M83: 1555 | N83: 10224000 | O83: 3.48%
A84: 74 | B84: Telecom | C84: INFRATEL | D84: 263.00 | E84: 254.27 | F84: 242.98 | G84: 222.97 | H84: 211.68 | I84: 274.28 | J84: 285.57 | K84: 305.58 | L84: 265.55 | M84: 234.25 | N84: 15132000 | O84: 11.97%
A85: 75 | B85: Technology | C85: INFY | D85: 699.50 | E85: 699.77 | F85: 694.73 | G85: 689.97 | H85: 684.93 | I85: 704.53 | J85: 709.57 | K85: 714.33 | L85: 704.8 | M85: 695 | N85: 51859200 | O85: 1.16%
A86: 76 | B86: Oil_Gas | C86: IOC | D86: 128.70 | E86: 129.67 | F86: 127.43 | G86: 126.17 | H86: 123.93 | I86: 130.93 | J86: 133.17 | K86: 134.43 | L86: 131.9 | M86: 128.4 | N86: 30449000 | O86: 3.52%
A87: 77 | B87: FMCG | C87: ITC | D87: 247.15 | E87: 247.08 | F87: 245.87 | G87: 244.58 | H87: 243.37 | I87: 248.37 | J87: 249.58 | K87: 250.87 | L87: 248.3 | M87: 245.8 | N87: 112310400 | O87: 0.72%
A88: 78 | B88: Metals | C88: JINDALSTEL | D88: 161.70 | E88: 161.77 | F88: 158.43 | G88: 155.17 | H88: 151.83 | I88: 165.03 | J88: 168.37 | K88: 171.63 | L88: 165.1 | M88: 158.5 | N88: 36162600 | O88: -3.79%
A89: 79 | B89: Metals | C89: JSWSTEEL | D89: 262.20 | E89: 264.25 | F89: 258.45 | G89: 254.70 | H89: 248.90 | I89: 268.00 | J89: 273.80 | K89: 277.55 | L89: 270.05 | M89: 260.5 | N89: 48742300 | O89: -1.01%
A90: 80 | B90: Others | C90: JUBLFOOD | D90: 1612.85 | E90: 1606.63 | F90: 1583.27 | G90: 1553.68 | H90: 1530.32 | I90: 1636.22 | J90: 1659.58 | K90: 1689.17 | L90: 1630 | M90: 1577.05 | N90: 2001000 | O90: -2.32%
A91: 81 | B91: Others | C91: JUSTDIAL | D91: 567.80 | E91: 568.23 | F91: 560.62 | G91: 553.43 | H91: 545.82 | I91: 575.42 | J91: 583.03 | K91: 590.22 | L91: 575.85 | M91: 561.05 | N91: 2237200 | O91: 1.59%
A92: 82 | B92: Banking | C92: KOTAKBANK | D92: 1616.45 | E92: 1611.75 | F92: 1600.80 | G92: 1585.15 | H92: 1574.20 | I92: 1627.40 | J92: 1638.35 | K92: 1654.00 | L92: 1622.7 | M92: 1596.1 | N92: 7564400 | O92: -0.95%
A93: 83 | B93: Finance | C93: L&TFH | D93: 120.35 | E93: 119.98 | F93: 116.52 | G93: 112.68 | H93: 109.22 | I93: 123.82 | J93: 127.28 | K93: 131.12 | L93: 123.45 | M93: 116.15 | N93: 23136300 | O93: -10.62%
A94: 84 | B94: Finance | C94: LICHSGFIN | D94: 465.55 | E94: 471.15 | F94: 457.50 | G94: 449.45 | H94: 435.80 | I94: 479.20 | J94: 492.85 | K94: 500.90 | L94: 484.8 | M94: 463.1 | N94: 9498100 | O94: 0.86%
A95: 85 | B95: Capital_Goods | C95: LT | D95: 1336.80 | E95: 1341.12 | F95: 1327.78 | G95: 1318.77 | H95: 1305.43 | I95: 1350.13 | J95: 1363.47 | K95: 1372.48 | L95: 1354.45 | M95: 1332.1 | N95: 15878625 | O95: -0.04%
A96: 86 | B96: Pharma | C96: LUPIN | D96: 803.45 | E96: 806.68 | F96: 795.42 | G96: 787.38 | H96: 776.12 | I96: 814.72 | J96: 825.98 | K96: 834.02 | L96: 817.95 | M96: 798.65 | N96: 7886200 | O96: 0.16%
A97: 87 | B97: Automobile | C97: M&M | D97: 532.25 | E97: 536.18 | F97: 526.57 | G97: 520.88 | H97: 511.27 | I97: 541.87 | J97: 551.48 | K97: 557.17 | L97: 545.8 | M97: 530.5 | N97: 23877000 | O97: 3.49%
A98: 88 | B98: Finance | C98: M&MFIN | D98: 353.05 | E98: 355.52 | F98: 345.43 | G98: 337.82 | H98: 327.73 | I98: 363.13 | J98: 373.22 | K98: 380.83 | L98: 365.6 | M98: 347.9 | N98: 11350900 | O98: 2.16%
A99: 89 | B99: Finance | C99: MANAPPURAM | D99: 155.00 | E99: 156.83 | F99: 152.27 | G99: 149.53 | H99: 144.97 | I99: 159.57 | J99: 164.13 | K99: 166.87 | L99: 161.4 | M99: 154.1 | N99: 16626000 | O99: -1.49%
A100: 90 | B100: FMCG | C100: MARICO | D100: 360.50 | E100: 359.55 | F100: 356.15 | G100: 351.80 | H100: 348.40 | I100: 363.90 | J100: 367.30 | K100: 371.65 | L100: 362.95 | M100: 355.2 | N100: 10764000 | O100: -0.06%
A101: 91 | B101: Automobile | C101: MARUTI | D101: 7282.30 | E101: 7257.25 | F101: 7185.05 | G101: 7087.80 | H101: 7015.60 | I101: 7354.50 | J101: 7426.70 | K101: 7523.95 | L101: 7329.45 | M101: 7160 | N101: 3159500 | O101: 1.93%
A102: 92 | B102: FMCG | C102: MCDOWELL-N | D102: 608.20 | E102: 608.32 | F102: 601.63 | G102: 595.07 | H102: 588.38 | I102: 614.88 | J102: 621.57 | K102: 628.13 | L102: 615 | M102: 601.75 | N102: 11887500 | O102: 0.79%
A103: 93 | B103: Finance | C103: MFSL | D103: 506.70 | E103: 510.28 | F103: 501.37 | G103: 496.03 | H103: 487.12 | I103: 515.62 | J103: 524.53 | K103: 529.87 | L103: 519.2 | M103: 504.95 | N103: 6918500 | O103: 1.96%
A104: 94 | B104: Oil_Gas | C104: MGL | D104: 1045.90 | E104: 1044.55 | F104: 1032.85 | G104: 1019.80 | H104: 1008.10 | I104: 1057.60 | J104: 1069.30 | K104: 1082.35 | L104: 1056.25 | M104: 1031.5 | N104: 2046000 | O104: -1.84%
A105: 95 | B105: Technology | C105: MINDTREE | D105: 702.40 | E105: 703.63 | F105: 697.27 | G105: 692.13 | H105: 685.77 | I105: 708.77 | J105: 715.13 | K105: 720.27 | L105: 710 | M105: 698.5 | N105: 1233000 | O105: 1.46%
A106: 96 | B106: Automobile | C106: MOTHERSUMI | D106: 130.20 | E106: 131.73 | F106: 127.42 | G106: 124.63 | H106: 120.32 | I106: 134.52 | J106: 138.83 | K106: 141.62 | L106: 136.05 | M106: 128.95 | N106: 26624400 | O106: 15.76%
A107: 97 | B107: Automobile | C107: MRF | D107: 63533.40 | E107: 63746.88 | F107: 63112.47 | G107: 62691.53 | H107: 62057.12 | I107: 64167.82 | J107: 64802.23 | K107: 65223.17 | L107: 64381.3 | M107: 63325.95 | N107: 17100 | O107: -2.45%
A108: 98 | B108: Finance | C108: MUTHOOTFIN | D108: 681.80 | E108: 686.60 | F108: 675.20 | G108: 668.60 | H108: 657.20 | I108: 693.20 | J108: 704.60 | K108: 711.20 | L108: 698 | M108: 680 | N108: 3969000 | O108: 5.54%
A109: 99 | B109: Metals | C109: NATIONALUM | D109: 43.25 | E109: 43.45 | F109: 42.65 | G109: 42.05 | H109: 41.25 | I109: 44.05 | J109: 44.85 | K109: 45.45 | L109: 44.25 | M109: 42.85 | N109: 46000300 | O109: 2.16%
A110: 100 | B110: Infrastructure | C110: NBCC | D110: 39.00 | E110: 38.42 | F110: 37.23 | G110: 35.47 | H110: 34.28 | I110: 40.18 | J110: 41.37 | K110: 43.13 | L110: 39.6 | M110: 36.65 | N110: 41037800 | O110: 10.60%
A111: 101 | B111: Infrastructure | C111: NCC | D111: 59.65 | E111: 60.40 | F111: 58.35 | G111: 57.05 | H111: 55.00 | I111: 61.70 | J111: 63.75 | K111: 65.05 | L111: 62.45 | M111: 59.1 | N111: 44092000 | O111: 0.37%
A112: 102 | B112: FMCG | C112: NESTLEIND | D112: 14471.75 | E112: 14514.77 | F112: 14357.03 | G112: 14242.32 | H112: 14084.58 | I112: 14629.48 | J112: 14787.22 | K112: 14901.93 | L112: 14672.5 | M112: 14400.05 | N112: 428200 | O112: 0.12%
A113: 103 | B113: Technology | C113: NIITTECH | D113: 1492.30 | E113: 1497.07 | F113: 1477.48 | G113: 1462.67 | H113: 1443.08 | I113: 1511.88 | J113: 1531.47 | K113: 1546.28 | L113: 1516.65 | M113: 1482.25 | N113: 460500 | O113: 0.41%
A114: 104 | B114: Metals | C114: NMDC | D114: 102.75 | E114: 103.03 | F114: 101.27 | G114: 99.78 | H114: 98.02 | I114: 104.52 | J114: 106.28 | K114: 107.77 | L114: 104.8 | M114: 101.55 | N114: 21030000 | O114: 2.25%
A115: 105 | B115: Power | C115: NTPC | D115: 116.60 | E115: 116.82 | F115: 115.68 | G115: 114.77 | H115: 113.63 | I115: 117.73 | J115: 118.87 | K115: 119.78 | L115: 117.95 | M115: 115.9 | N115: 51532800 | O115: -0.48%
A116: 106 | B116: Oil_Gas | C116: OIL | D116: 154.60 | E116: 154.90 | F116: 153.05 | G116: 151.50 | H116: 149.65 | I116: 156.45 | J116: 158.30 | K116: 159.85 | L116: 156.75 | M116: 153.35 | N116: 5200470 | O116: 2.07%
A117: 107 | B117: Oil_Gas | C117: ONGC | D117: 131.65 | E117: 131.77 | F117: 130.43 | G117: 129.22 | H117: 127.88 | I117: 132.98 | J117: 134.32 | K117: 135.53 | L117: 133.1 | M117: 130.55 | N117: 28250900 | O117: 7.22%
A118: 108 | B118: Textile | C118: PAGEIND | D118: 22086.30 | E118: 21857.30 | F118: 21221.55 | G118: 20356.80 | H118: 19721.05 | I118: 22722.05 | J118: 23357.80 | K118: 24222.55 | L118: 22493.05 | M118: 20992.55 | N118: 144725 | O118: 0.36%
A119: 109 | B119: Pharma | C119: PEL | D119: 1811.05 | E119: 1818.55 | F119: 1772.60 | G119: 1734.15 | H119: 1688.20 | I119: 1857.00 | J119: 1902.95 | K119: 1941.40 | L119: 1864.5 | M119: 1780.1 | N119: 4042572 | O119: 0.24%
A120: 110 | B120: Oil_Gas | C120: PETRONET | D120: 272.80 | E120: 273.28 | F120: 269.87 | G120: 266.93 | H120: 263.52 | I120: 276.22 | J120: 279.63 | K120: 282.57 | L120: 276.7 | M120: 270.35 | N120: 19461000 | O120: 1.47%
A121: 111 | B121: Finance | C121: PFC | D121: 114.50 | E121: 115.32 | F121: 112.98 | G121: 111.47 | H121: 109.13 | I121: 116.83 | J121: 119.17 | K121: 120.68 | L121: 117.65 | M121: 113.8 | N121: 24229600 | O121: -2.25%
A122: 112 | B122: FMCG | C122: PIDILITIND | D122: 1309.75 | E122: 1312.13 | F122: 1301.62 | G122: 1293.48 | H122: 1282.97 | I122: 1320.27 | J122: 1330.78 | K122: 1338.92 | L122: 1322.65 | M122: 1304 | N122: 3168500 | O122: 0.40%
A123: 113 | B123: Banking | C123: PNB | D123: 65.95 | E123: 66.52 | F123: 65.03 | G123: 64.12 | H123: 62.63 | I123: 67.43 | J123: 68.92 | K123: 69.83 | L123: 68 | M123: 65.6 | N123: 104195800 | O123: 1.91%
A124: 114 | B124: Power | C124: POWERGRID | D124: 194.25 | E124: 194.77 | F124: 192.63 | G124: 191.02 | H124: 188.88 | I124: 196.38 | J124: 198.52 | K124: 200.13 | L124: 196.9 | M124: 193.15 | N124: 26196000 | O124: 5.42%
A125: 115 | B125: Media | C125: PVR | D125: 1820.85 | E125: 1814.95 | F125: 1791.50 | G125: 1762.15 | H125: 1738.70 | I125: 1844.30 | J125: 1867.75 | K125: 1897.10 | L125: 1838.4 | M125: 1785.6 | N125: 1361200 | O125: 24.93%
A126: 116 | B126: Cement | C126: RAMCOCEM | D126: 801.75 | E126: 807.47 | F126: 791.33 | G126: 780.92 | H126: 764.78 | I126: 817.88 | J126: 834.02 | K126: 844.43 | L126: 823.6 | M126: 797.05 | N126: 941600 | O126: 11.88%
A127: 117 | B127: Banking | C127: RBLBANK | D127: 370.80 | E127: 372.22 | F127: 361.68 | G127: 352.57 | H127: 342.03 | I127: 381.33 | J127: 391.87 | K127: 400.98 | L127: 382.75 | M127: 363.1 | N127: 14555700 | O127: -8.31%
A128: 118 | B128: Power | C128: RECLTD | D128: 137.95 | E128: 137.78 | F128: 136.42 | G128: 134.88 | H128: 133.52 | I128: 139.32 | J128: 140.68 | K128: 142.22 | L128: 139.15 | M128: 136.25 | N128: 18894000 | O128: 0.32%
A129: 119 | B129: Oil_Gas | C129: RELIANCE | D129: 1559.15 | E129: 1567.58 | F129: 1547.67 | G129: 1536.18 | H129: 1516.27 | I129: 1579.07 | J129: 1598.98 | K129: 1610.47 | L129: 1587.5 | M129: 1556.1 | N129: 49661500 | O129: 0.84%
A130: 120 | B130: Metals | C130: SAIL | D130: 39.50 | E130: 39.67 | F130: 38.88 | G130: 38.27 | H130: 37.48 | I130: 40.28 | J130: 41.07 | K130: 41.68 | L130: 40.45 | M130: 39.05 | N130: 75271000 | O130: -0.76%
A131: 121 | B131: Banking | C131: SBIN | D131: 343.55 | E131: 345.08 | F131: 340.52 | G131: 337.48 | H131: 332.92 | I131: 348.12 | J131: 352.68 | K131: 355.72 | L131: 349.65 | M131: 342.05 | N131: 91425000 | O131: -0.94%
A132: 122 | B132: Cement | C132: SHREECEM | D132: 21078.05 | E132: 21157.70 | F132: 20940.40 | G132: 20802.75 | H132: 20585.45 | I132: 21295.35 | J132: 21512.65 | K132: 21650.30 | L132: 21375 | M132: 21020.05 | N132: 131050 | O132: -0.91%
A133: 123 | B133: Capital_Goods | C133: SIEMENS | D133: 1472.95 | E133: 1478.98 | F133: 1457.97 | G133: 1442.98 | H133: 1421.97 | I133: 1493.97 | J133: 1514.98 | K133: 1529.97 | L133: 1500 | M133: 1464 | N133: 2785750 | O133: 2.10%
A134: 124 | B134: Textile | C134: SRF | D134: 3213.70 | E134: 3214.87 | F134: 3193.93 | G134: 3174.17 | H134: 3153.23 | I134: 3234.63 | J134: 3255.57 | K134: 3275.33 | L134: 3235.8 | M134: 3195.1 | N134: 846250 | O134: -4.78%
A135: 125 | B135: Finance | C135: SRTRANSFIN | D135: 1131.30 | E135: 1135.20 | F135: 1114.85 | G135: 1098.40 | H135: 1078.05 | I135: 1151.65 | J135: 1172.00 | K135: 1188.45 | L135: 1155.55 | M135: 1118.75 | N135: 4293000 | O135: -0.50%
A136: 126 | B136: Pharma | C136: SUNPHARMA | D136: 452.15 | E136: 454.65 | F136: 447.00 | G136: 441.85 | H136: 434.20 | I136: 459.80 | J136: 467.45 | K136: 472.60 | L136: 462.3 | M136: 449.5 | N136: 64029150 | O136: -0.27%
A137: 127 | B137: Media | C137: SUNTV | D137: 484.75 | E137: 487.15 | F137: 477.60 | G137: 470.45 | H137: 460.90 | I137: 494.30 | J137: 503.85 | K137: 511.00 | L137: 496.7 | M137: 480 | N137: 2801000 | O137: 0.55%
A138: 128 | B138: Fertilisers | C138: TATACHEM | D138: 678.05 | E138: 676.25 | F138: 670.20 | G138: 662.35 | H138: 656.30 | I138: 684.10 | J138: 690.15 | K138: 698.00 | L138: 682.3 | M138: 668.4 | N138: 2040300 | O138: 1.57%
A139: 129 | B139: Technology | C139: TATAELXSI | D139: 811.25 | E139: 811.50 | F139: 802.00 | G139: 792.75 | H139: 783.25 | I139: 820.75 | J139: 830.25 | K139: 839.50 | L139: 821 | M139: 802.25 | N139: 908400 | O139: 4.27%
A140: 130 | B140: FMCG | C140: TATAGLOBAL | D140: 323.75 | E140: 321.28 | F140: 317.22 | G140: 310.68 | H140: 306.62 | I140: 327.82 | J140: 331.88 | K140: 338.42 | L140: 325.35 | M140: 314.75 | N140: 10087200 | O140: -1.24%
A141: 131 | B141: Automobile | C141: TATAMOTORS | D141: 161.95 | E141: 163.97 | F141: 159.43 | G141: 156.92 | H141: 152.38 | I141: 166.48 | J141: 171.02 | K141: 173.53 | L141: 168.5 | M141: 161.45 | N141: 59382900 | O141: -0.17%
A142: 132 | B142: Automobile | C142: TATAMTRDVR | D142: 71.70 | E142: 72.57 | F142: 70.53 | G142: 69.37 | H142: 67.33 | I142: 73.73 | J142: 75.77 | K142: 76.93 | L142: 74.6 | M142: 71.4 | N142: 37883200 | O142: 1.08%
A143: 133 | B143: Power | C143: TATAPOWER | D143: 57.60 | E143: 57.88 | F143: 56.62 | G143: 55.63 | H143: 54.37 | I143: 58.87 | J143: 60.13 | K143: 61.12 | L143: 59.15 | M143: 56.9 | N143: 67194000 | O143: -2.52%
A144: 134 | B144: Metals | C144: TATASTEEL | D144: 428.00 | E144: 426.80 | F144: 422.90 | G144: 417.80 | H144: 413.90 | I144: 431.90 | J144: 435.80 | K144: 440.90 | L144: 430.7 | M144: 421.7 | N144: 19198972 | O144: -3.73%
A145: 135 | B145: Technology | C145: TCS | D145: 2063.05 | E145: 2069.82 | F145: 2046.93 | G145: 2030.82 | H145: 2007.93 | I145: 2085.93 | J145: 2108.82 | K145: 2124.93 | L145: 2092.7 | M145: 2053.7 | N145: 19281500 | O145: 1.85%
A146: 136 | B146: Technology | C146: TECHM | D146: 763.40 | E146: 765.93 | F146: 758.47 | G146: 753.53 | H146: 746.07 | I146: 770.87 | J146: 778.33 | K146: 783.27 | L146: 773.4 | M146: 761 | N146: 14163600 | O146: -0.52%
A147: 137 | B147: FMCG | C147: TITAN | D147: 1164.90 | E147: 1169.13 | F147: 1157.02 | G147: 1149.13 | H147: 1137.02 | I147: 1177.02 | J147: 1189.13 | K147: 1197.02 | L147: 1181.25 | M147: 1161.25 | N147: 10503000 | O147: 1.15%
A148: 138 | B148: Pharma | C148: TORNTPHARM | D148: 1894.30 | E148: 1896.43 | F148: 1872.87 | G148: 1851.43 | H148: 1827.87 | I148: 1917.87 | J148: 1941.43 | K148: 1962.87 | L148: 1920 | M148: 1875 | N148: 290500 | O148: 1.75%
A149: 139 | B149: Power | C149: TORNTPOWER | D149: 281.50 | E149: 283.15 | F149: 278.10 | G149: 274.70 | H149: 269.65 | I149: 286.55 | J149: 291.60 | K149: 295.00 | L149: 288.2 | M149: 279.75 | N149: 4773000 | O149: 5.50%
A150: 140 | B150: Automobile | C150: TVSMOTOR | D150: 470.15 | E150: 468.07 | F150: 462.93 | G150: 455.72 | H150: 450.58 | I150: 475.28 | J150: 480.42 | K150: 487.63 | L150: 473.2 | M150: 460.85 | N150: 6280100 | O150: 0.30%
A151: 141 | B151: FMCG | C151: UBL | D151: 1263.30 | E151: 1273.53 | F151: 1248.97 | G151: 1234.63 | H151: 1210.07 | I151: 1287.87 | J151: 1312.43 | K151: 1326.77 | L151: 1298.1 | M151: 1259.2 | N151: 1443400 | O151: -2.69%
A152: 142 | B152: Finance | C152: UJJIVAN | D152: 339.60 | E152: 337.20 | F152: 327.15 | G152: 314.70 | H152: 304.65 | I152: 349.65 | J152: 359.70 | K152: 372.15 | L152: 347.25 | M152: 324.75 | N152: 6514400 | O152: -1.39%
A153: 143 | B153: Cement | C153: ULTRACEMCO | D153: 4273.85 | E153: 4290.83 | F153: 4234.82 | G153: 4195.78 | H153: 4139.77 | I153: 4329.87 | J153: 4385.88 | K153: 4424.92 | L153: 4346.85 | M153: 4251.8 | N153: 2655600 | O153: -0.06%
A154: 144 | B154: Banking | C154: UNIONBANK | D154: 63.25 | E154: 63.90 | F154: 61.90 | G154: 60.55 | H154: 58.55 | I154: 65.25 | J154: 67.25 | K154: 68.60 | L154: 65.9 | M154: 62.55 | N154: 25886000 | O154: -11.57%
A155: 145 | B155: Fertilisers | C155: UPL | D155: 576.20 | E155: 578.02 | F155: 571.28 | G155: 566.37 | H155: 559.63 | I155: 582.93 | J155: 589.67 | K155: 594.58 | L155: 584.75 | M155: 573.1 | N155: 13970700 | O155: -1.83%
A156: 146 | B156: Metals | C156: VEDL | D156: 145.20 | E156: 146.07 | F156: 143.23 | G156: 141.27 | H156: 138.43 | I156: 148.03 | J156: 150.87 | K156: 152.83 | L156: 148.9 | M156: 144.1 | N156: 58526000 | O156: -0.01%
A157: 147 | B157: Capital_Goods | C157: VOLTAS | D157: 703.90 | E157: 706.58 | F157: 698.37 | G157: 692.83 | H157: 684.62 | I157: 712.12 | J157: 720.33 | K157: 725.87 | L157: 714.8 | M157: 701.05 | N157: 3240000 | O157: -0.83%
A158: 148 | B158: Technology | C158: WIPRO | D158: 238.85 | E158: 239.58 | F158: 237.02 | G158: 235.18 | H158: 232.62 | I158: 241.42 | J158: 243.98 | K158: 245.82 | L158: 242.15 | M158: 237.75 | N158: 26380800 | O158: 1.93%
A159: 149 | B159: Banking | C159: YESBANK | D159: 67.15 | E159: 68.92 | F159: 63.53 | G159: 59.92 | H159: 54.53 | I159: 72.53 | J159: 77.92 | K159: 81.53 | L159: 74.3 | M159: 65.3 | N159: 230738200 | O159: 21.52%
A160: 150 | B160: Media | C160: ZEEL | D160: 292.95 | E160: 301.08 | F160: 276.67 | G160: 260.38 | H160: 235.97 | I160: 317.37 | J160: 341.78 | K160: 358.07 | L160: 325.5 | M160: 284.8 | N160: 29689700 | O160: -2.94%
A161: 151
A178: Pivot Point: This is trigger point for intra day buy/sell based on the price range of the previous day
A179: As per the tool,the trader should take BUY position just above Pivot and keep the stop loss of pivot point and the first target would be Resistance 1(R1)
A180: If R1 is crossed then R2 becomes the next target with stop loss of at R1
A181: Similarly if price goes below pivot point then the trader should sell and keep a stop loss of pivot point and the first target would be S1
A182: If S1 is crossed then S2 becomes the next target with stop loss of at S1
A184: Disclaimer:
A185: This document has been prepared by the Retail Research Desk of Asit C Mehta
A186: Investment Intermediates Ltd. and is meant for use of the recipient only
A187: and is not for circulation. This document is not to be reported or
A188: copied or made available to others. It should not be considered to be
A189: taken as an offer to sell or a solicitation to buy any security. The
A190: information contained herein is from sources believed reliable. We do
A191: not represent that it is accurate or complete and it should not be
A192: relied upon as such. We may from time to time have positions in and buy
A193: and sell securities referred to herein

Sheet Cash Intra
M5: Back to Main Page
A6: FOR INTRA DAY TRADING | K6: =Main!B10 -> 2019-12-02
A8: Sr.no | B8: Scrip | C8: CLOSE RATE | D8: Pivot Point | E8: Supports | H8: Resistances
C9: Point | E9: S1 | F9: S2 | G9: S3 | H9: R1 | I9: R2 | J9: R3 | K9: HIGH | L9: LOW | M9: Total Trade Quanity in Lakhs
A10: 1 | B10: Nifty 50 | C10: 12056.05 | D10: 12073.62 | E10: 11999.83 | F10: 11943.62 | G10: 11869.83 | H10: 12129.83 | I10: 12203.62 | J10: 12259.83 | K10: 12147.4 | L10: 12017.4
A11: 2 | B11: Nifty Bank | C11: 31946.1 | D11: 31934.62 | E11: 31782.28 | F11: 31618.47 | G11: 31466.13 | H11: 32098.43 | I11: 32250.77 | J11: 32414.58 | K11: 32086.95 | L11: 31770.8
A12: 3 | B12: Nifty CPSE | C12: 1943 | D12: 1947.62 | E12: 1930.43 | F12: 1917.87 | G12: 1900.68 | H12: 1960.18 | I12: 1977.37 | J12: 1989.93 | K12: 1964.8 | L12: 1935.05
A13: 4 | B13: Nifty Infra | C13: 3323.3 | D13: 3329.65 | E13: 3307.85 | F13: 3292.40 | G13: 3270.60 | H13: 3345.10 | I13: 3366.90 | J13: 3382.35 | K13: 3351.45 | L13: 3314.2
A14: 5 | B14: Nifty IT | C14: 14998.05 | D14: 15036.52 | E14: 14925.78 | F14: 14853.52 | G14: 14742.78 | H14: 15108.78 | I14: 15219.52 | J14: 15291.78 | K14: 15147.25 | L14: 14964.25
A15: 6 | B15: Nifty PSE | C15: 3261.6 | D15: 3268.43 | E15: 3243.77 | F15: 3225.93 | G15: 3201.27 | H15: 3286.27 | I15: 3310.93 | J15: 3328.77 | K15: 3293.1 | L15: 3250.6
A16: 7 | B16: Nifty Midcap 50 | C16: 4722.8 | D16: 4733.48 | E16: 4688.52 | F16: 4654.23 | G16: 4609.27 | H16: 4767.77 | I16: 4812.73 | J16: 4847.02 | K16: 4778.45 | L16: 4699.2
A17: 8 | B17: ACC | C17: 1522.15 | D17: 1522.38 | E17: 1509.77 | F17: 1497.38 | G17: 1484.77 | H17: 1534.77 | I17: 1547.38 | J17: 1559.77 | K17: 1535 | L17: 1510 | M17: 8.51825
A18: 9 | B18: AUBANK | C18: 823.75 | D18: 818.77 | E18: 810.98 | F18: 798.22 | G18: 790.43 | H18: 831.53 | I18: 839.32 | J18: 852.08 | K18: 826.55 | L18: 806 | M18: 1.77876
A19: 10 | B19: ADANIPORTS | C19: 382.05 | D19: 379.27 | E19: 373.58 | F19: 365.12 | G19: 359.43 | H19: 387.73 | I19: 393.42 | J19: 401.88 | K19: 384.95 | L19: 370.8 | M19: 301.11277
A20: 11 | B20: ADANIPOWER | C20: 63.6 | D20: 63.92 | E20: 61.18 | F20: 58.77 | G20: 56.03 | H20: 66.33 | I20: 69.07 | J20: 71.48 | K20: 66.65 | L20: 61.5 | M20: 201.90214
A21: 12 | B21: ABCAPITAL | C21: 109.45 | D21: 110.95 | E21: 107.30 | F21: 105.15 | G21: 101.50 | H21: 113.10 | I21: 116.75 | J21: 118.90 | K21: 114.6 | L21: 108.8 | M21: 60.00573
A22: 13 | B22: ABFRL | C22: 225.25 | D22: 224.95 | E22: 221.90 | F22: 218.55 | G22: 215.50 | H22: 228.30 | I22: 231.35 | J22: 234.70 | K22: 228 | L22: 221.6 | M22: 9.03609
A23: 14 | B23: AJANTPHARM | C23: 996.9 | D23: 997.60 | E23: 990.30 | F23: 983.70 | G23: 976.40 | H23: 1004.20 | I23: 1011.50 | J23: 1018.10 | K23: 1004.9 | L23: 991 | M23: 0.77054
A24: 15 | B24: ALKEM | C24: 2029.1 | D24: 2023.68 | E24: 2007.42 | F24: 1985.73 | G24: 1969.47 | H24: 2045.37 | I24: 2061.63 | J24: 2083.32 | K24: 2039.95 | L24: 2002 | M24: 0.33717
A25: 16 | B25: ALBK | C25: 23.85 | D25: 24.05 | E25: 23.50 | F25: 23.15 | G25: 22.60 | H25: 24.40 | I25: 24.95 | J25: 25.30 | K25: 24.6 | L25: 23.7 | M25: 24.90734
A26: 17 | B26: AMARAJABAT | C26: 750.65 | D26: 750.17 | E26: 744.03 | F26: 737.42 | G26: 731.28 | H26: 756.78 | I26: 762.92 | J26: 769.53 | K26: 756.3 | L26: 743.55 | M26: 2.60369
A27: 18 | B27: AMBUJACEM | C27: 204.65 | D27: 205.58 | E27: 202.97 | F27: 201.28 | G27: 198.67 | H27: 207.27 | I27: 209.88 | J27: 211.57 | K27: 208.2 | L27: 203.9 | M27: 27.88327
A28: 19 | B28: APOLLOHOSP | C28: 1441.2 | D28: 1446.35 | E28: 1425.85 | F28: 1410.50 | G28: 1390.00 | H28: 1461.70 | I28: 1482.20 | J28: 1497.55 | K28: 1466.85 | L28: 1431 | M28: 3.5972
A29: 20 | B29: APOLLOTYRE | C29: 168.05 | D29: 169.38 | E29: 165.97 | F29: 163.88 | G29: 160.47 | H29: 171.47 | I29: 174.88 | J29: 176.97 | K29: 172.8 | L29: 167.3 | M29: 20.77562
A30: 21 | B30: ASHOKLEY | C30: 79.15 | D30: 79.83 | E30: 77.57 | F30: 75.98 | G30: 73.72 | H30: 81.42 | I30: 83.68 | J30: 85.27 | K30: 82.1 | L30: 78.25 | M30: 224.46824
A31: 22 | B31: ASIANPAINT | C31: 1706.15 | D31: 1701.30 | E31: 1682.20 | F31: 1658.25 | G31: 1639.15 | H31: 1725.25 | I31: 1744.35 | J31: 1768.30 | K31: 1720.4 | L31: 1677.35 | M31: 18.9029
A32: 23 | B32: AUROPHARMA | C32: 449.9 | D32: 452.45 | E32: 443.05 | F32: 436.20 | G32: 426.80 | H32: 459.30 | I32: 468.70 | J32: 475.55 | K32: 461.85 | L32: 445.6 | M32: 41.29315
A33: 24 | B33: DMART | C33: 1822.5 | D33: 1832.17 | E33: 1802.33 | F33: 1782.17 | G33: 1752.33 | H33: 1852.33 | I33: 1882.17 | J33: 1902.33 | K33: 1862 | L33: 1812 | M33: 4.35326
A34: 25 | B34: AXISBANK | C34: 739.05 | D34: 743.97 | E34: 731.58 | F34: 724.12 | G34: 711.73 | H34: 751.43 | I34: 763.82 | J34: 771.28 | K34: 756.35 | L34: 736.5 | M34: 126.74173
A35: 26 | B35: BAJAJ-AUTO | C35: 3176 | D35: 3173.03 | E35: 3150.07 | F35: 3124.13 | G35: 3101.17 | H35: 3198.97 | I35: 3221.93 | J35: 3247.87 | K35: 3196 | L35: 3147.1 | M35: 2.03765
A36: 27 | B36: BAJFINANCE | C36: 4074.2 | D36: 4090.52 | E36: 4046.03 | F36: 4017.87 | G36: 3973.38 | H36: 4118.68 | I36: 4163.17 | J36: 4191.33 | K36: 4135 | L36: 4062.35 | M36: 8.31983
A37: 28 | B37: BAJAJFINSV | C37: 9110.25 | D37: 9147.12 | E37: 9058.43 | F37: 9006.62 | G37: 8917.93 | H37: 9198.93 | I37: 9287.62 | J37: 9339.43 | K37: 9235.8 | L37: 9095.3 | M37: 1.48877
A38: 29 | B38: BAJAJHLDNG | C38: 3564.35 | D38: 3580.50 | E38: 3535.85 | F38: 3507.35 | G38: 3462.70 | H38: 3609.00 | I38: 3653.65 | J38: 3682.15 | K38: 3625.15 | L38: 3552 | M38: 0.12025
A39: 30 | B39: BALKRISIND | C39: 926.25 | D39: 926.48 | E39: 911.02 | F39: 895.78 | G39: 880.32 | H39: 941.72 | I39: 957.18 | J39: 972.42 | K39: 941.95 | L39: 911.25 | M39: 7.76081
A40: 31 | B40: BANDHANBNK | C40: 581.2 | D40: 583.10 | E40: 569.20 | F40: 557.20 | G40: 543.30 | H40: 595.10 | I40: 609.00 | J40: 621.00 | K40: 597 | L40: 571.1 | M40: 31.70352
A41: 32 | B41: BANKBARODA | C41: 104.9 | D41: 105.88 | E41: 103.52 | F41: 102.13 | G41: 99.77 | H41: 107.27 | I41: 109.63 | J41: 111.02 | K41: 108.25 | L41: 104.5 | M41: 360.6133
A42: 33 | B42: BANKINDIA | C42: 75.9 | D42: 76.45 | E42: 74.95 | F42: 74.00 | G42: 72.50 | H42: 77.40 | I42: 78.90 | J42: 79.85 | K42: 77.95 | L42: 75.5 | M42: 43.33117
A43: 34 | B43: BATAINDIA | C43: 1629.05 | D43: 1632.08 | E43: 1619.02 | F43: 1608.98 | G43: 1595.92 | H43: 1642.12 | I43: 1655.18 | J43: 1665.22 | K43: 1645.15 | L43: 1622.05 | M43: 3.10263
A44: 35 | B44: BERGEPAINT | C44: 496.55 | D44: 494.10 | E44: 488.45 | F44: 480.35 | G44: 474.70 | H44: 502.20 | I44: 507.85 | J44: 515.95 | K44: 499.75 | L44: 486 | M44: 14.84202
A45: 36 | B45: BEL | C45: 103.1 | D45: 103.72 | E45: 102.03 | F45: 100.97 | G45: 99.28 | H45: 104.78 | I45: 106.47 | J45: 107.53 | K45: 105.4 | L45: 102.65 | M45: 48.87239
A46: 37 | B46: BHARATFORG | C46: 464.4 | D46: 464.25 | E46: 459.50 | F46: 454.60 | G46: 449.85 | H46: 469.15 | I46: 473.90 | J46: 478.80 | K46: 469 | L46: 459.35 | M46: 10.39535
A47: 38 | B47: BHEL | C47: 53.3 | D47: 53.77 | E47: 52.58 | F47: 51.87 | G47: 50.68 | H47: 54.48 | I47: 55.67 | J47: 56.38 | K47: 54.95 | L47: 53.05 | M47: 96.58261
A48: 39 | B48: BPCL | C48: 511.55 | D48: 511.73 | E48: 505.02 | F48: 498.48 | G48: 491.77 | H48: 518.27 | I48: 524.98 | J48: 531.52 | K48: 518.45 | L48: 505.2 | M48: 75.2945
A49: 40 | B49: BHARTIARTL | C49: 442.45 | D49: 442.42 | E49: 435.18 | F49: 427.92 | G49: 420.68 | H49: 449.68 | I49: 456.92 | J49: 464.18 | K49: 449.65 | L49: 435.15 | M49: 200.10753
A50: 41 | B50: INFRATEL | C50: 276.3 | D50: 266.03 | E50: 248.27 | F50: 220.23 | G50: 202.47 | H50: 294.07 | I50: 311.83 | J50: 339.87 | K50: 283.8 | L50: 238 | M50: 523.05477
A51: 42 | B51: BIOCON | C51: 281.65 | D51: 283.53 | E51: 278.67 | F51: 275.68 | G51: 270.82 | H51: 286.52 | I51: 291.38 | J51: 294.37 | K51: 288.4 | L51: 280.55 | M51: 37.44414
A52: 43 | B52: BBTC | C52: 1106.4 | D52: 1108.18 | E52: 1089.92 | F52: 1073.43 | G52: 1055.17 | H52: 1124.67 | I52: 1142.93 | J52: 1159.42 | K52: 1126.45 | L52: 1091.7 | M52: 1.60907
A53: 44 | B53: BOSCHLTD | C53: 16142.6 | D53: 16149.50 | E53: 15953.20 | F53: 15763.80 | G53: 15567.50 | H53: 16338.90 | I53: 16535.20 | J53: 16724.60 | K53: 16345.8 | L53: 15960.1 | M53: 0.21533
A54: 45 | B54: BRITANNIA | C54: 3057.7 | D54: 3067.57 | E54: 3040.13 | F54: 3022.57 | G54: 2995.13 | H54: 3085.13 | I54: 3112.57 | J54: 3130.13 | K54: 3095 | L54: 3050 | M54: 2.21117
A55: 46 | B55: CESC | C55: 751.1 | D55: 754.07 | E55: 744.53 | F55: 737.97 | G55: 728.43 | H55: 760.63 | I55: 770.17 | J55: 776.73 | K55: 763.6 | L55: 747.5 | M55: 4.01188
A56: 47 | B56: CADILAHC | C56: 254.15 | D56: 257.27 | E56: 248.93 | F56: 243.72 | G56: 235.38 | H56: 262.48 | I56: 270.82 | J56: 276.03 | K56: 265.6 | L56: 252.05 | M56: 27.49988
A57: 48 | B57: CANBK | C57: 227.15 | D57: 229.18 | E57: 224.12 | F57: 221.08 | G57: 216.02 | H57: 232.22 | I57: 237.28 | J57: 240.32 | K57: 234.25 | L57: 226.15 | M57: 77.75704
A58: 49 | B58: CASTROLIND | C58: 140.75 | D58: 141.47 | E58: 139.28 | F58: 137.82 | G58: 135.63 | H58: 142.93 | I58: 145.12 | J58: 146.58 | K58: 143.65 | L58: 140 | M58: 18.14766
A59: 50 | B59: CHOLAFIN | C59: 312.15 | D59: 313.95 | E59: 309.00 | F59: 305.85 | G59: 300.90 | H59: 317.10 | I59: 322.05 | J59: 325.20 | K59: 318.9 | L59: 310.8 | M59: 9.40105
A60: 51 | B60: CIPLA | C60: 466.7 | D60: 468.57 | E60: 463.73 | F60: 460.77 | G60: 455.93 | H60: 471.53 | I60: 476.37 | J60: 479.33 | K60: 473.4 | L60: 465.6 | M60: 13.07574
A61: 52 | B61: CUB | C61: 224.8 | D61: 224.43 | E61: 221.87 | F61: 218.93 | G61: 216.37 | H61: 227.37 | I61: 229.93 | J61: 232.87 | K61: 227 | L61: 221.5 | M61: 11.90492
A62: 53 | B62: COALINDIA | C62: 205.25 | D62: 205.97 | E62: 203.13 | F62: 201.02 | G62: 198.18 | H62: 208.08 | I62: 210.92 | J62: 213.03 | K62: 208.8 | L62: 203.85 | M62: 54.22867
A63: 54 | B63: COLPAL | C63: 1474.2 | D63: 1471.55 | E63: 1456.50 | F63: 1438.80 | G63: 1423.75 | H63: 1489.25 | I63: 1504.30 | J63: 1522.00 | K63: 1486.6 | L63: 1453.85 | M63: 7.00482
A64: 55 | B64: CONCOR | C64: 579 | D64: 571.18 | E64: 561.62 | F64: 544.23 | G64: 534.67 | H64: 588.57 | I64: 598.13 | J64: 615.52 | K64: 580.75 | L64: 553.8 | M64: 23.42285
A65: 56 | B65: COROMANDEL | C65: 474.9 | D65: 474.03 | E65: 471.22 | F65: 467.53 | G65: 464.72 | H65: 477.72 | I65: 480.53 | J65: 484.22 | K65: 476.85 | L65: 470.35 | M65: 1.04634
A66: 57 | B66: CROMPTON | C66: 254.65 | D66: 252.25 | E66: 248.50 | F66: 242.35 | G66: 238.60 | H66: 258.40 | I66: 262.15 | J66: 268.30 | K66: 256 | L66: 246.1 | M66: 3.93032
A67: 58 | B67: CUMMINSIND | C67: 542.25 | D67: 544.08 | E67: 536.17 | F67: 530.08 | G67: 522.17 | H67: 550.17 | I67: 558.08 | J67: 564.17 | K67: 552 | L67: 538 | M67: 8.26998
A68: 59 | B68: DLF | C68: 219.7 | D68: 219.63 | E68: 215.07 | F68: 210.43 | G68: 205.87 | H68: 224.27 | I68: 228.83 | J68: 233.47 | K68: 224.2 | L68: 215 | M68: 116.96442
A69: 60 | B69: DABUR | C69: 459.1 | D69: 461.10 | E69: 455.30 | F69: 451.50 | G69: 445.70 | H69: 464.90 | I69: 470.70 | J69: 474.50 | K69: 466.9 | L69: 457.3 | M69: 37.51777
A70: 61 | B70: DALBHARAT | C70: 880.9 | D70: 882.55 | E70: 868.60 | F70: 856.30 | G70: 842.35 | H70: 894.85 | I70: 908.80 | J70: 921.10 | K70: 896.5 | L70: 870.25 | M70: 0.95377
A71: 62 | B71: DIVISLAB | C71: 1786.2 | D71: 1790.28 | E71: 1777.72 | F71: 1769.23 | G71: 1756.67 | H71: 1798.77 | I71: 1811.33 | J71: 1819.82 | K71: 1802.85 | L71: 1781.8 | M71: 2.58455
A72: 63 | B72: DRREDDY | C72: 2913.85 | D72: 2927.95 | E72: 2881.20 | F72: 2848.55 | G72: 2801.80 | H72: 2960.60 | I72: 3007.35 | J72: 3040.00 | K72: 2974.7 | L72: 2895.3 | M72: 5.60413
A73: 64 | B73: EDELWEISS | C73: 123.45 | D73: 122.80 | E73: 121.10 | F73: 118.75 | G73: 117.05 | H73: 125.15 | I73: 126.85 | J73: 129.20 | K73: 124.5 | L73: 120.45 | M73: 12.2245
A74: 65 | B74: EICHERMOT | C74: 22881.4 | D74: 22870.45 | E74: 22660.95 | F74: 22440.50 | G74: 22231.00 | H74: 23090.90 | I74: 23300.40 | J74: 23520.85 | K74: 23079.95 | L74: 22650 | M74: 1.11578
A75: 66 | B75: EMAMILTD | C75: 315.15 | D75: 315.58 | E75: 313.47 | F75: 311.78 | G75: 309.67 | H75: 317.27 | I75: 319.38 | J75: 321.07 | K75: 317.7 | L75: 313.9 | M75: 0.63086
A76: 67 | B76: ENDURANCE | C76: 1111.5 | D76: 1108.23 | E76: 1091.52 | F76: 1071.53 | G76: 1054.82 | H76: 1128.22 | I76: 1144.93 | J76: 1164.92 | K76: 1124.95 | L76: 1088.25 | M76: 0.14402
A77: 68 | B77: ENGINERSIN | C77: 105.75 | D77: 105.25 | E77: 104.50 | F77: 103.25 | G77: 102.50 | H77: 106.50 | I77: 107.25 | J77: 108.50 | K77: 106 | L77: 104 | M77: 8.32858
A78: 69 | B78: ESCORTS | C78: 637.2 | D78: 640.27 | E78: 627.93 | F78: 618.67 | G78: 606.33 | H78: 649.53 | I78: 661.87 | J78: 671.13 | K78: 652.6 | L78: 631 | M78: 15.77102
A79: 70 | B79: EXIDEIND | C79: 195.05 | D79: 194.68 | E79: 193.37 | F79: 191.68 | G79: 190.37 | H79: 196.37 | I79: 197.68 | J79: 199.37 | K79: 196 | L79: 193 | M79: 15.60798
A80: 71 | B80: FEDERALBNK | C80: 88.9 | D80: 89.75 | E80: 87.75 | F80: 86.60 | G80: 84.60 | H80: 90.90 | I80: 92.90 | J80: 94.05 | K80: 91.75 | L80: 88.6 | M80: 109.1233
A81: 72 | B81: FCONSUMER | C81: 27.65 | D81: 27.47 | E81: 25.63 | F81: 23.62 | G81: 21.78 | H81: 29.48 | I81: 31.32 | J81: 33.33 | K81: 29.3 | L81: 25.45 | M81: 56.87294
A82: 73 | B82: FRETAIL | C82: 338.9 | D82: 354.43 | E82: 319.47 | F82: 300.03 | G82: 265.07 | H82: 373.87 | I82: 408.83 | J82: 428.27 | K82: 389.4 | L82: 335 | M82: 25.7443
A83: 74 | B83: GAIL | C83: 126.05 | D83: 126.52 | E83: 124.58 | F83: 123.12 | G83: 121.18 | H83: 127.98 | I83: 129.92 | J83: 131.38 | K83: 128.45 | L83: 125.05 | M83: 94.39278
A84: 75 | B84: GMRINFRA | C84: 21.9 | D84: 21.97 | E84: 21.48 | F84: 21.07 | G84: 20.58 | H84: 22.38 | I84: 22.87 | J84: 23.28 | K84: 22.45 | L84: 21.55 | M84: 175.06883
A85: 76 | B85: GICRE | C85: 260.5 | D85: 261.08 | E85: 256.67 | F85: 252.83 | G85: 248.42 | H85: 264.92 | I85: 269.33 | J85: 273.17 | K85: 265.5 | L85: 257.25 | M85: 3.22092
A86: 77 | B86: GLENMARK | C86: 337.3 | D86: 340.22 | E86: 330.93 | F86: 324.57 | G86: 315.28 | H86: 346.58 | I86: 355.87 | J86: 362.23 | K86: 349.5 | L86: 333.85 | M86: 16.42852
A87: 78 | B87: GODREJAGRO | C87: 494.45 | D87: 492.48 | E87: 488.97 | F87: 483.48 | G87: 479.97 | H87: 497.97 | I87: 501.48 | J87: 506.97 | K87: 496 | L87: 487 | M87: 0.38585
A88: 79 | B88: GODREJCP | C88: 725 | D88: 721.73 | E88: 716.57 | F88: 708.13 | G88: 702.97 | H88: 730.17 | I88: 735.33 | J88: 743.77 | K88: 726.9 | L88: 713.3 | M88: 7.4922
A89: 80 | B89: GODREJIND | C89: 437 | D89: 437.93 | E89: 433.87 | F89: 430.73 | G89: 426.67 | H89: 441.07 | I89: 445.13 | J89: 448.27 | K89: 442 | L89: 434.8 | M89: 0.54924
A90: 81 | B90: GODREJPROP | C90: 908.8 | D90: 901.63 | E90: 892.17 | F90: 875.53 | G90: 866.07 | H90: 918.27 | I90: 927.73 | J90: 944.37 | K90: 911.1 | L90: 885 | M90: 4.30723
A91: 82 | B91: GRAPHITE | C91: 326.1 | D91: 327.58 | E91: 319.77 | F91: 313.43 | G91: 305.62 | H91: 333.92 | I91: 341.73 | J91: 348.07 | K91: 335.4 | L91: 321.25 | M91: 19.78835
A92: 83 | B92: GRASIM | C92: 787.05 | D92: 793.50 | E92: 778.00 | F92: 768.95 | G92: 753.45 | H92: 802.55 | I92: 818.05 | J92: 827.10 | K92: 809 | L92: 784.45 | M92: 21.99611
A93: 84 | B93: GSPL | C93: 215.25 | D93: 216.45 | E93: 213.40 | F93: 211.55 | G93: 208.50 | H93: 218.30 | I93: 221.35 | J93: 223.20 | K93: 219.5 | L93: 214.6 | M93: 4.94681
A94: 85 | B94: HEG | C94: 1132.15 | D94: 1140.28 | E94: 1113.87 | F94: 1095.58 | G94: 1069.17 | H94: 1158.57 | I94: 1184.98 | J94: 1203.27 | K94: 1166.7 | L94: 1122 | M94: 5.32192
A95: 86 | B95: HCLTECH | C95: 1127.65 | D95: 1129.87 | E95: 1122.88 | F95: 1118.12 | G95: 1111.13 | H95: 1134.63 | I95: 1141.62 | J95: 1146.38 | K95: 1136.85 | L95: 1125.1 | M95: 11.93851
A96: 87 | B96: HDFCAMC | C96: 3536.95 | D96: 3581.32 | E96: 3480.63 | F96: 3424.32 | G96: 3323.63 | H96: 3637.63 | I96: 3738.32 | J96: 3794.63 | K96: 3682 | L96: 3525 | M96: 6.83162
A97: 88 | B97: HDFCBANK | C97: 1274.95 | D97: 1268.95 | E97: 1258.00 | F97: 1241.05 | G97: 1230.10 | H97: 1285.90 | I97: 1296.85 | J97: 1313.80 | K97: 1279.9 | L97: 1252 | M97: 77.83813
A98: 89 | B98: HDFCLIFE | C98: 571.5 | D98: 574.90 | E98: 566.80 | F98: 562.10 | G98: 554.00 | H98: 579.60 | I98: 587.70 | J98: 592.40 | K98: 583 | L98: 570.2 | M98: 21.42174
A99: 90 | B99: HAVELLS | C99: 667.45 | D99: 668.15 | E99: 659.30 | F99: 651.15 | G99: 642.30 | H99: 676.30 | I99: 685.15 | J99: 693.30 | K99: 677 | L99: 660 | M99: 8.23893
A100: 91 | B100: HEROMOTOCO | C100: 2433.55 | D100: 2447.10 | E100: 2410.45 | F100: 2387.35 | G100: 2350.70 | H100: 2470.20 | I100: 2506.85 | J100: 2529.95 | K100: 2483.75 | L100: 2424 | M100: 7.57233
A101: 92 | B101: HEXAWARE | C101: 339.4 | D101: 341.20 | E101: 336.20 | F101: 333.00 | G101: 328.00 | H101: 344.40 | I101: 349.40 | J101: 352.60 | K101: 346.2 | L101: 338 | M101: 4.18943
A102: 93 | B102: HINDALCO | C102: 200.15 | D102: 200.40 | E102: 196.30 | F102: 192.45 | G102: 188.35 | H102: 204.25 | I102: 208.35 | J102: 212.20 | K102: 204.5 | L102: 196.55 | M102: 102.12511
A103: 94 | B103: HINDPETRO | C103: 282.6 | D103: 285.22 | E103: 277.93 | F103: 273.27 | G103: 265.98 | H103: 289.88 | I103: 297.17 | J103: 301.83 | K103: 292.5 | L103: 280.55 | M103: 56.92457
A104: 95 | B104: HINDUNILVR | C104: 2035.3 | D104: 2050.27 | E104: 2016.03 | F104: 1996.77 | G104: 1962.53 | H104: 2069.53 | I104: 2103.77 | J104: 2123.03 | K104: 2084.5 | L104: 2031 | M104: 12.98616
A105: 96 | B105: HINDZINC | C105: 215.35 | D105: 216.60 | E105: 212.55 | F105: 209.75 | G105: 205.70 | H105: 219.40 | I105: 223.45 | J105: 226.25 | K105: 220.65 | L105: 213.8 | M105: 10.68144
A106: 97 | B106: HUDCO | C106: 41.7 | D106: 42.07 | E106: 40.93 | F106: 40.17 | G106: 39.03 | H106: 42.83 | I106: 43.97 | J106: 44.73 | K106: 43.2 | L106: 41.3 | M106: 20.38838
A107: 98 | B107: HDFC | C107: 2297.25 | D107: 2297.90 | E107: 2279.45 | F107: 2261.65 | G107: 2243.20 | H107: 2315.70 | I107: 2334.15 | J107: 2351.95 | K107: 2316.35 | L107: 2280.1 | M107: 30.27045
A108: 99 | B108: ICICIBANK | C108: 512.6 | D108: 513.13 | E108: 509.77 | F108: 506.93 | G108: 503.57 | H108: 515.97 | I108: 519.33 | J108: 522.17 | K108: 516.5 | L108: 510.3 | M108: 133.24549
A109: 100 | B109: ICICIGI | C109: 1362.9 | D109: 1357.42 | E109: 1340.48 | F109: 1318.07 | G109: 1301.13 | H109: 1379.83 | I109: 1396.77 | J109: 1419.18 | K109: 1374.35 | L109: 1335 | M109: 5.97366
A110: 101 | B110: ICICIPRULI | C110: 502.45 | D110: 502.28 | E110: 498.32 | F110: 494.18 | G110: 490.22 | H110: 506.42 | I110: 510.38 | J110: 514.52 | K110: 506.25 | L110: 498.15 | M110: 17.81266
A111: 102 | B111: IDBI | C111: 37.75 | D111: 38.17 | E111: 36.93 | F111: 36.12 | G111: 34.88 | H111: 38.98 | I111: 40.22 | J111: 41.03 | K111: 39.4 | L111: 37.35 | M111: 65.74524
A112: 103 | B112: IDFCFIRSTB | C112: 46.85 | D112: 46.37 | E112: 44.78 | F112: 42.72 | G112: 41.13 | H112: 48.43 | I112: 50.02 | J112: 52.08 | K112: 47.95 | L112: 44.3 | M112: 860.6584
A113: 104 | B113: ITC | C113: 246.4 | D113: 246.27 | E113: 245.13 | F113: 243.87 | G113: 242.73 | H113: 247.53 | I113: 248.67 | J113: 249.93 | K113: 247.4 | L113: 245 | M113: 98.07979
A114: 105 | B114: IBULHSGFIN | C114: 290.5 | D114: 311.77 | E114: 246.83 | F114: 203.17 | G114: 138.23 | H114: 355.43 | I114: 420.37 | J114: 464.03 | K114: 376.7 | L114: 268.1 | M114: 1734.09205
A115: 106 | B115: IBVENTURES | C115: 171.25 | D115: 175.75 | E115: 164.60 | F115: 157.95 | G115: 146.80 | H115: 182.40 | I115: 193.55 | J115: 200.20 | K115: 186.9 | L115: 169.1 | M115: 27.3792
A116: 107 | B116: INDIANB | C116: 128.9 | D116: 129.80 | E116: 125.10 | F116: 121.30 | G116: 116.60 | H116: 133.60 | I116: 138.30 | J116: 142.10 | K116: 134.5 | L116: 126 | M116: 45.91513
A117: 108 | B117: INDHOTEL | C117: 149.4 | D117: 149.52 | E117: 147.28 | F117: 145.17 | G117: 142.93 | H117: 151.63 | I117: 153.87 | J117: 155.98 | K117: 151.75 | L117: 147.4 | M117: 9.89659
A118: 109 | B118: IOC | C118: 131.4 | D118: 131.93 | E118: 130.17 | F118: 128.93 | G118: 127.17 | H118: 133.17 | I118: 134.93 | J118: 136.17 | K118: 133.7 | L118: 130.7 | M118: 63.2519
A119: 110 | B119: IGL | C119: 413.45 | D119: 413.77 | E119: 409.88 | F119: 406.32 | G119: 402.43 | H119: 417.33 | I119: 421.22 | J119: 424.78 | K119: 417.65 | L119: 410.2 | M119: 16.51963
A120: 111 | B120: INDUSINDBK | C120: 1569.1 | D120: 1567.58 | E120: 1553.57 | F120: 1538.03 | G120: 1524.02 | H120: 1583.12 | I120: 1597.13 | J120: 1612.67 | K120: 1581.6 | L120: 1552.05 | M120: 58.52032
A121: 112 | B121: NAUKRI | C121: 2633.75 | D121: 2610.60 | E121: 2557.20 | F121: 2480.65 | G121: 2427.25 | H121: 2687.15 | I121: 2740.55 | J121: 2817.10 | K121: 2664 | L121: 2534.05 | M121: 4.24688
A122: 113 | B122: INFY | C122: 696.35 | D122: 696.73 | E122: 691.17 | F122: 685.98 | G122: 680.42 | H122: 701.92 | I122: 707.48 | J122: 712.67 | K122: 702.3 | L122: 691.55 | M122: 42.62379
A123: 114 | B123: INDIGO | C123: 1444.2 | D123: 1446.48 | E123: 1418.07 | F123: 1391.93 | G123: 1363.52 | H123: 1472.62 | I123: 1501.03 | J123: 1527.17 | K123: 1474.9 | L123: 1420.35 | M123: 11.06004
A124: 115 | B124: IPCALAB | C124: 1142.6 | D124: 1138.53 | E124: 1119.07 | F124: 1095.53 | G124: 1076.07 | H124: 1162.07 | I124: 1181.53 | J124: 1205.07 | K124: 1158 | L124: 1115 | M124: 1.07186
A125: 116 | B125: JSWENERGY | C125: 73.3 | D125: 74.53 | E125: 71.57 | F125: 69.83 | G125: 66.87 | H125: 76.27 | I125: 79.23 | J125: 80.97 | K125: 77.5 | L125: 72.8 | M125: 11.34209
A126: 117 | B126: JSWSTEEL | C126: 261.55 | D126: 263.70 | E126: 257.90 | F126: 254.25 | G126: 248.45 | H126: 267.35 | I126: 273.15 | J126: 276.80 | K126: 269.5 | L126: 260.05 | M126: 120.38238
A127: 118 | B127: JINDALSTEL | C127: 161 | D127: 161.28 | E127: 157.82 | F127: 154.63 | G127: 151.17 | H127: 164.47 | I127: 167.93 | J127: 171.12 | K127: 164.75 | L127: 158.1 | M127: 174.69017
A128: 119 | B128: JUBLFOOD | C128: 1618.2 | D128: 1609.27 | E128: 1586.13 | F128: 1554.07 | G128: 1530.93 | H128: 1641.33 | I128: 1664.47 | J128: 1696.53 | K128: 1632.4 | L128: 1577.2 | M128: 8.39577
A129: 120 | B129: JUBILANT | C129: 510.2 | D129: 512.23 | E129: 504.62 | F129: 499.03 | G129: 491.42 | H129: 517.82 | I129: 525.43 | J129: 531.02 | K129: 519.85 | L129: 506.65 | M129: 1.50867
A130: 121 | B130: KOTAKBANK | C130: 1615.2 | D130: 1609.83 | E130: 1597.67 | F130: 1580.13 | G130: 1567.97 | H130: 1627.37 | I130: 1639.53 | J130: 1657.07 | K130: 1622 | L130: 1592.3 | M130: 17.30478
A131: 122 | B131: L&TFH | C131: 120.35 | D131: 119.97 | E131: 116.43 | F131: 112.52 | G131: 108.98 | H131: 123.88 | I131: 127.42 | J131: 131.33 | K131: 123.5 | L131: 116.05 | M131: 502.36359
A132: 123 | B132: LTTS | C132: 1490.75 | D132: 1482.92 | E132: 1466.83 | F132: 1442.92 | G132: 1426.83 | H132: 1506.83 | I132: 1522.92 | J132: 1546.83 | K132: 1499 | L132: 1459 | M132: 0.63728
A133: 124 | B133: LICHSGFIN | C133: 464.1 | D133: 469.68 | E133: 456.57 | F133: 449.03 | G133: 435.92 | H133: 477.22 | I133: 490.33 | J133: 497.87 | K133: 482.8 | L133: 462.15 | M133: 44.68754
A134: 125 | B134: LTI | C134: 1689.65 | D134: 1680.75 | E134: 1661.50 | F134: 1633.35 | G134: 1614.10 | H134: 1708.90 | I134: 1728.15 | J134: 1756.30 | K134: 1700 | L134: 1652.6 | M134: 0.45779
A135: 126 | B135: LT | C135: 1330.55 | D135: 1336.25 | E135: 1322.30 | F135: 1314.05 | G135: 1300.10 | H135: 1344.50 | I135: 1358.45 | J135: 1366.70 | K135: 1350.2 | L135: 1328 | M135: 25.15083
A136: 127 | B136: LUPIN | C136: 800.65 | D136: 803.98 | E136: 792.97 | F136: 785.28 | G136: 774.27 | H136: 811.67 | I136: 822.68 | J136: 830.37 | K136: 815 | L136: 796.3 | M136: 33.19942
A137: 128 | B137: MRF | C137: 63397.05 | D137: 63571.12 | E137: 63026.03 | F137: 62655.02 | G137: 62109.93 | H137: 63942.13 | I137: 64487.22 | J137: 64858.23 | K137: 64116.2 | L137: 63200.1 | M137: 0.02797
A138: 129 | B138: MGL | C138: 1043.65 | D138: 1042.17 | E138: 1030.58 | F138: 1017.52 | G138: 1005.93 | H138: 1055.23 | I138: 1066.82 | J138: 1079.88 | K138: 1053.75 | L138: 1029.1 | M138: 3.08135
A139: 130 | B139: M&MFIN | C139: 351.85 | D139: 354.08 | E139: 344.27 | F139: 336.68 | G139: 326.87 | H139: 361.67 | I139: 371.48 | J139: 379.07 | K139: 363.9 | L139: 346.5 | M139: 29.20351
A140: 131 | B140: M&M | C140: 530.55 | D140: 534.20 | E140: 524.60 | F140: 518.65 | G140: 509.05 | H140: 540.15 | I140: 549.75 | J140: 555.70 | K140: 543.8 | L140: 528.25 | M140: 33.28894
A141: 132 | B141: MANAPPURAM | C141: 154.4 | D141: 156.18 | E141: 151.62 | F141: 148.83 | G141: 144.27 | H141: 158.97 | I141: 163.53 | J141: 166.32 | K141: 160.75 | L141: 153.4 | M141: 26.38285
A142: 133 | B142: MRPL | C142: 47.65 | D142: 47.80 | E142: 47.30 | F142: 46.95 | G142: 46.45 | H142: 48.15 | I142: 48.65 | J142: 49.00 | K142: 48.3 | L142: 47.45 | M142: 1.21646
A143: 134 | B143: MARICO | C143: 359.9 | D143: 358.88 | E143: 356.02 | F143: 352.13 | G143: 349.27 | H143: 362.77 | I143: 365.63 | J143: 369.52 | K143: 361.75 | L143: 355 | M143: 10.64035
A144: 135 | B144: MARUTI | C144: 7245.85 | D144: 7223.90 | E144: 7153.95 | F144: 7062.05 | G144: 6992.10 | H144: 7315.80 | I144: 7385.75 | J144: 7477.65 | K144: 7293.85 | L144: 7132 | M144: 7.92083
A145: 136 | B145: MFSL | C145: 504.9 | D145: 508.27 | E145: 499.33 | F145: 493.77 | G145: 484.83 | H145: 513.83 | I145: 522.77 | J145: 528.33 | K145: 517.2 | L145: 502.7 | M145: 7.67933
A146: 137 | B146: MINDTREE | C146: 699.85 | D146: 701.03 | E146: 695.17 | F146: 690.48 | G146: 684.62 | H146: 705.72 | I146: 711.58 | J146: 716.27 | K146: 706.9 | L146: 696.35 | M146: 1.37687
A147: 138 | B147: MOTHERSUMI | C147: 129.55 | D147: 131.15 | E147: 126.55 | F147: 123.55 | G147: 118.95 | H147: 134.15 | I147: 138.75 | J147: 141.75 | K147: 135.75 | L147: 128.15 | M147: 176.42657
A148: 139 | B148: MPHASIS | C148: 878.35 | D148: 870.80 | E148: 854.05 | F148: 829.75 | G148: 813.00 | H148: 895.10 | I148: 911.85 | J148: 936.15 | K148: 887.55 | L148: 846.5 | M148: 1.31681
A149: 140 | B149: MUTHOOTFIN | C149: 678.05 | D149: 683.05 | E149: 670.55 | F149: 663.05 | G149: 650.55 | H149: 690.55 | I149: 703.05 | J149: 710.55 | K149: 695.55 | L149: 675.55 | M149: 6.53796
A150: 141 | B150: NATCOPHARM | C150: 593.75 | D150: 587.85 | E150: 578.60 | F150: 563.45 | G150: 554.20 | H150: 603.00 | I150: 612.25 | J150: 627.40 | K150: 597.1 | L150: 572.7 | M150: 1.29325
A151: 142 | B151: NBCC | C151: 38.75 | D151: 38.17 | E151: 36.93 | F151: 35.12 | G151: 33.88 | H151: 39.98 | I151: 41.22 | J151: 43.03 | K151: 39.4 | L151: 36.35 | M151: 324.70004
A152: 143 | B152: NHPC | C152: 23.8 | D152: 23.85 | E152: 23.70 | F152: 23.60 | G152: 23.45 | H152: 23.95 | I152: 24.10 | J152: 24.20 | K152: 24 | L152: 23.75 | M152: 7.1771
A153: 144 | B153: NMDC | C153: 102.55 | D153: 102.82 | E153: 101.13 | F153: 99.72 | G153: 98.03 | H153: 104.23 | I153: 105.92 | J153: 107.33 | K153: 104.5 | L153: 101.4 | M153: 38.63817
A154: 145 | B154: NTPC | C154: 116.35 | D154: 116.48 | E154: 115.37 | F154: 114.38 | G154: 113.27 | H154: 117.47 | I154: 118.58 | J154: 119.57 | K154: 117.6 | L154: 115.5 | M154: 70.14266
A155: 146 | B155: NATIONALUM | C155: 44.4 | D155: 44.50 | E155: 43.80 | F155: 43.20 | G155: 42.50 | H155: 45.10 | I155: 45.80 | J155: 46.40 | K155: 45.2 | L155: 43.9 | M155: 56.21343
A156: 147 | B156: NESTLEIND | C156: 14453.95 | D156: 14521.32 | E156: 14343.63 | F156: 14233.32 | G156: 14055.63 | H156: 14631.63 | I156: 14809.32 | J156: 14919.63 | K156: 14699 | L156: 14411 | M156: 0.46873
A157: 148 | B157: OBEROIRLTY | C157: 516.9 | D157: 512.88 | E157: 504.77 | F157: 492.63 | G157: 484.52 | H157: 525.02 | I157: 533.13 | J157: 545.27 | K157: 521 | L157: 500.75 | M157: 4.05692
A158: 149 | B158: ONGC | C158: 131.75 | D158: 131.90 | E158: 130.35 | F158: 128.95 | G158: 127.40 | H158: 133.30 | I158: 134.85 | J158: 136.25 | K158: 133.45 | L158: 130.5 | M158: 94.34148
A159: 150 | B159: OIL | C159: 154.05 | D159: 154.37 | E159: 152.73 | F159: 151.42 | G159: 149.78 | H159: 155.68 | I159: 157.32 | J159: 158.63 | K159: 156 | L159: 153.05 | M159: 5.07348
A160: 151 | B160: OFSS | C160: 2931.25 | D160: 2929.78 | E160: 2911.47 | F160: 2891.68 | G160: 2873.37 | H160: 2949.57 | I160: 2967.88 | J160: 2987.67 | K160: 2948.1 | L160: 2910 | M160: 0.06897
A161: 152 | B161: ORIENTBANK | C161: 58.6 | D161: 59.17 | E161: 57.43 | F161: 56.27 | G161: 54.53 | H161: 60.33 | I161: 62.07 | J161: 63.23 | K161: 60.9 | L161: 58 | M161: 15.00017
A162: 153 | B162: PIIND | C162: 1481.85 | D162: 1481.02 | E162: 1462.03 | F162: 1442.22 | G162: 1423.23 | H162: 1500.83 | I162: 1519.82 | J162: 1539.63 | K162: 1500 | L162: 1461.2 | M162: 1.12524
A163: 154 | B163: PNBHOUSING | C163: 532.8 | D163: 538.92 | E163: 521.23 | F163: 509.67 | G163: 491.98 | H163: 550.48 | I163: 568.17 | J163: 579.73 | K163: 556.6 | L163: 527.35 | M163: 6.97826
A164: 155 | B164: PAGEIND | C164: 22049.1 | D164: 21969.80 | E164: 21517.30 | F164: 20985.50 | G164: 20533.00 | H164: 22501.60 | I164: 22954.10 | J164: 23485.90 | K164: 22422.3 | L164: 21438 | M164: 0.36435
A165: 156 | B165: PETRONET | C165: 271.5 | D165: 272.25 | E165: 268.35 | F165: 265.20 | G165: 261.30 | H165: 275.40 | I165: 279.30 | J165: 282.45 | K165: 276.15 | L165: 269.1 | M165: 12.98373
A166: 157 | B166: PFIZER | C166: 4140.3 | D166: 4109.42 | E166: 4020.83 | F166: 3901.37 | G166: 3812.78 | H166: 4228.88 | I166: 4317.47 | J166: 4436.93 | K166: 4198 | L166: 3989.95 | M166: 0.441
A167: 158 | B167: PIDILITIND | C167: 1303 | D167: 1307.67 | E167: 1295.33 | F167: 1287.67 | G167: 1275.33 | H167: 1315.33 | I167: 1327.67 | J167: 1335.33 | K167: 1320 | L167: 1300 | M167: 2.89052
A168: 159 | B168: PEL | C168: 1810.45 | D168: 1816.48 | E168: 1774.97 | F168: 1739.48 | G168: 1697.97 | H168: 1851.97 | I168: 1893.48 | J168: 1928.97 | K168: 1858 | L168: 1781 | M168: 14.9165
A169: 160 | B169: PFC | C169: 114.5 | D169: 115.15 | E169: 113.05 | F169: 111.60 | G169: 109.50 | H169: 116.60 | I169: 118.70 | J169: 120.15 | K169: 117.25 | L169: 113.7 | M169: 33.77192
A170: 161 | B170: POWERGRID | C170: 193.3 | D170: 193.77 | E170: 191.63 | F170: 189.97 | G170: 187.83 | H170: 195.43 | I170: 197.57 | J170: 199.23 | K170: 195.9 | L170: 192.1 | M170: 98.70291
A171: 162 | B171: PRESTIGE | C171: 303.8 | D171: 302.77 | E171: 297.03 | F171: 290.27 | G171: 284.53 | H171: 309.53 | I171: 315.27 | J171: 322.03 | K171: 308.5 | L171: 296 | M171: 5.58952
A172: 163 | B172: PGHH | C172: 11400.05 | D172: 11444.02 | E172: 11298.03 | F172: 11196.02 | G172: 11050.03 | H172: 11546.03 | I172: 11692.02 | J172: 11794.03 | K172: 11590 | L172: 11342 | M172: 0.03036
A173: 164 | B173: PNB | C173: 65.6 | D173: 66.22 | E173: 64.73 | F173: 63.87 | G173: 62.38 | H173: 67.08 | I173: 68.57 | J173: 69.43 | K173: 67.7 | L173: 65.35 | M173: 233.9438
A174: 165 | B174: QUESS | C174: 520 | D174: 521.98 | E174: 514.37 | F174: 508.73 | G174: 501.12 | H174: 527.62 | I174: 535.23 | J174: 540.87 | K174: 529.6 | L174: 516.35 | M174: 1.39783
A175: 166 | B175: RBLBANK | C175: 374.15 | D175: 375.40 | E175: 365.05 | F175: 355.95 | G175: 345.60 | H175: 384.50 | I175: 394.85 | J175: 403.95 | K175: 385.75 | L175: 366.3 | M175: 185.71094
A176: 167 | B176: RECLTD | C176: 137.9 | D176: 137.82 | E176: 136.63 | F176: 135.37 | G176: 134.18 | H176: 139.08 | I176: 140.27 | J176: 141.53 | K176: 139 | L176: 136.55 | M176: 37.91575
A177: 168 | B177: RAJESHEXPO | C177: 674.15 | D177: 673.88 | E177: 664.27 | F177: 654.38 | G177: 644.77 | H177: 683.77 | I177: 693.38 | J177: 703.27 | K177: 683.5 | L177: 664 | M177: 1.49798
A178: 169 | B178: RELIANCE | C178: 1551.15 | D178: 1560.32 | E178: 1538.68 | F178: 1526.22 | G178: 1504.58 | H178: 1572.78 | I178: 1594.42 | J178: 1606.88 | K178: 1581.95 | L178: 1547.85 | M178: 84.84822
A179: 170 | B179: RNAM | C179: 360.1 | D179: 361.70 | E179: 355.40 | F179: 350.70 | G179: 344.40 | H179: 366.40 | I179: 372.70 | J179: 377.40 | K179: 368 | L179: 357 | M179: 14.18101
A180: 171 | B180: SBILIFE | C180: 960.05 | D180: 961.70 | E180: 953.40 | F180: 946.75 | G180: 938.45 | H180: 968.35 | I180: 976.65 | J180: 983.30 | K180: 970 | L180: 955.05 | M180: 10.71258
A181: 172 | B181: SRF | C181: 3201.65 | D181: 3201.53 | E181: 3180.12 | F181: 3158.58 | G181: 3137.17 | H181: 3223.07 | I181: 3244.48 | J181: 3266.02 | K181: 3222.95 | L181: 3180 | M181: 1.44089
A182: 173 | B182: SHREECEM | C182: 20996.55 | D182: 21070.32 | E182: 20841.43 | F182: 20686.32 | G182: 20457.43 | H182: 21225.43 | I182: 21454.32 | J182: 21609.43 | K182: 21299.2 | L182: 20915.2 | M182: 0.18164
A183: 174 | B183: SRTRANSFIN | C183: 1127.2 | D183: 1130.57 | E183: 1112.13 | F183: 1097.07 | G183: 1078.63 | H183: 1145.63 | I183: 1164.07 | J183: 1179.13 | K183: 1149 | L183: 1115.5 | M183: 4.95859
A184: 175 | B184: SIEMENS | C184: 1470.2 | D184: 1476.42 | E184: 1454.83 | F184: 1439.47 | G184: 1417.88 | H184: 1491.78 | I184: 1513.37 | J184: 1528.73 | K184: 1498 | L184: 1461.05 | M184: 4.01229
A185: 176 | B185: SBIN | C185: 341.85 | D185: 343.77 | E185: 338.68 | F185: 335.52 | G185: 330.43 | H185: 346.93 | I185: 352.02 | J185: 355.18 | K185: 348.85 | L185: 340.6 | M185: 230.81823
A186: 177 | B186: SAIL | C186: 39.35 | D186: 39.55 | E186: 38.80 | F186: 38.25 | G186: 37.50 | H186: 40.10 | I186: 40.85 | J186: 41.40 | K186: 40.3 | L186: 39 | M186: 254.26332
A187: 178 | B187: STRTECH | C187: 124 | D187: 125.00 | E187: 121.50 | F187: 119.00 | G187: 115.50 | H187: 127.50 | I187: 131.00 | J187: 133.50 | K187: 128.5 | L187: 122.5 | M187: 21.54793
A188: 179 | B188: SUNPHARMA | C188: 449.85 | D188: 452.62 | E188: 444.68 | F188: 439.52 | G188: 431.58 | H188: 457.78 | I188: 465.72 | J188: 470.88 | K188: 460.55 | L188: 447.45 | M188: 31.98828
A189: 180 | B189: SUNTV | C189: 483 | D189: 485.17 | E189: 475.93 | F189: 468.87 | G189: 459.63 | H189: 492.23 | I189: 501.47 | J189: 508.53 | K189: 494.4 | L189: 478.1 | M189: 9.8725
A190: 181 | B190: SYNGENE | C190: 316.9 | D190: 316.30 | E190: 312.60 | F190: 308.30 | G190: 304.60 | H190: 320.60 | I190: 324.30 | J190: 328.60 | K190: 320 | L190: 312 | M190: 2.08154
A191: 182 | B191: TVSMOTOR | C191: 477.25 | D191: 477.85 | E191: 469.75 | F191: 462.25 | G191: 454.15 | H191: 485.35 | I191: 493.45 | J191: 500.95 | K191: 485.95 | L191: 470.35 | M191: 15.27483
A192: 183 | B192: TATACHEM | C192: 676.9 | D192: 675.55 | E192: 669.25 | F192: 661.60 | G192: 655.30 | H192: 683.20 | I192: 689.50 | J192: 697.15 | K192: 681.85 | L192: 667.9 | M192: 8.55358
A193: 184 | B193: TCS | C193: 2053.25 | D193: 2061.35 | E193: 2037.70 | F193: 2022.15 | G193: 1998.50 | H193: 2076.90 | I193: 2100.55 | J193: 2116.10 | K193: 2085 | L193: 2045.8 | M193: 20.64271
A194: 185 | B194: TATAGLOBAL | C194: 323.15 | D194: 320.87 | E194: 316.83 | F194: 310.52 | G194: 306.48 | H194: 327.18 | I194: 331.22 | J194: 337.53 | K194: 324.9 | L194: 314.55 | M194: 48.91923
A195: 186 | B195: TATAMTRDVR | C195: 71.35 | D195: 72.20 | E195: 70.15 | F195: 68.95 | G195: 66.90 | H195: 73.40 | I195: 75.45 | J195: 76.65 | K195: 74.25 | L195: 71 | M195: 40.30491
A196: 187 | B196: TATAMOTORS | C196: 161.5 | D196: 163.28 | E196: 158.82 | F196: 156.13 | G196: 151.67 | H196: 165.97 | I196: 170.43 | J196: 173.12 | K196: 167.75 | L196: 160.6 | M196: 200.10205
A197: 188 | B197: TATAPOWER | C197: 57.35 | D197: 57.62 | E197: 56.28 | F197: 55.22 | G197: 53.88 | H197: 58.68 | I197: 60.02 | J197: 61.08 | K197: 58.95 | L197: 56.55 | M197: 134.01893
A198: 189 | B198: TATASTEEL | C198: 427.5 | D198: 426.03 | E198: 422.57 | F198: 417.63 | G198: 414.17 | H198: 430.97 | I198: 434.43 | J198: 439.37 | K198: 429.5 | L198: 421.1 | M198: 126.31956
A199: 190 | B199: TECHM | C199: 761.45 | D199: 764.07 | E199: 755.78 | F199: 750.12 | G199: 741.83 | H199: 769.73 | I199: 778.02 | J199: 783.68 | K199: 772.35 | L199: 758.4 | M199: 12.36902
A200: 191 | B200: NIACL | C200: 148.35 | D200: 149.30 | E200: 146.10 | F200: 143.85 | G200: 140.65 | H200: 151.55 | I200: 154.75 | J200: 157.00 | K200: 152.5 | L200: 147.05 | M200: 2.64176
A201: 192 | B201: RAMCOCEM | C201: 800.7 | D201: 805.57 | E201: 789.63 | F201: 778.57 | G201: 762.63 | H201: 816.63 | I201: 832.57 | J201: 843.63 | K201: 821.5 | L201: 794.5 | M201: 5.56608
A202: 193 | B202: TITAN | C202: 1159.7 | D202: 1164.42 | E202: 1150.28 | F202: 1140.87 | G202: 1126.73 | H202: 1173.83 | I202: 1187.97 | J202: 1197.38 | K202: 1178.55 | L202: 1155 | M202: 12.44953
A203: 194 | B203: TORNTPHARM | C203: 1898.6 | D203: 1894.72 | E203: 1868.93 | F203: 1839.27 | G203: 1813.48 | H203: 1924.38 | I203: 1950.17 | J203: 1979.83 | K203: 1920.5 | L203: 1865.05 | M203: 3.13325
A204: 195 | B204: TORNTPOWER | C204: 280.1 | D204: 281.93 | E204: 276.87 | F204: 273.63 | G204: 268.57 | H204: 285.17 | I204: 290.23 | J204: 293.47 | K204: 287 | L204: 278.7 | M204: 14.74982
A205: 196 | B205: UPL | C205: 573.25 | D205: 575.82 | E205: 568.83 | F205: 564.42 | G205: 557.43 | H205: 580.23 | I205: 587.22 | J205: 591.63 | K205: 582.8 | L205: 571.4 | M205: 18.35816
... 30 more rows

Sheet MidCap Intra
L5: Back To Main Page
A6: FOR INTRA DAY TRADING | K6: =Main!B10 -> 2019-12-02
A9: Sr.no | B9: Scrip | C9: CLOSE RATE | D9: Pivot Point | E9: Supports | H9: Resistances
C10: Point | E10: S1 | F10: S2 | G10: S3 | H10: R1 | I10: R2 | J10: R3 | K10: HIGH | L10: LOW | M10: Total Trade Quanity in Lakhs
A11: 1 | B11: 3MINDIA | C11: 22241.75 | D11: 22299.43 | E11: 22099.37 | F11: 21956.98 | G11: 21756.92 | H11: 22441.82 | I11: 22641.88 | J11: 22784.27 | K11: 22499.5 | L11: 22157.05 | M11: 0.01233
A12: 2 | B12: ACC | C12: 1522.15 | D12: 1522.38 | E12: 1509.77 | F12: 1497.38 | G12: 1484.77 | H12: 1534.77 | I12: 1547.38 | J12: 1559.77 | K12: 1535 | L12: 1510 | M12: 8.51825
A13: 3 | B13: AIAENG | C13: 1644.25 | D13: 1640.77 | E13: 1629.53 | F13: 1614.82 | G13: 1603.58 | H13: 1655.48 | I13: 1666.72 | J13: 1681.43 | K13: 1652 | L13: 1626.05 | M13: 0.105
A14: 4 | B14: APLAPOLLO | C14: 1565.95 | D14: 1563.27 | E14: 1553.93 | F14: 1541.92 | G14: 1532.58 | H14: 1575.28 | I14: 1584.62 | J14: 1596.63 | K14: 1572.6 | L14: 1551.25 | M14: 0.10771
A15: 5 | B15: AUBANK | C15: 823.75 | D15: 818.77 | E15: 810.98 | F15: 798.22 | G15: 790.43 | H15: 831.53 | I15: 839.32 | J15: 852.08 | K15: 826.55 | L15: 806 | M15: 1.77876
A16: 6 | B16: AAVAS | C16: 1773.25 | D16: 1788.42 | E16: 1736.83 | F16: 1700.42 | G16: 1648.83 | H16: 1824.83 | I16: 1876.42 | J16: 1912.83 | K16: 1840 | L16: 1752 | M16: 4.15805
A17: 7 | B17: ABBOTINDIA | C17: 12578.4 | D17: 12626.80 | E17: 12461.60 | F17: 12344.80 | G17: 12179.60 | H17: 12743.60 | I17: 12908.80 | J17: 13025.60 | K17: 12792 | L17: 12510 | M17: 0.05272
A18: 8 | B18: ADANIGAS | C18: 161.35 | D18: 159.72 | E18: 150.73 | F18: 140.12 | G18: 131.13 | H18: 170.33 | I18: 179.32 | J18: 189.93 | K18: 168.7 | L18: 149.1 | M18: 104.14685
A19: 9 | B19: ADANIGREEN | C19: 137.1 | D19: 136.07 | E19: 133.38 | F19: 129.67 | G19: 126.98 | H19: 139.78 | I19: 142.47 | J19: 146.18 | K19: 138.75 | L19: 132.35 | M19: 57.16364
A20: 10 | B20: ADANIPORTS | C20: 382.05 | D20: 379.27 | E20: 373.58 | F20: 365.12 | G20: 359.43 | H20: 387.73 | I20: 393.42 | J20: 401.88 | K20: 384.95 | L20: 370.8 | M20: 301.11277
A21: 11 | B21: ADANIPOWER | C21: 63.6 | D21: 63.92 | E21: 61.18 | F21: 58.77 | G21: 56.03 | H21: 66.33 | I21: 69.07 | J21: 71.48 | K21: 66.65 | L21: 61.5 | M21: 201.90214
A22: 12 | B22: ADANITRANS | C22: 310.15 | D22: 302.18 | E22: 286.87 | F22: 263.58 | G22: 248.27 | H22: 325.47 | I22: 340.78 | J22: 364.07 | K22: 317.5 | L22: 278.9 | M22: 20.83819
A23: 13 | B23: ABCAPITAL | C23: 109.45 | D23: 110.95 | E23: 107.30 | F23: 105.15 | G23: 101.50 | H23: 113.10 | I23: 116.75 | J23: 118.90 | K23: 114.6 | L23: 108.8 | M23: 60.00573
A24: 14 | B24: ABFRL | C24: 225.25 | D24: 224.95 | E24: 221.90 | F24: 218.55 | G24: 215.50 | H24: 228.30 | I24: 231.35 | J24: 234.70 | K24: 228 | L24: 221.6 | M24: 9.03609
A25: 15 | B25: ADVENZYMES | C25: 165.55 | D25: 166.77 | E25: 163.58 | F25: 161.62 | G25: 158.43 | H25: 168.73 | I25: 171.92 | J25: 173.88 | K25: 169.95 | L25: 164.8 | M25: 1.1526
A26: 16 | B26: AEGISCHEM | C26: 195.6 | D26: 196.27 | E26: 193.63 | F26: 191.67 | G26: 189.03 | H26: 198.23 | I26: 200.87 | J26: 202.83 | K26: 198.9 | L26: 194.3 | M26: 1.75797
A27: 17 | B27: AJANTPHARM | C27: 996.9 | D27: 997.60 | E27: 990.30 | F27: 983.70 | G27: 976.40 | H27: 1004.20 | I27: 1011.50 | J27: 1018.10 | K27: 1004.9 | L27: 991 | M27: 0.77054
A28: 18 | B28: AKZOINDIA | C28: 1935.05 | D28: 1928.55 | E28: 1909.15 | F28: 1883.25 | G28: 1863.85 | H28: 1954.45 | I28: 1973.85 | J28: 1999.75 | K28: 1947.95 | L28: 1902.65 | M28: 0.11472
A29: 19 | B29: APLLTD | C29: 551.9 | D29: 559.33 | E29: 541.57 | F29: 531.23 | G29: 513.47 | H29: 569.67 | I29: 587.43 | J29: 597.77 | K29: 577.1 | L29: 549 | M29: 0.5826
A30: 20 | B30: ALKEM | C30: 2029.1 | D30: 2023.68 | E30: 2007.42 | F30: 1985.73 | G30: 1969.47 | H30: 2045.37 | I30: 2061.63 | J30: 2083.32 | K30: 2039.95 | L30: 2002 | M30: 0.33717
A31: 21 | B31: ALBK | C31: 23.85 | D31: 24.05 | E31: 23.50 | F31: 23.15 | G31: 22.60 | H31: 24.40 | I31: 24.95 | J31: 25.30 | K31: 24.6 | L31: 23.7 | M31: 24.90734
A32: 22 | B32: ALLCARGO | C32: 93.25 | D32: 93.25 | E32: 92.00 | F32: 90.75 | G32: 89.50 | H32: 94.50 | I32: 95.75 | J32: 97.00 | K32: 94.5 | L32: 92 | M32: 0.66286
A33: 23 | B33: AMARAJABAT | C33: 750.65 | D33: 750.17 | E33: 744.03 | F33: 737.42 | G33: 731.28 | H33: 756.78 | I33: 762.92 | J33: 769.53 | K33: 756.3 | L33: 743.55 | M33: 2.60369
A34: 24 | B34: AMBER | C34: 1032 | D34: 1031.50 | E34: 1013.00 | F34: 994.00 | G34: 975.50 | H34: 1050.50 | I34: 1069.00 | J34: 1088.00 | K34: 1050 | L34: 1012.5 | M34: 0.73165
A35: 25 | B35: AMBUJACEM | C35: 204.65 | D35: 205.58 | E35: 202.97 | F35: 201.28 | G35: 198.67 | H35: 207.27 | I35: 209.88 | J35: 211.57 | K35: 208.2 | L35: 203.9 | M35: 27.88327
A36: 26 | B36: ANDHRABANK | C36: 18.8 | D36: 18.90 | E36: 18.65 | F36: 18.50 | G36: 18.25 | H36: 19.05 | I36: 19.30 | J36: 19.45 | K36: 19.15 | L36: 18.75 | M36: 10.70605
A37: 27 | B37: APOLLOHOSP | C37: 1441.2 | D37: 1446.35 | E37: 1425.85 | F37: 1410.50 | G37: 1390.00 | H37: 1461.70 | I37: 1482.20 | J37: 1497.55 | K37: 1466.85 | L37: 1431 | M37: 3.5972
A38: 28 | B38: APOLLOTYRE | C38: 168.05 | D38: 169.38 | E38: 165.97 | F38: 163.88 | G38: 160.47 | H38: 171.47 | I38: 174.88 | J38: 176.97 | K38: 172.8 | L38: 167.3 | M38: 20.77562
A39: 29 | B39: ARVINDFASN | C39: 343.3 | D39: 342.65 | E39: 339.30 | F39: 335.30 | G39: 331.95 | H39: 346.65 | I39: 350.00 | J39: 354.00 | K39: 346 | L39: 338.65 | M39: 0.88125
A40: 30 | B40: ASHOKLEY | C40: 79.15 | D40: 79.83 | E40: 77.57 | F40: 75.98 | G40: 73.72 | H40: 81.42 | I40: 83.68 | J40: 85.27 | K40: 82.1 | L40: 78.25 | M40: 224.46824
A41: 31 | B41: ASHOKA | C41: 96.55 | D41: 97.12 | E41: 95.43 | F41: 94.32 | G41: 92.63 | H41: 98.23 | I41: 99.92 | J41: 101.03 | K41: 98.8 | L41: 96 | M41: 26.56787
A42: 32 | B42: ASIANPAINT | C42: 1706.15 | D42: 1701.30 | E42: 1682.20 | F42: 1658.25 | G42: 1639.15 | H42: 1725.25 | I42: 1744.35 | J42: 1768.30 | K42: 1720.4 | L42: 1677.35 | M42: 18.9029
A43: 33 | B43: ASTERDM | C43: 160.4 | D43: 158.17 | E43: 153.23 | F43: 146.07 | G43: 141.13 | H43: 165.33 | I43: 170.27 | J43: 177.43 | K43: 163.1 | L43: 151 | M43: 6.1196
A44: 34 | B44: ASTRAZEN | C44: 2649.15 | D44: 2660.72 | E44: 2613.43 | F44: 2577.72 | G44: 2530.43 | H44: 2696.43 | I44: 2743.72 | J44: 2779.43 | K44: 2708 | L44: 2625 | M44: 0.07302
A45: 35 | B45: ASTRAL | C45: 1133.95 | D45: 1130.98 | E45: 1113.97 | F45: 1093.98 | G45: 1076.97 | H45: 1150.97 | I45: 1167.98 | J45: 1187.97 | K45: 1148 | L45: 1111 | M45: 2.43025
A46: 36 | B46: ATUL | C46: 4046.3 | D46: 4064.45 | E46: 4013.90 | F46: 3981.50 | G46: 3930.95 | H46: 4096.85 | I46: 4147.40 | J46: 4179.80 | K46: 4115 | L46: 4032.05 | M46: 0.04158
A47: 37 | B47: AUROPHARMA | C47: 449.9 | D47: 452.45 | E47: 443.05 | F47: 436.20 | G47: 426.80 | H47: 459.30 | I47: 468.70 | J47: 475.55 | K47: 461.85 | L47: 445.6 | M47: 41.29315
A48: 38 | B48: AVANTIFEED | C48: 511.6 | D48: 512.20 | E48: 505.40 | F48: 499.20 | G48: 492.40 | H48: 518.40 | I48: 525.20 | J48: 531.40 | K48: 519 | L48: 506 | M48: 2.69215
A49: 39 | B49: DMART | C49: 1822.5 | D49: 1832.17 | E49: 1802.33 | F49: 1782.17 | G49: 1752.33 | H49: 1852.33 | I49: 1882.17 | J49: 1902.33 | K49: 1862 | L49: 1812 | M49: 4.35326
A50: 40 | B50: AXISBANK | C50: 739.05 | D50: 743.97 | E50: 731.58 | F50: 724.12 | G50: 711.73 | H50: 751.43 | I50: 763.82 | J50: 771.28 | K50: 756.35 | L50: 736.5 | M50: 126.74173
A51: 41 | B51: BASF | C51: 1000.35 | D51: 998.40 | E51: 984.80 | F51: 969.25 | G51: 955.65 | H51: 1013.95 | I51: 1027.55 | J51: 1043.10 | K51: 1012 | L51: 982.85 | M51: 0.18801
A52: 42 | B52: BEML | C52: 997.8 | D52: 1005.27 | E52: 983.53 | F52: 969.27 | G52: 947.53 | H52: 1019.53 | I52: 1041.27 | J52: 1055.53 | K52: 1027 | L52: 991 | M52: 7.20074
A53: 43 | B53: BSE | C53: 505.2 | D53: 504.10 | E53: 501.20 | F53: 497.20 | G53: 494.30 | H53: 508.10 | I53: 511.00 | J53: 515.00 | K53: 507 | L53: 500.1 | M53: 0.48034
A54: 44 | B54: BAJAJ-AUTO | C54: 3176 | D54: 3173.03 | E54: 3150.07 | F54: 3124.13 | G54: 3101.17 | H54: 3198.97 | I54: 3221.93 | J54: 3247.87 | K54: 3196 | L54: 3147.1 | M54: 2.03765
A55: 45 | B55: BAJAJCON | C55: 246.1 | D55: 246.38 | E55: 242.77 | F55: 239.43 | G55: 235.82 | H55: 249.72 | I55: 253.33 | J55: 256.67 | K55: 250 | L55: 243.05 | M55: 1.36809
A56: 46 | B56: BAJAJELEC | C56: 339.7 | D56: 340.12 | E56: 334.58 | F56: 329.47 | G56: 323.93 | H56: 345.23 | I56: 350.77 | J56: 355.88 | K56: 345.65 | L56: 335 | M56: 0.89151
A57: 47 | B57: BAJFINANCE | C57: 4074.2 | D57: 4090.52 | E57: 4046.03 | F57: 4017.87 | G57: 3973.38 | H57: 4118.68 | I57: 4163.17 | J57: 4191.33 | K57: 4135 | L57: 4062.35 | M57: 8.31983
A58: 48 | B58: BAJAJFINSV | C58: 9110.25 | D58: 9147.12 | E58: 9058.43 | F58: 9006.62 | G58: 8917.93 | H58: 9198.93 | I58: 9287.62 | J58: 9339.43 | K58: 9235.8 | L58: 9095.3 | M58: 1.48877
A59: 49 | B59: BAJAJHLDNG | C59: 3564.35 | D59: 3580.50 | E59: 3535.85 | F59: 3507.35 | G59: 3462.70 | H59: 3609.00 | I59: 3653.65 | J59: 3682.15 | K59: 3625.15 | L59: 3552 | M59: 0.12025
A60: 50 | B60: BALKRISIND | C60: 926.25 | D60: 926.48 | E60: 911.02 | F60: 895.78 | G60: 880.32 | H60: 941.72 | I60: 957.18 | J60: 972.42 | K60: 941.95 | L60: 911.25 | M60: 7.76081
A61: 51 | B61: BALMLAWRIE | C61: 194.55 | D61: 194.85 | E61: 193.70 | F61: 192.85 | G61: 191.70 | H61: 195.70 | I61: 196.85 | J61: 197.70 | K61: 196 | L61: 194 | M61: 0.88461
A62: 52 | B62: BALRAMCHIN | C62: 153 | D62: 151.48 | E62: 148.97 | F62: 144.93 | G62: 142.42 | H62: 155.52 | I62: 158.03 | J62: 162.07 | K62: 154 | L62: 147.45 | M62: 10.65064
A63: 53 | B63: BANDHANBNK | C63: 581.2 | D63: 583.10 | E63: 569.20 | F63: 557.20 | G63: 543.30 | H63: 595.10 | I63: 609.00 | J63: 621.00 | K63: 597 | L63: 571.1 | M63: 31.70352
A64: 54 | B64: BANKBARODA | C64: 104.9 | D64: 105.88 | E64: 103.52 | F64: 102.13 | G64: 99.77 | H64: 107.27 | I64: 109.63 | J64: 111.02 | K64: 108.25 | L64: 104.5 | M64: 360.6133
A65: 55 | B65: BANKINDIA | C65: 75.9 | D65: 76.45 | E65: 74.95 | F65: 74.00 | G65: 72.50 | H65: 77.40 | I65: 78.90 | J65: 79.85 | K65: 77.95 | L65: 75.5 | M65: 43.33117
A66: 56 | B66: MAHABANK | C66: 12.45 | D66: 12.53 | E66: 12.27 | F66: 12.08 | G66: 11.82 | H66: 12.72 | I66: 12.98 | J66: 13.17 | K66: 12.8 | L66: 12.35 | M66: 5.01078
A67: 57 | B67: BATAINDIA | C67: 1629.05 | D67: 1632.08 | E67: 1619.02 | F67: 1608.98 | G67: 1595.92 | H67: 1642.12 | I67: 1655.18 | J67: 1665.22 | K67: 1645.15 | L67: 1622.05 | M67: 3.10263
A68: 58 | B68: BAYERCROP | C68: 3716.35 | D68: 3683.05 | E68: 3626.10 | F68: 3535.85 | G68: 3478.90 | H68: 3773.30 | I68: 3830.25 | J68: 3920.50 | K68: 3740 | L68: 3592.8 | M68: 0.05841
A69: 59 | B69: BERGEPAINT | C69: 496.55 | D69: 494.10 | E69: 488.45 | F69: 480.35 | G69: 474.70 | H69: 502.20 | I69: 507.85 | J69: 515.95 | K69: 499.75 | L69: 486 | M69: 14.84202
A70: 60 | B70: BDL | C70: 333.35 | D70: 337.43 | E70: 324.92 | F70: 316.48 | G70: 303.97 | H70: 345.87 | I70: 358.38 | J70: 366.82 | K70: 349.95 | L70: 329 | M70: 0.98894
A71: 61 | B71: BEL | C71: 103.1 | D71: 103.72 | E71: 102.03 | F71: 100.97 | G71: 99.28 | H71: 104.78 | I71: 106.47 | J71: 107.53 | K71: 105.4 | L71: 102.65 | M71: 48.87239
A72: 62 | B72: BHARATFORG | C72: 464.4 | D72: 464.25 | E72: 459.50 | F72: 454.60 | G72: 449.85 | H72: 469.15 | I72: 473.90 | J72: 478.80 | K72: 469 | L72: 459.35 | M72: 10.39535
A73: 63 | B73: BHEL | C73: 53.3 | D73: 53.77 | E73: 52.58 | F73: 51.87 | G73: 50.68 | H73: 54.48 | I73: 55.67 | J73: 56.38 | K73: 54.95 | L73: 53.05 | M73: 96.58261
A74: 64 | B74: BPCL | C74: 511.55 | D74: 511.73 | E74: 505.02 | F74: 498.48 | G74: 491.77 | H74: 518.27 | I74: 524.98 | J74: 531.52 | K74: 518.45 | L74: 505.2 | M74: 75.2945
A75: 65 | B75: BHARTIARTL | C75: 442.45 | D75: 442.42 | E75: 435.18 | F75: 427.92 | G75: 420.68 | H75: 449.68 | I75: 456.92 | J75: 464.18 | K75: 449.65 | L75: 435.15 | M75: 200.10753
A76: 66 | B76: INFRATEL | C76: 276.3 | D76: 266.03 | E76: 248.27 | F76: 220.23 | G76: 202.47 | H76: 294.07 | I76: 311.83 | J76: 339.87 | K76: 283.8 | L76: 238 | M76: 523.05477
A77: 67 | B77: BIOCON | C77: 281.65 | D77: 283.53 | E77: 278.67 | F77: 275.68 | G77: 270.82 | H77: 286.52 | I77: 291.38 | J77: 294.37 | K77: 288.4 | L77: 280.55 | M77: 37.44414
A78: 68 | B78: BIRLACORPN | C78: 654.2 | D78: 652.58 | E78: 645.32 | F78: 636.43 | G78: 629.17 | H78: 661.47 | I78: 668.73 | J78: 677.62 | K78: 659.85 | L78: 643.7 | M78: 0.22467
A79: 69 | B79: BSOFT | C79: 69.85 | D79: 70.12 | E79: 68.73 | F79: 67.62 | G79: 66.23 | H79: 71.23 | I79: 72.62 | J79: 73.73 | K79: 71.5 | L79: 69 | M79: 1.17403
A80: 70 | B80: BLISSGVS | C80: 143.8 | D80: 144.42 | E80: 142.38 | F80: 140.97 | G80: 138.93 | H80: 145.83 | I80: 147.87 | J80: 149.28 | K80: 146.45 | L80: 143 | M80: 1.55274
A81: 71 | B81: BLUEDART | C81: 2050.7 | D81: 2058.23 | E81: 2042.47 | F81: 2034.23 | G81: 2018.47 | H81: 2066.47 | I81: 2082.23 | J81: 2090.47 | K81: 2074 | L81: 2050 | M81: 0.10845
A82: 72 | B82: BLUESTARCO | C82: 786.25 | D82: 783.75 | E82: 777.00 | F82: 767.75 | G82: 761.00 | H82: 793.00 | I82: 799.75 | J82: 809.00 | K82: 790.5 | L82: 774.5 | M82: 0.40748
A83: 73 | B83: BBTC | C83: 1106.4 | D83: 1108.18 | E83: 1089.92 | F83: 1073.43 | G83: 1055.17 | H83: 1124.67 | I83: 1142.93 | J83: 1159.42 | K83: 1126.45 | L83: 1091.7 | M83: 1.60907
A84: 74 | B84: BOMDYEING | C84: 82.35 | D84: 81.32 | E84: 79.23 | F84: 76.12 | G84: 74.03 | H84: 84.43 | I84: 86.52 | J84: 89.63 | K84: 83.4 | L84: 78.2 | M84: 49.08145
A85: 75 | B85: BOSCHLTD | C85: 16142.6 | D85: 16149.50 | E85: 15953.20 | F85: 15763.80 | G85: 15567.50 | H85: 16338.90 | I85: 16535.20 | J85: 16724.60 | K85: 16345.8 | L85: 15960.1 | M85: 0.21533
A86: 76 | B86: BRIGADE | C86: 205 | D86: 203.33 | E86: 200.67 | F86: 196.33 | G86: 193.67 | H86: 207.67 | I86: 210.33 | J86: 214.67 | K86: 206 | L86: 199 | M86: 0.65952
A87: 77 | B87: BRITANNIA | C87: 3057.7 | D87: 3067.57 | E87: 3040.13 | F87: 3022.57 | G87: 2995.13 | H87: 3085.13 | I87: 3112.57 | J87: 3130.13 | K87: 3095 | L87: 3050 | M87: 2.21117
A88: 78 | B88: CARERATING | C88: 477.45 | D88: 477.92 | E88: 472.78 | F88: 468.12 | G88: 462.98 | H88: 482.58 | I88: 487.72 | J88: 492.38 | K88: 483.05 | L88: 473.25 | M88: 0.93986
A89: 79 | B89: CCL | C89: 205.1 | D89: 205.88 | E89: 203.22 | F89: 201.33 | G89: 198.67 | H89: 207.77 | I89: 210.43 | J89: 212.32 | K89: 208.55 | L89: 204 | M89: 0.30357
A90: 80 | B90: CESC | C90: 751.1 | D90: 754.07 | E90: 744.53 | F90: 737.97 | G90: 728.43 | H90: 760.63 | I90: 770.17 | J90: 776.73 | K90: 763.6 | L90: 747.5 | M90: 4.01188
A91: 81 | B91: CGPOWER | C91: 13.7 | D91: 13.80 | E91: 13.55 | F91: 13.40 | G91: 13.15 | H91: 13.95 | I91: 14.20 | J91: 14.35 | K91: 14.05 | L91: 13.65 | M91: 9.70552
A92: 82 | B92: CRISIL | C92: 1595.95 | D92: 1586.83 | E92: 1564.67 | F92: 1533.38 | G92: 1511.22 | H92: 1618.12 | I92: 1640.28 | J92: 1671.57 | K92: 1609 | L92: 1555.55 | M92: 0.17501
A93: 83 | B93: CADILAHC | C93: 254.15 | D93: 257.27 | E93: 248.93 | F93: 243.72 | G93: 235.38 | H93: 262.48 | I93: 270.82 | J93: 276.03 | K93: 265.6 | L93: 252.05 | M93: 27.49988
A94: 84 | B94: CANFINHOME | C94: 398.3 | D94: 395.68 | E94: 391.87 | F94: 385.43 | G94: 381.62 | H94: 402.12 | I94: 405.93 | J94: 412.37 | K94: 399.5 | L94: 389.25 | M94: 2.85923
A95: 85 | B95: CANBK | C95: 227.15 | D95: 229.18 | E95: 224.12 | F95: 221.08 | G95: 216.02 | H95: 232.22 | I95: 237.28 | J95: 240.32 | K95: 234.25 | L95: 226.15 | M95: 77.75704
A96: 86 | B96: CAPLIPOINT | C96: 314 | D96: 316.73 | E96: 306.77 | F96: 299.53 | G96: 289.57 | H96: 323.97 | I96: 333.93 | J96: 341.17 | K96: 326.7 | L96: 309.5 | M96: 1.06649
A97: 87 | B97: CGCL | C97: 189.15 | D97: 189.03 | E97: 187.22 | F97: 185.28 | G97: 183.47 | H97: 190.97 | I97: 192.78 | J97: 194.72 | K97: 190.85 | L97: 187.1 | M97: 2.32171
A98: 88 | B98: CARBORUNIV | C98: 328.25 | D98: 325.62 | E98: 318.63 | F98: 309.02 | G98: 302.03 | H98: 335.23 | I98: 342.22 | J98: 351.83 | K98: 332.6 | L98: 316 | M98: 0.73672
A99: 89 | B99: CASTROLIND | C99: 140.75 | D99: 141.47 | E99: 139.28 | F99: 137.82 | G99: 135.63 | H99: 142.93 | I99: 145.12 | J99: 146.58 | K99: 143.65 | L99: 140 | M99: 18.14766
A100: 90 | B100: CEATLTD | C100: 941.85 | D100: 941.43 | E100: 937.92 | F100: 933.98 | G100: 930.47 | H100: 945.37 | I100: 948.88 | J100: 952.82 | K100: 944.95 | L100: 937.5 | M100: 0.71455
A101: 91 | B101: CENTRALBK | C101: 22.15 | D101: 22.27 | E101: 21.68 | F101: 21.22 | G101: 20.63 | H101: 22.73 | I101: 23.32 | J101: 23.78 | K101: 22.85 | L101: 21.8 | M101: 8.30628
A102: 92 | B102: CDSL | C102: 227.45 | D102: 228.65 | E102: 224.80 | F102: 222.15 | G102: 218.30 | H102: 231.30 | I102: 235.15 | J102: 237.80 | K102: 232.5 | L102: 226 | M102: 20.876
A103: 93 | B103: CENTURYPLY | C103: 173.15 | D103: 173.43 | E103: 171.17 | F103: 169.18 | G103: 166.92 | H103: 175.42 | I103: 177.68 | J103: 179.67 | K103: 175.7 | L103: 171.45 | M103: 1.24003
A104: 94 | B104: CERA | C104: 2551.05 | D104: 2535.57 | E104: 2497.13 | F104: 2443.22 | G104: 2404.78 | H104: 2589.48 | I104: 2627.92 | J104: 2681.83 | K104: 2574 | L104: 2481.65 | M104: 0.0676
A105: 95 | B105: CHALET | C105: 354.95 | D105: 349.30 | E105: 339.15 | F105: 323.35 | G105: 313.20 | H105: 365.10 | I105: 375.25 | J105: 391.05 | K105: 359.45 | L105: 333.5 | M105: 0.93344
A106: 96 | B106: CHAMBLFERT | C106: 148.95 | D106: 150.48 | E106: 146.07 | F106: 143.18 | G106: 138.77 | H106: 153.37 | I106: 157.78 | J106: 160.67 | K106: 154.9 | L106: 147.6 | M106: 6.23802
A107: 97 | B107: CHENNPETRO | C107: 125.7 | D107: 126.35 | E107: 124.35 | F107: 123.00 | G107: 121.00 | H107: 127.70 | I107: 129.70 | J107: 131.05 | K107: 128.35 | L107: 125 | M107: 1.58857
A108: 98 | B108: CHOLAHLDNG | C108: 496.15 | D108: 490.08 | E108: 481.22 | F108: 466.28 | G108: 457.42 | H108: 505.02 | I108: 513.88 | J108: 528.82 | K108: 498.95 | L108: 475.15 | M108: 0.41601
A109: 99 | B109: CHOLAFIN | C109: 312.15 | D109: 313.95 | E109: 309.00 | F109: 305.85 | G109: 300.90 | H109: 317.10 | I109: 322.05 | J109: 325.20 | K109: 318.9 | L109: 310.8 | M109: 9.40105
A110: 100 | B110: CIPLA | C110: 466.7 | D110: 468.57 | E110: 463.73 | F110: 460.77 | G110: 455.93 | H110: 471.53 | I110: 476.37 | J110: 479.33 | K110: 473.4 | L110: 465.6 | M110: 13.07574
A111: 101 | B111: CUB | C111: 224.8 | D111: 224.43 | E111: 221.87 | F111: 218.93 | G111: 216.37 | H111: 227.37 | I111: 229.93 | J111: 232.87 | K111: 227 | L111: 221.5 | M111: 11.90492
A112: 102 | B112: COALINDIA | C112: 205.25 | D112: 205.97 | E112: 203.13 | F112: 201.02 | G112: 198.18 | H112: 208.08 | I112: 210.92 | J112: 213.03 | K112: 208.8 | L112: 203.85 | M112: 54.22867
A113: 103 | B113: COCHINSHIP | C113: 401.25 | D113: 401.83 | E113: 395.92 | F113: 390.58 | G113: 384.67 | H113: 407.17 | I113: 413.08 | J113: 418.42 | K113: 407.75 | L113: 396.5 | M113: 1.07967
A114: 104 | B114: COFFEEDAY | C114: 49.65 | D114: 49.08 | E114: 48.37 | F114: 47.08 | G114: 46.37 | H114: 50.37 | I114: 51.08 | J114: 52.37 | K114: 49.8 | L114: 47.8 | M114: 25.54237
A115: 105 | B115: COLPAL | C115: 1474.2 | D115: 1471.55 | E115: 1456.50 | F115: 1438.80 | G115: 1423.75 | H115: 1489.25 | I115: 1504.30 | J115: 1522.00 | K115: 1486.6 | L115: 1453.85 | M115: 7.00482
A116: 106 | B116: CONCOR | C116: 579 | D116: 571.18 | E116: 561.62 | F116: 544.23 | G116: 534.67 | H116: 588.57 | I116: 598.13 | J116: 615.52 | K116: 580.75 | L116: 553.8 | M116: 23.42285
A117: 107 | B117: COROMANDEL | C117: 474.9 | D117: 474.03 | E117: 471.22 | F117: 467.53 | G117: 464.72 | H117: 477.72 | I117: 480.53 | J117: 484.22 | K117: 476.85 | L117: 470.35 | M117: 1.04634
A118: 108 | B118: CORPBANK | C118: 24.2 | D118: 24.52 | E118: 23.28 | F118: 22.37 | G118: 21.13 | H118: 25.43 | I118: 26.67 | J118: 27.58 | K118: 25.75 | L118: 23.6 | M118: 19.73916
A119: 109 | B119: COX&KINGS | C119: 1.85 | D119: 1.88 | E119: 1.82 | F119: 1.78 | G119: 1.72 | H119: 1.92 | I119: 1.98 | J119: 2.02 | K119: 1.95 | L119: 1.85 | M119: 101.30993
A120: 110 | B120: CREDITACC | C120: 802 | D120: 814.33 | E120: 779.67 | F120: 757.33 | G120: 722.67 | H120: 836.67 | I120: 871.33 | J120: 893.67 | K120: 849 | L120: 792 | M120: 2.91371
A121: 111 | B121: CROMPTON | C121: 254.65 | D121: 252.25 | E121: 248.50 | F121: 242.35 | G121: 238.60 | H121: 258.40 | I121: 262.15 | J121: 268.30 | K121: 256 | L121: 246.1 | M121: 3.93032
A122: 112 | B122: CUMMINSIND | C122: 542.25 | D122: 544.08 | E122: 536.17 | F122: 530.08 | G122: 522.17 | H122: 550.17 | I122: 558.08 | J122: 564.17 | K122: 552 | L122: 538 | M122: 8.26998
A123: 113 | B123: CYIENT | C123: 404.1 | D123: 403.33 | E123: 397.72 | F123: 391.33 | G123: 385.72 | H123: 409.72 | I123: 415.33 | J123: 421.72 | K123: 408.95 | L123: 396.95 | M123: 1.72411
A124: 114 | B124: DBCORP | C124: 138.3 | D124: 139.03 | E124: 136.77 | F124: 135.23 | G124: 132.97 | H124: 140.57 | I124: 142.83 | J124: 144.37 | K124: 141.3 | L124: 137.5 | M124: 0.25038
A125: 115 | B125: DCBBANK | C125: 182.25 | D125: 180.22 | E125: 177.13 | F125: 172.02 | G125: 168.93 | H125: 185.33 | I125: 188.42 | J125: 193.53 | K125: 183.3 | L125: 175.1 | M125: 6.13255
A126: 116 | B126: DCMSHRIRAM | C126: 340.75 | D126: 341.12 | E126: 337.83 | F126: 334.92 | G126: 331.63 | H126: 344.03 | I126: 347.32 | J126: 350.23 | K126: 344.4 | L126: 338.2 | M126: 0.68364
A127: 117 | B127: DLF | C127: 219.7 | D127: 219.63 | E127: 215.07 | F127: 210.43 | G127: 205.87 | H127: 224.27 | I127: 228.83 | J127: 233.47 | K127: 224.2 | L127: 215 | M127: 116.96442
A128: 118 | B128: DABUR | C128: 459.1 | D128: 461.10 | E128: 455.30 | F128: 451.50 | G128: 445.70 | H128: 464.90 | I128: 470.70 | J128: 474.50 | K128: 466.9 | L128: 457.3 | M128: 37.51777
A129: 119 | B129: DALBHARAT | C129: 880.9 | D129: 882.55 | E129: 868.60 | F129: 856.30 | G129: 842.35 | H129: 894.85 | I129: 908.80 | J129: 921.10 | K129: 896.5 | L129: 870.25 | M129: 0.95377
A130: 120 | B130: DEEPAKNTR | C130: 336.9 | D130: 339.48 | E130: 332.97 | F130: 329.03 | G130: 322.52 | H130: 343.42 | I130: 349.93 | J130: 353.87 | K130: 346 | L130: 335.55 | M130: 2.39842
A131: 121 | B131: DELTACORP | C131: 216.3 | D131: 216.70 | E131: 212.40 | F131: 208.50 | G131: 204.20 | H131: 220.60 | I131: 224.90 | J131: 228.80 | K131: 221 | L131: 212.8 | M131: 10.4188
A132: 122 | B132: DEN | C132: 39.55 | D132: 39.63 | E132: 38.27 | F132: 36.98 | G132: 35.62 | H132: 40.92 | I132: 42.28 | J132: 43.57 | K132: 41 | L132: 38.35 | M132: 0.19613
A133: 123 | B133: DHFL | C133: 20.75 | D133: 20.53 | E133: 20.22 | F133: 19.68 | G133: 19.37 | H133: 21.07 | I133: 21.38 | J133: 21.92 | K133: 20.85 | L133: 20 | M133: 51.39163
A134: 124 | B134: DBL | C134: 409.05 | D134: 408.07 | E134: 396.53 | F134: 384.02 | G134: 372.48 | H134: 420.58 | I134: 432.12 | J134: 444.63 | K134: 419.6 | L134: 395.55 | M134: 7.82906
A135: 125 | B135: DISHTV | C135: 12.75 | D135: 13.30 | E135: 10.90 | F135: 9.05 | G135: 6.65 | H135: 15.15 | I135: 17.55 | J135: 19.40 | K135: 15.7 | L135: 11.45 | M135: 1005.18077
A136: 126 | B136: DCAL | C136: 129.3 | D136: 130.55 | E136: 126.40 | F136: 123.50 | G136: 119.35 | H136: 133.45 | I136: 137.60 | J136: 140.50 | K136: 134.7 | L136: 127.65 | M136: 3.66648
A137: 127 | B137: DIVISLAB | C137: 1786.2 | D137: 1790.28 | E137: 1777.72 | F137: 1769.23 | G137: 1756.67 | H137: 1798.77 | I137: 1811.33 | J137: 1819.82 | K137: 1802.85 | L137: 1781.8 | M137: 2.58455
A138: 128 | B138: DIXON | C138: 3307.45 | D138: 3310.83 | E138: 3272.67 | F138: 3237.88 | G138: 3199.72 | H138: 3345.62 | I138: 3383.78 | J138: 3418.57 | K138: 3349 | L138: 3276.05 | M138: 0.11596
A139: 129 | B139: LALPATHLAB | C139: 1567.9 | D139: 1576.97 | E139: 1541.93 | F139: 1515.97 | G139: 1480.93 | H139: 1602.93 | I139: 1637.97 | J139: 1663.93 | K139: 1612 | L139: 1551 | M139: 0.53883
A140: 130 | B140: DRREDDY | C140: 2913.85 | D140: 2927.95 | E140: 2881.20 | F140: 2848.55 | G140: 2801.80 | H140: 2960.60 | I140: 3007.35 | J140: 3040.00 | K140: 2974.7 | L140: 2895.3 | M140: 5.60413
A141: 131 | B141: EIDPARRY | C141: 177.7 | D141: 178.58 | E141: 175.92 | F141: 174.13 | G141: 171.47 | H141: 180.37 | I141: 183.03 | J141: 184.82 | K141: 181.25 | L141: 176.8 | M141: 0.89905
A142: 132 | B142: EIHOTEL | C142: 160.55 | D142: 157.83 | E142: 154.62 | F142: 148.68 | G142: 145.47 | H142: 163.77 | I142: 166.98 | J142: 172.92 | K142: 161.05 | L142: 151.9 | M142: 2.0149
A143: 133 | B143: EDELWEISS | C143: 123.45 | D143: 122.80 | E143: 121.10 | F143: 118.75 | G143: 117.05 | H143: 125.15 | I143: 126.85 | J143: 129.20 | K143: 124.5 | L143: 120.45 | M143: 12.2245
A144: 134 | B144: EICHERMOT | C144: 22881.4 | D144: 22870.45 | E144: 22660.95 | F144: 22440.50 | G144: 22231.00 | H144: 23090.90 | I144: 23300.40 | J144: 23520.85 | K144: 23079.95 | L144: 22650 | M144: 1.11578
A145: 135 | B145: ELGIEQUIP | C145: 255.9 | D145: 255.87 | E145: 253.03 | F145: 250.17 | G145: 247.33 | H145: 258.73 | I145: 261.57 | J145: 264.43 | K145: 258.7 | L145: 253 | M145: 0.07315
A146: 136 | B146: EMAMILTD | C146: 315.15 | D146: 315.58 | E146: 313.47 | F146: 311.78 | G146: 309.67 | H146: 317.27 | I146: 319.38 | J146: 321.07 | K146: 317.7 | L146: 313.9 | M146: 0.63086
A147: 137 | B147: ENDURANCE | C147: 1111.5 | D147: 1108.23 | E147: 1091.52 | F147: 1071.53 | G147: 1054.82 | H147: 1128.22 | I147: 1144.93 | J147: 1164.92 | K147: 1124.95 | L147: 1088.25 | M147: 0.14402
A148: 138 | B148: ENGINERSIN | C148: 105.75 | D148: 105.25 | E148: 104.50 | F148: 103.25 | G148: 102.50 | H148: 106.50 | I148: 107.25 | J148: 108.50 | K148: 106 | L148: 104 | M148: 8.32858
A149: 139 | B149: EQUITAS | C149: 105.65 | D149: 105.00 | E149: 99.65 | F149: 93.65 | G149: 88.30 | H149: 111.00 | I149: 116.35 | J149: 122.35 | K149: 110.35 | L149: 99 | M149: 117.04157
A150: 140 | B150: ERIS | C150: 460.9 | D150: 459.08 | E150: 445.17 | F150: 429.43 | G150: 415.52 | H150: 474.82 | I150: 488.73 | J150: 504.47 | K150: 473 | L150: 443.35 | M150: 3.61475
A151: 141 | B151: ESCORTS | C151: 637.2 | D151: 640.27 | E151: 627.93 | F151: 618.67 | G151: 606.33 | H151: 649.53 | I151: 661.87 | J151: 671.13 | K151: 652.6 | L151: 631 | M151: 15.77102
A152: 142 | B152: ESSELPACK | C152: 154.65 | D152: 152.52 | E152: 148.83 | F152: 143.02 | G152: 139.33 | H152: 158.33 | I152: 162.02 | J152: 167.83 | K152: 156.2 | L152: 146.7 | M152: 6.08341
A153: 143 | B153: EXIDEIND | C153: 195.05 | D153: 194.68 | E153: 193.37 | F153: 191.68 | G153: 190.37 | H153: 196.37 | I153: 197.68 | J153: 199.37 | K153: 196 | L153: 193 | M153: 15.60798
A154: 144 | B154: FDC | C154: 191.9 | D154: 191.35 | E154: 188.70 | F154: 185.50 | G154: 182.85 | H154: 194.55 | I154: 197.20 | J154: 200.40 | K154: 194 | L154: 188.15 | M154: 1.11483
A155: 145 | B155: FEDERALBNK | C155: 88.9 | D155: 89.75 | E155: 87.75 | F155: 86.60 | G155: 84.60 | H155: 90.90 | I155: 92.90 | J155: 94.05 | K155: 91.75 | L155: 88.6 | M155: 109.1233
A156: 146 | B156: FMGOETZE | C156: 590.05 | D156: 589.60 | E156: 586.55 | F156: 583.05 | G156: 580.00 | H156: 593.10 | I156: 596.15 | J156: 599.65 | K156: 592.65 | L156: 586.1 | M156: 0.01911
A157: 147 | B157: FINEORG | C157: 1823.1 | D157: 1828.43 | E157: 1776.87 | F157: 1730.63 | G157: 1679.07 | H157: 1874.67 | I157: 1926.23 | J157: 1972.47 | K157: 1880 | L157: 1782.2 | M157: 0.19422
A158: 148 | B158: FINCABLES | C158: 367.65 | D158: 367.53 | E158: 365.12 | F158: 362.58 | G158: 360.17 | H158: 370.07 | I158: 372.48 | J158: 375.02 | K158: 369.95 | L158: 365 | M158: 0.33479
A159: 149 | B159: FINPIPE | C159: 580.65 | D159: 580.23 | E159: 576.47 | F159: 572.28 | G159: 568.52 | H159: 584.42 | I159: 588.18 | J159: 592.37 | K159: 584 | L159: 576.05 | M159: 0.19988
A160: 150 | B160: FSL | C160: 41.85 | D160: 41.40 | E160: 40.40 | F160: 38.95 | G160: 37.95 | H160: 42.85 | I160: 43.85 | J160: 45.30 | K160: 42.4 | L160: 39.95 | M160: 28.16304
A161: 151 | B161: FORTIS | C161: 138.75 | D161: 138.75 | E161: 138.00 | F161: 137.25 | G161: 136.50 | H161: 139.50 | I161: 140.25 | J161: 141.00 | K161: 139.5 | L161: 138 | M161: 5.77673
A162: 152 | B162: FCONSUMER | C162: 27.65 | D162: 27.47 | E162: 25.63 | F162: 23.62 | G162: 21.78 | H162: 29.48 | I162: 31.32 | J162: 33.33 | K162: 29.3 | L162: 25.45 | M162: 56.87294
A163: 153 | B163: FLFL | C163: 409.9 | D163: 412.37 | E163: 398.33 | F163: 386.77 | G163: 372.73 | H163: 423.93 | I163: 437.97 | J163: 449.53 | K163: 426.4 | L163: 400.8 | M163: 0.42713
A164: 154 | B164: FRETAIL | C164: 338.9 | D164: 354.43 | E164: 319.47 | F164: 300.03 | G164: 265.07 | H164: 373.87 | I164: 408.83 | J164: 428.27 | K164: 389.4 | L164: 335 | M164: 25.7443
A165: 155 | B165: GAIL | C165: 126.05 | D165: 126.52 | E165: 124.58 | F165: 123.12 | G165: 121.18 | H165: 127.98 | I165: 129.92 | J165: 131.38 | K165: 128.45 | L165: 125.05 | M165: 94.39278
A166: 156 | B166: GEPIL | C166: 695.45 | D166: 696.88 | E166: 688.82 | F166: 682.18 | G166: 674.12 | H166: 703.52 | I166: 711.58 | J166: 718.22 | K166: 704.95 | L166: 690.25 | M166: 0.0478
A167: 157 | B167: GET&D | C167: 159.5 | D167: 160.57 | E167: 157.73 | F167: 155.97 | G167: 153.13 | H167: 162.33 | I167: 165.17 | J167: 166.93 | K167: 163.4 | L167: 158.8 | M167: 0.23606
A168: 158 | B168: GHCL | C168: 203.65 | D168: 203.20 | E168: 200.85 | F168: 198.05 | G168: 195.70 | H168: 206.00 | I168: 208.35 | J168: 211.15 | K168: 205.55 | L168: 200.4 | M168: 0.3496
A169: 159 | B169: GMRINFRA | C169: 21.9 | D169: 21.97 | E169: 21.48 | F169: 21.07 | G169: 20.58 | H169: 22.38 | I169: 22.87 | J169: 23.28 | K169: 22.45 | L169: 21.55 | M169: 175.06883
A170: 160 | B170: GALAXYSURF | C170: 1442.85 | D170: 1454.65 | E170: 1418.20 | F170: 1393.55 | G170: 1357.10 | H170: 1479.30 | I170: 1515.75 | J170: 1540.40 | K170: 1491.1 | L170: 1430 | M170: 0.2235
A171: 161 | B171: GARFIBRES | C171: 1206.15 | D171: 1208.05 | E171: 1198.10 | F171: 1190.05 | G171: 1180.10 | H171: 1216.10 | I171: 1226.05 | J171: 1234.10 | K171: 1218 | L171: 1200 | M171: 0.02771
A172: 162 | B172: GAYAPROJ | C172: 69.55 | D172: 67.70 | E172: 65.85 | F172: 62.15 | G172: 60.30 | H172: 71.40 | I172: 73.25 | J172: 76.95 | K172: 69.55 | L172: 64 | M172: 8.65763
A173: 163 | B173: GICRE | C173: 260.5 | D173: 261.08 | E173: 256.67 | F173: 252.83 | G173: 248.42 | H173: 264.92 | I173: 269.33 | J173: 273.17 | K173: 265.5 | L173: 257.25 | M173: 3.22092
A174: 164 | B174: GILLETTE | C174: 6863.45 | D174: 6876.47 | E174: 6841.98 | F174: 6820.52 | G174: 6786.03 | H174: 6897.93 | I174: 6932.42 | J174: 6953.88 | K174: 6910.95 | L174: 6855 | M174: 0.02897
A175: 165 | B175: GLAXO | C175: 1677 | D175: 1681.68 | E175: 1658.67 | F175: 1640.33 | G175: 1617.32 | H175: 1700.02 | I175: 1723.03 | J175: 1741.37 | K175: 1704.7 | L175: 1663.35 | M175: 0.23044
A176: 166 | B176: GLENMARK | C176: 337.3 | D176: 340.22 | E176: 330.93 | F176: 324.57 | G176: 315.28 | H176: 346.58 | I176: 355.87 | J176: 362.23 | K176: 349.5 | L176: 333.85 | M176: 16.42852
A177: 167 | B177: GODFRYPHLP | C177: 1321.65 | D177: 1326.20 | E177: 1300.45 | F177: 1279.25 | G177: 1253.50 | H177: 1347.40 | I177: 1373.15 | J177: 1394.35 | K177: 1351.95 | L177: 1305 | M177: 1.30811
A178: 168 | B178: GODREJAGRO | C178: 494.45 | D178: 492.48 | E178: 488.97 | F178: 483.48 | G178: 479.97 | H178: 497.97 | I178: 501.48 | J178: 506.97 | K178: 496 | L178: 487 | M178: 0.38585
A179: 169 | B179: GODREJCP | C179: 725 | D179: 721.73 | E179: 716.57 | F179: 708.13 | G179: 702.97 | H179: 730.17 | I179: 735.33 | J179: 743.77 | K179: 726.9 | L179: 713.3 | M179: 7.4922
A180: 170 | B180: GODREJIND | C180: 437 | D180: 437.93 | E180: 433.87 | F180: 430.73 | G180: 426.67 | H180: 441.07 | I180: 445.13 | J180: 448.27 | K180: 442 | L180: 434.8 | M180: 0.54924
A181: 171 | B181: GODREJPROP | C181: 908.8 | D181: 901.63 | E181: 892.17 | F181: 875.53 | G181: 866.07 | H181: 918.27 | I181: 927.73 | J181: 944.37 | K181: 911.1 | L181: 885 | M181: 4.30723
A182: 172 | B182: GRANULES | C182: 127.75 | D182: 128.62 | E182: 125.13 | F182: 122.52 | G182: 119.03 | H182: 131.23 | I182: 134.72 | J182: 137.33 | K182: 132.1 | L182: 126 | M182: 17.77161
A183: 173 | B183: GRAPHITE | C183: 326.1 | D183: 327.58 | E183: 319.77 | F183: 313.43 | G183: 305.62 | H183: 333.92 | I183: 341.73 | J183: 348.07 | K183: 335.4 | L183: 321.25 | M183: 19.78835
A184: 174 | B184: GRASIM | C184: 787.05 | D184: 793.50 | E184: 778.00 | F184: 768.95 | G184: 753.45 | H184: 802.55 | I184: 818.05 | J184: 827.10 | K184: 809 | L184: 784.45 | M184: 21.99611
A185: 175 | B185: GESHIP | C185: 321.55 | D185: 321.47 | E185: 317.93 | F185: 314.32 | G185: 310.78 | H185: 325.08 | I185: 328.62 | J185: 332.23 | K185: 325 | L185: 317.85 | M185: 0.93509
A186: 176 | B186: GREAVESCOT | C186: 135.3 | D186: 135.10 | E186: 134.20 | F186: 133.10 | G186: 132.20 | H186: 136.20 | I186: 137.10 | J186: 138.20 | K186: 136 | L186: 134 | M186: 1.47693
A187: 177 | B187: GRINDWELL | C187: 570.4 | D187: 571.70 | E187: 563.70 | F187: 557.00 | G187: 549.00 | H187: 578.40 | I187: 586.40 | J187: 593.10 | K187: 579.7 | L187: 565 | M187: 0.15354
A188: 178 | B188: GUJALKALI | C188: 408.95 | D188: 406.55 | E188: 400.10 | F188: 391.25 | G188: 384.80 | H188: 415.40 | I188: 421.85 | J188: 430.70 | K188: 413 | L188: 397.7 | M188: 0.39829
A189: 179 | B189: GUJGASLTD | C189: 212.6 | D189: 210.05 | E189: 205.80 | F189: 199.00 | G189: 194.75 | H189: 216.85 | I189: 221.10 | J189: 227.90 | K189: 214.3 | L189: 203.25 | M189: 17.05655
A190: 180 | B190: GMDCLTD | C190: 57.85 | D190: 57.52 | E190: 56.93 | F190: 56.02 | G190: 55.43 | H190: 58.43 | I190: 59.02 | J190: 59.93 | K190: 58.1 | L190: 56.6 | M190: 1.60691
A191: 181 | B191: GNFC | C191: 193.3 | D191: 193.15 | E191: 191.40 | F191: 189.50 | G191: 187.75 | H191: 195.05 | I191: 196.80 | J191: 198.70 | K191: 194.9 | L191: 191.25 | M191: 1.64969
A192: 182 | B192: GPPL | C192: 90 | D192: 90.67 | E192: 86.33 | F192: 82.67 | G192: 78.33 | H192: 94.33 | I192: 98.67 | J192: 102.33 | K192: 95 | L192: 87 | M192: 14.17718
A193: 183 | B193: GSFC | C193: 72.7 | D193: 72.33 | E193: 70.97 | F193: 69.23 | G193: 67.87 | H193: 74.07 | I193: 75.43 | J193: 77.17 | K193: 73.7 | L193: 70.6 | M193: 6.33202
A194: 184 | B194: GSPL | C194: 215.25 | D194: 216.45 | E194: 213.40 | F194: 211.55 | G194: 208.50 | H194: 218.30 | I194: 221.35 | J194: 223.20 | K194: 219.5 | L194: 214.6 | M194: 4.94681
A195: 185 | B195: GULFOILLUB | C195: 800.2 | D195: 804.07 | E195: 791.13 | F195: 782.07 | G195: 769.13 | H195: 813.13 | I195: 826.07 | J195: 835.13 | K195: 817 | L195: 795 | M195: 0.10229
A196: 186 | B196: HEG | C196: 1132.15 | D196: 1140.28 | E196: 1113.87 | F196: 1095.58 | G196: 1069.17 | H196: 1158.57 | I196: 1184.98 | J196: 1203.27 | K196: 1166.7 | L196: 1122 | M196: 5.32192
A197: 187 | B197: HCLTECH | C197: 1127.65 | D197: 1129.87 | E197: 1122.88 | F197: 1118.12 | G197: 1111.13 | H197: 1134.63 | I197: 1141.62 | J197: 1146.38 | K197: 1136.85 | L197: 1125.1 | M197: 11.93851
A198: 188 | B198: HDFCAMC | C198: 3536.95 | D198: 3581.32 | E198: 3480.63 | F198: 3424.32 | G198: 3323.63 | H198: 3637.63 | I198: 3738.32 | J198: 3794.63 | K198: 3682 | L198: 3525 | M198: 6.83162
A199: 189 | B199: HDFCBANK | C199: 1274.95 | D199: 1268.95 | E199: 1258.00 | F199: 1241.05 | G199: 1230.10 | H199: 1285.90 | I199: 1296.85 | J199: 1313.80 | K199: 1279.9 | L199: 1252 | M199: 77.83813
A200: 190 | B200: HDFCLIFE | C200: 571.5 | D200: 574.90 | E200: 566.80 | F200: 562.10 | G200: 554.00 | H200: 579.60 | I200: 587.70 | J200: 592.40 | K200: 583 | L200: 570.2 | M200: 21.42174
A201: 191 | B201: HATHWAY | C201: 19.9 | D201: 20.03 | E201: 19.67 | F201: 19.43 | G201: 19.07 | H201: 20.27 | I201: 20.63 | J201: 20.87 | K201: 20.4 | L201: 19.8 | M201: 2.02153
A202: 192 | B202: HATSUN | C202: 579.75 | D202: 579.00 | E202: 571.00 | F202: 562.25 | G202: 554.25 | H202: 587.75 | I202: 595.75 | J202: 604.50 | K202: 587 | L202: 570.25 | M202: 0.19215
A203: 193 | B203: HAVELLS | C203: 667.45 | D203: 668.15 | E203: 659.30 | F203: 651.15 | G203: 642.30 | H203: 676.30 | I203: 685.15 | J203: 693.30 | K203: 677 | L203: 660 | M203: 8.23893
A204: 194 | B204: HEIDELBERG | C204: 190.5 | D204: 189.77 | E204: 187.98 | F204: 185.47 | G204: 183.68 | H204: 192.28 | I204: 194.07 | J204: 196.58 | K204: 191.55 | L204: 187.25 | M204: 2.83386
A205: 195 | B205: HERITGFOOD | C205: 349.05 | D205: 348.60 | E205: 344.45 | F205: 339.85 | G205: 335.70 | H205: 353.20 | I205: 357.35 | J205: 361.95 | K205: 352.75 | L205: 344 | M205: 0.90243
A206: 196 | B206: HEROMOTOCO | C206: 2433.55 | D206: 2447.10 | E206: 2410.45 | F206: 2387.35 | G206: 2350.70 | H206: 2470.20 | I206: 2506.85 | J206: 2529.95 | K206: 2483.75 | L206: 2424 | M206: 7.57233
... 320 more rows

Sheet Bulk Deals
E6: Back To Main Page
A7: Subject : | B7: BULK DEAL | D7: =Main!B10 -> 2019-12-02
A9: Date | B9: Scrip code | C9: Scrip Name | D9: Client Name | E9: Buy / Sell | F9: Quantity Traded | G9: Trade Price / Wt.Avg.trade price | H9: Exchange
A10: 2019-11-29 | B10: 532921 | C10: ADANIPORTS | D10: NEW WORLD FUND INC | E10: SELL | F10: 10,687,163 | G10: 375.34 | H10: BSE
A11: 2019-11-29 | B11: 539621 | C11: BCLENTERPR | D11: ARYADEEP INFRAHOMES PRIVATE LIMITED | E11: BUY | F11: 46,510 | G11: 12.82 | H11: BSE
A12: 2019-11-29 | B12: 533144 | C12: COX&KINGS | D12: IFCI LTD. | E12: SELL | F12: 900,000 | G12: 2 | H12: BSE
A13: 2019-11-29 | B13: 539032 | C13: FRASER | D13: RAVINDRA NATH MISHRA | E13: SELL | F13: 55,632 | G13: 14.23 | H13: BSE
A14: 2019-11-29 | B14: 530733 | C14: NOVAPUB | D14: SEKH GOLAMAHEMAD RAZA | E14: SELL | F14: 78,025 | G14: 11.56 | H14: BSE
A15: 2019-11-29 | B15: 541634 | C15: RAWEDGE | D15: NNM SECURITIES PVT LTD | E15: BUY | F15: 64,000 | G15: 69.75 | H15: BSE
A16: 2019-11-29 | B16: 541634 | C16: RAWEDGE | D16: NIKUNJ ANILKUMAR MITTAL | E16: SELL | F16: 64,000 | G16: 69.75 | H16: BSE
A17: 2019-11-29 | B17: 532092 | C17: SAGARPROD | D17: SANJIB CHAKRABORTY | E17: BUY | F17: 232,490 | G17: 11.41 | H17: BSE
A18: 2019-11-29 | B18: 532092 | C18: SAGARPROD | D18: SANJIB CHAKRABORTY | E18: SELL | F18: 10,000 | G18: 11.26 | H18: BSE
A19: 2019-11-29 | B19: 524324 | C19: SEYAIND | D19: BEACON TRUSTEESHIP LIMITED | E19: SELL | F19: 198,879 | G19: 90.49 | H19: BSE
A20: 2019-11-29 | B20: 531925 | C20: SHAQUAK | D20: WAYS VINIMAY PRIVATE LIMITED | E20: SELL | F20: 335,333 | G20: 0.21 | H20: BSE
A21: 2019-11-29 | B21: 542025 | C21: SUNRETAIL | D21: ARDENT VENTURES LLP | E21: BUY | F21: 129,000 | G21: 21.50 | H21: BSE
A22: 2019-11-29 | B22: 542025 | C22: SUNRETAIL | D22: VICKY RAJESH JHAVERI | E22: SELL | F22: 129,000 | G22: 21.50 | H22: BSE
A23: 2019-11-29 | B23: 539310 | C23: TISL | D23: GAURINATH CONSULTANTS LIMITED LIABILITY PARTNERSHIP | E23: BUY | F23: 51,500 | G23: 4.1 | H23: BSE
A24: 2019-11-29 | B24: 539310 | C24: TISL | D24: GAURINATH CONSULTANTS LIMITED LIABILITY PARTNERSHIP | E24: SELL | F24: 964,000 | G24: 4.10 | H24: BSE
A25: 2019-11-29 | B25: AHLEAST | C25: Asian Hotels (East) Ltd | D25: ENNDEE STOCKS PRIVATE LIMITED | E25: BUY | F25: 84,441 | G25: 178.01 | H25: NSE
A26: 2019-11-29 | B26: AMJUMBO | C26: A and M Jumbo Bags Ltd | D26: VIPULKUMAR PRAMODCHANDRA SHAH | E26: BUY | F26: 56,000 | G26: 12.70 | H26: NSE
A27: 2019-11-29 | B27: AMJUMBO | C27: A and M Jumbo Bags Ltd | D27: KEVAN RIDDHESHBHAI BHANDARI | E27: BUY | F27: 104,000 | G27: 12.7 | H27: NSE
A28: 2019-11-29 | B28: AMJUMBO | C28: A and M Jumbo Bags Ltd | D28: RIDDHESHKUMAR GIRISHBHAI BHANDARI | E28: BUY | F28: 104,000 | G28: 12.7 | H28: NSE
A29: 2019-11-29 | B29: COX&KINGS | C29: Cox & Kings Limited | D29: ALPHA LEON ENTERPRISES LLP | E29: BUY | F29: 1,636,078 | G29: 1.88 | H29: NSE
A30: 2019-11-29 | B30: DISHTV | C30: Dish TV India Limited | D30: TOWER RESEARCH CAPITAL MARKETS INDIA PRIVATE LIMITED | E30: BUY | F30: 13,212,689 | G30: 14.33 | H30: NSE
A31: 2019-11-29 | B31: IBULHSGFIN | C31: Indiabulls Hsg Fin Ltd | D31: MAHAVEER COMSTOCK TRADIND LLP | E31: BUY | F31: 2,249,671 | G31: 335.46 | H31: NSE
A32: 2019-11-29 | B32: IBULHSGFIN | C32: Indiabulls Hsg Fin Ltd | D32: PURITY TRADEMAX LLP | E32: BUY | F32: 4,017,205 | G32: 333.75 | H32: NSE
A33: 2019-11-29 | B33: IBULHSGFIN | C33: Indiabulls Hsg Fin Ltd | D33: QE SECURITIES | E33: BUY | F33: 3,027,649 | G33: 336.03 | H33: NSE
A34: 2019-11-29 | B34: IBULHSGFIN | C34: Indiabulls Hsg Fin Ltd | D34: GRAVITON RESEARCH CAPITAL LLP | E34: BUY | F34: 3,080,415 | G34: 346.45 | H34: NSE
A35: 2019-11-29 | B35: IBULHSGFIN | C35: Indiabulls Hsg Fin Ltd | D35: SHADOWFAX TRADERS RAMESH CHAND JAIN | E35: BUY | F35: 2,165,302 | G35: 330.07 | H35: NSE
A36: 2019-11-29 | B36: IBULHSGFIN | C36: Indiabulls Hsg Fin Ltd | D36: VIBRANT INVESTMENTS | E36: BUY | F36: 2,473,001 | G36: 330.26 | H36: NSE
A37: 2019-11-29 | B37: IBULHSGFIN | C37: Indiabulls Hsg Fin Ltd | D37: ALPHAGREP COMMODITIES PRIVATE LIMITED | E37: BUY | F37: 13,570,440 | G37: 341.59 | H37: NSE
A38: 2019-11-29 | B38: IBULHSGFIN | C38: Indiabulls Hsg Fin Ltd | D38: TOWER RESEARCH CAPITAL MARKETS INDIA PRIVATE LIMITED | E38: BUY | F38: 9,360,199 | G38: 337.15 | H38: NSE
A39: 2019-11-29 | B39: IBULHSGFIN | C39: Indiabulls Hsg Fin Ltd | D39: CENTILLION RESEARCH INDIA LLP | E39: BUY | F39: 3,513,518 | G39: 332.98 | H39: NSE
A40: 2019-11-29 | B40: IBULHSGFIN | C40: Indiabulls Hsg Fin Ltd | D40: SURJECTIVE RESEARCH CAPITAL LLP | E40: BUY | F40: 11,956,176 | G40: 336.63 | H40: NSE
A41: 2019-11-29 | B41: IBULHSGFIN | C41: Indiabulls Hsg Fin Ltd | D41: GENUINE STOCK BROKERS PVT. LTD. | E41: BUY | F41: 3,191,804 | G41: 322.37 | H41: NSE
A42: 2019-11-29 | B42: JUMPNET | C42: Jump Networks Limited | D42: ABHISHEK ASHVINBHAI KAMDAR (HUF) | E42: BUY | F42: 500,989 | G42: 68.6 | H42: NSE
A43: 2019-11-29 | B43: NCC | C43: NCC Limited | D43: TOWER RESEARCH CAPITAL MARKETS INDIA PRIVATE LIMITED | E43: BUY | F43: 4,195,960 | G43: 60.55 | H43: NSE
A44: 2019-11-29 | B44: SANCO | C44: Sanco Industries Ltd. | D44: RAVINDRA NATH MISHRA | E44: BUY | F44: 115,275 | G44: 14.24 | H44: NSE
A45: 2019-11-29 | B45: YESBANK | C45: Yes Bank Limited | D45: TOWER RESEARCH CAPITAL MARKETS INDIA PRIVATE LIMITED | E45: BUY | F45: 31,979,616 | G45: 71.07 | H45: NSE
A46: 2019-11-29 | B46: YESBANK | C46: Yes Bank Limited | D46: SURJECTIVE RESEARCH CAPITAL LLP | E46: BUY | F46: 38,910,984 | G46: 70.42 | H46: NSE
A47: 2019-11-29 | B47: AHLEAST | C47: Asian Hotels (East) Ltd | D47: LIFE INSURANCE CORPORATION LTD | E47: SELL | F47: 84,500 | G47: 178.01 | H47: NSE
A48: 2019-11-29 | B48: AMJUMBO | C48: A and M Jumbo Bags Ltd | D48: HARESHBHAI CHIMANBHAI CHAUHAN | E48: SELL | F48: 96,000 | G48: 12.7 | H48: NSE
A49: 2019-11-29 | B49: AMJUMBO | C49: A and M Jumbo Bags Ltd | D49: H & N ADVISORY SERVICES LLP | E49: SELL | F49: 96,000 | G49: 12.7 | H49: NSE
A50: 2019-11-29 | B50: COX&KINGS | C50: Cox & Kings Limited | D50: ALPHA LEON ENTERPRISES LLP | E50: SELL | F50: 1,636,078 | G50: 1.88 | H50: NSE
A51: 2019-11-29 | B51: COX&KINGS | C51: Cox & Kings Limited | D51: IFCI LTD. | E51: SELL | F51: 5,000,000 | G51: 1.95 | H51: NSE
A52: 2019-11-29 | B52: DISHTV | C52: Dish TV India Limited | D52: TOWER RESEARCH CAPITAL MARKETS INDIA PRIVATE LIMITED | E52: SELL | F52: 13,212,689 | G52: 14.4 | H52: NSE
A53: 2019-11-29 | B53: IBULHSGFIN | C53: Indiabulls Hsg Fin Ltd | D53: ALPHAGREP COMMODITIES PRIVATE LIMITED | E53: SELL | F53: 13,570,440 | G53: 341.7 | H53: NSE
A54: 2019-11-29 | B54: IBULHSGFIN | C54: Indiabulls Hsg Fin Ltd | D54: TOWER RESEARCH CAPITAL MARKETS INDIA PRIVATE LIMITED | E54: SELL | F54: 9,587,664 | G54: 335.88 | H54: NSE
A55: 2019-11-29 | B55: IBULHSGFIN | C55: Indiabulls Hsg Fin Ltd | D55: VIBRANT INVESTMENTS | E55: SELL | F55: 2,473,001 | G55: 330.64 | H55: NSE
A56: 2019-11-29 | B56: IBULHSGFIN | C56: Indiabulls Hsg Fin Ltd | D56: MAHAVEER COMSTOCK TRADIND LLP | E56: SELL | F56: 2,249,671 | G56: 336.72 | H56: NSE
A57: 2019-11-29 | B57: IBULHSGFIN | C57: Indiabulls Hsg Fin Ltd | D57: PURITY TRADEMAX LLP | E57: SELL | F57: 4,017,705 | G57: 334.14 | H57: NSE
A58: 2019-11-29 | B58: IBULHSGFIN | C58: Indiabulls Hsg Fin Ltd | D58: SURJECTIVE RESEARCH CAPITAL LLP | E58: SELL | F58: 11,938,520 | G58: 336.77 | H58: NSE
A59: 2019-11-29 | B59: IBULHSGFIN | C59: Indiabulls Hsg Fin Ltd | D59: CENTILLION RESEARCH INDIA LLP | E59: SELL | F59: 3,513,518 | G59: 333.1 | H59: NSE
A60: 2019-11-29 | B60: IBULHSGFIN | C60: Indiabulls Hsg Fin Ltd | D60: SHADOWFAX TRADERS RAMESH CHAND JAIN | E60: SELL | F60: 2,165,302 | G60: 330.22 | H60: NSE
A61: 2019-11-29 | B61: IBULHSGFIN | C61: Indiabulls Hsg Fin Ltd | D61: GENUINE STOCK BROKERS PVT. LTD. | E61: SELL | F61: 3,189,078 | G61: 322.76 | H61: NSE
A62: 2019-11-29 | B62: IBULHSGFIN | C62: Indiabulls Hsg Fin Ltd | D62: QE SECURITIES | E62: SELL | F62: 2,921,850 | G62: 337.2 | H62: NSE
A63: 2019-11-29 | B63: IBULHSGFIN | C63: Indiabulls Hsg Fin Ltd | D63: GRAVITON RESEARCH CAPITAL LLP | E63: SELL | F63: 3,080,415 | G63: 346.9 | H63: NSE
A64: 2019-11-29 | B64: JUMPNET | C64: Jump Networks Limited | D64: ASHWIN KAMDAR (HUF) | E64: SELL | F64: 500000 | G64: 68.59 | H64: NSE
A65: 2019-11-29 | B65: JUMPNET | C65: Jump Networks Limited | D65: ABHISHEK ASHVINBHAI KAMDAR (HUF) | E65: SELL | F65: 989 | G65: 68.5 | H65: NSE
A66: 2019-11-29 | B66: NCC | C66: NCC Limited | D66: TOWER RESEARCH CAPITAL MARKETS INDIA PRIVATE LIMITED | E66: SELL | F66: 4123785 | G66: 60.58 | H66: NSE
A67: 2019-11-29 | B67: PVR | C67: PVR Limited | D67: S S THEATRES LLP | E67: SELL | F67: 550000 | G67: 1804.06 | H67: NSE
A68: 2019-11-29 | B68: RPOWER | C68: Reliance Power Limited | D68: AXIS BANK LIMITED | E68: SELL | F68: 22000000 | G68: 3.65 | H68: NSE
A69: 2019-11-29 | B69: SANCO | C69: Sanco Industries Ltd. | D69: RESOURCE OPZIONE CONSULTANCY PRIVATE LIMITED | E69: SELL | F69: 96566 | G69: 14.16 | H69: NSE
A70: 2019-11-29 | B70: SEYAIND | C70: Seya Industries Limited | D70: BEACON TRUSTEESHIP LIMITED | E70: SELL | F70: 158929 | G70: 91.15 | H70: NSE
A71: 2019-11-29 | B71: YESBANK | C71: Yes Bank Limited | D71: SURJECTIVE RESEARCH CAPITAL LLP | E71: SELL | F71: 38917002 | G71: 70.46 | H71: NSE
A72: 2019-11-29 | B72: YESBANK | C72: Yes Bank Limited | D72: TOWER RESEARCH CAPITAL MARKETS INDIA PRIVATE LIMITED | E72: SELL | F72: 29387480 | G72: 71.16 | H72: NSE

Sheet Call Tracker (Equity & F&O)
M5: Back To Main Page
A6: Retail Research Technical Calls & Fundamental Performance Report for the month of November-2019
M7: =Main!B10 -> 2019-12-02
B8: Positional Call
A9: Sr.no | B9: Date | D9: Company | E9: Rec | F9: Rec Price | G9: Stop Loss*** | H9: Call Closed At | I9: Target | J9: Remark | K9: Profit / Loss per Share | L9: Gain / Loss % | M9: Status | N9: Closed Date | O9: NSE Closed Price
A10: 1 | B10: 2019-09-26 | D10: HDFC | E10: Buy | F10: 2070 | G10: 1940 | H10: 2165 | I10: 2250-2300 | J10: Profit of Rs.95/- | K10: =H10-F10 -> 95 | L10: =K10/F10 -> 4.59% | M10: Successful | N10: 2019-11-01 | R10: H
A11: 2 | B11: 2019-10-01 | D11: UPL | E11: Buy{} | F11: 595 | G11: 564 | H11: 599.5 | I11: 650-660 | J11: Profit of Rs.4.50/- | K11: 4.5 | L11: 0.76% | M11: Neutral | N11: 2019-11-07 | R11: R
A12: 3 | B12: 2019-10-07 | D12: PIDILITIND | E12: Buy{} | F12: 1367.5 | G12: 1297 | H12: 1413.5 | I12: 1500-1520 | J12: Part Profit of Rs.46/- | K12: =H12-F12 -> 46 | L12: =K12/F12 -> 3.36% | M12: Successful | N12: 2019-10-31 | O12: =VLOOKUP(D12,Sheet2!A51:M1690,6,0) -> 1303 | R12: R
A13: 4 | B13: 2019-10-22 | D13: HEIDELBERG | E13: Buy{} | F13: 188.5 | G13: 178 | H13: 199 | I13: 205-210 | J13: Profit of Rs.10.50/- | K13: 10.5 | L13: 5.57% | M13: Successful | N13: 2019-11-05 | R13: H
A14: 5 | B14: 2019-10-27 | D14: AMBUJACEM | E14: Buy{} | F14: 197 | G14: 185.4 | H14: 207 | I14: 216-220 | J14: Profit of Rs.10/- | K14: =H14-F14 -> 10 | L14: =K14/F14 -> 5.08% | M14: Successful | N14: 2019-11-29 | R14: R
A15: 6 | B15: 2019-11-04 | D15: UBL | E15: Buy{} | F15: 1240 | G15: 1178 | H15: 1292.5 | I15: 1340-1360 | J15: Profit of Rs.52.5/- | K15: =H15-F15 -> 52.5 | L15: =K15/F15 -> 4.23% | M15: Successful | N15: 2019-11-08 | R15: H
A16: 7 | B16: 2019-11-05 | D16: TATAMOTORS | E16: Sell | F16: 173 | G16: 183.3 | H16: 163 | I16: 158-155 | J16: Profit of Rs.10/- | K16: =F16-H16 -> 10 | L16: 5.78% | M16: Successful | N16: 2019-11-21 | R16: R
A17: 8 | B17: 2019-11-06 | D17: BANDHANBNK | E17: Buy | F17: 572.5 | G17: 538 | H17: 547 | I17: 630-650 | J17: Loss of Rs.25.5/- | K17: -25.5 | L17: =K17/F17 -> -4.45% | M17: Unsuccessful | N17: 2019-11-11 | R17: H
A18: 9 | B18: 2019-11-07 | D18: PRESTIGE | E18: Buy | F18: 312 | G18: 288 | H18: 288.5 | I18: 340-360 | J18: Loss of Rs.23.5/- | K18: =H18-F18 -> -23.5 | L18: =K18/F18 -> -7.53% | M18: Unsuccessful | N18: 2019-11-15 | R18: H
A19: 10 | B19: 2019-11-07 | D19: JINDALSTEL | E19: Sell | F19: 138 | G19: 148.3 | H19: 143 | I19: 120-117 | J19: Loss of Rs.5/- | K19: =F19-H19 -> -5 | L19: =K19/F19 -> -3.62% | M19: Unsuccessful | N19: 2019-11-07 | R19: R
A20: 11 | B20: 2019-11-08 | D20: CIPLA | E20: Sell{} | F20: 465 | G20: 491.3 | H20: 440 | I20: 425-418 | J20: Profit of Rs.25/- | K20: =F20-H20 -> 25 | L20: 5.38% | M20: Successful | N20: 2019-11-15 | R20: R
A21: 12 | B21: 2019-11-11 | D21: TVSMOTOR | E21: Buy{} | F21: 441 | G21: 417 | H21: 461 | I21: 480-490 | J21: Profit of Rs.20/- | K21: =H21-F21 -> 20 | L21: 4.54% | M21: Successful | N21: 2019-11-26 | R21: H
A22: 13 | B22: 2019-11-11 | D22: POWERGRID | E22: Buy{} | F22: 192 | G22: 183 | H22: 200 | I22: 208-212 | J22: Part Profit of Rs.8/- | K22: =H22-F22 -> 8 | L22: =K22/F22 -> 4.17% | M22: Successful | N22: 2019-11-22 | O22: =VLOOKUP(D22,Sheet2!A68:M1707,6,0) -> 193.3 | R22: R
A23: 14 | B23: 2019-11-13 | D23: DLF | E23: Sell{} | F23: 210 | G23: 222.2 | H23: 213.75 | I23: 189-185 | J23: Loss of Rs.3.75/- | K23: =F23-H23 -> -3.75 | L23: =K23/F23 -> -1.79% | M23: Unsuccessful | N23: 2019-11-25 | R23: R
A24: 15 | B24: 2019-11-14 | D24: TORNTPHARM | E24: Buy | F24: 1765 | G24: 1640 | H24: 1865 | I24: 1950-2000 | J24: Profit of Rs.100/- | K24: =H24-F24 -> 100 | L24: 5.67% | M24: Successful | N24: 2019-11-27 | R24: H
A25: 16 | B25: 2019-11-14 | D25: HEIDELBERG | E25: Buy{} | F25: 186.5 | G25: 174 | H25: 194.5 | I25: 205-210 | J25: Part Profit of Rs.8/- | K25: =H25-F25 -> 8 | L25: =K25/F25 -> 4.29% | M25: Successful | N25: 2019-11-20 | O25: =VLOOKUP(D25,Sheet2!A71:M1710,6,0) -> 190.5 | R25: H
A26: 17 | B26: 2019-11-14 | D26: JMFINANCIL | E26: Sell | F26: 89.5 | G26: 98.8 | H26: 98.5 | I26: 74-71 | J26: Loss of Rs.9/- | K26: =F26-H26 -> -9 | L26: -10.06% | M26: Unsuccessful | N26: 2019-11-22 | R26: R
A27: 18 | B27: 2019-11-18 | D27: CUB | E27: Buy{} | F27: 211 | G27: 198.7 | H27: 222 | I27: 230-235 | J27: Profit of Rs.11/- | K27: =H27-F27 -> 11 | L27: =K27/F27 -> 5.21% | M27: Successful | N27: 2019-11-28 | R27: R
A28: 19 | B28: 2019-11-18 | D28: BAJAJ-AUTO | E28: Sell | F28: 3180-3200 | G28: 3356.7 | I28: 2900-2850 | J28: Open | O28: =VLOOKUP(D28,Sheet2!A74:M1713,6,0) -> 3176 | R28: R
A29: 20 | B29: 2019-11-18 | D29: THERMAX | E29: Buy | F29: 1025-1035 | G29: 977 | I29: 1120-1140 | J29: Open | O29: =VLOOKUP(D29,Sheet2!A75:M1714,6,0) -> 1026.7 | R29: H
A30: 21 | B30: 2019-11-20 | D30: BRITANNIA | E30: Buy | F30: 3075-3100 | G30: 2930 | I30: 3380-3420 | J30: Open | O30: =VLOOKUP(D30,Sheet2!A76:M1715,6,0) -> 3057.7 | R30: H
A31: 22 | B31: 2019-11-21 | D31: HINDUNILVR | E31: Buy | F31: 2020 | G31: 1917 | H31: 2082 | I31: 2200-2250 | J31: Part Profit of Rs.62/- | K31: =H31-F31 -> 62 | L31: =K31/F31 -> 3.07% | M31: Successful | N31: 2019-11-27 | O31: =VLOOKUP(D31,Sheet2!A77:M1716,6,0) -> 2035.3 | R31: H
A32: 23 | B32: 2019-11-22 | D32: GODFRYPHLP | E32: Buy | F32: 1160 | G32: 1108 | H32: 1232.5 | I32: 1250-1280 | J32: Profit of Rs.72.50/- | K32: =H32-F32 -> 72.5 | L32: =K32/F32 -> 6.25% | M32: Successful | N32: 2019-11-26 | R32: R
A33: 24 | B33: 2019-11-22 | D33: GODREJPROP | E33: Buy | F33: 885 | G33: 837.7 | H33: 915 | I33: 965-985 | J33: Part Profit of Rs.30/- | K33: 30 | L33: 3.39% | M33: Successful | N33: 2019-11-28 | O33: =VLOOKUP(D33,Sheet2!A79:M1718,6,0) -> 908.8 | R33: R
A34: 25 | B34: 2019-11-27 | D34: LT | E34: Buy | F34: 1330-1340 | G34: 1270 | I34: 1450-1500 | J34: Open | O34: =VLOOKUP(D34,Sheet2!A80:M1719,6,0) -> 1330.55 | R34: H
A36: CLBS = Closing Basis ***
A37: Dividend adjusted <> | F37: Reinitiated $
A38: Part book {} | F38: Revised stoploss #
B40: Momentum Call
A41: Sr.no | B41: Date | D41: Company | E41: Rec | F41: Rec Price | G41: Stop Loss | H41: Call Closed At | I41: Target | J41: Remark | K41: Profit / Loss per Share/Lot | L41: Gain / Loss % | M41: Gain / Loss per Lot | N41: Lot | O41: Status | P41: Closed Date
A42: 1 | B42: 2019-10-29 | D42: INDUSINDBK | E42: Buy | F42: 1319 | G42: 1278 | H42: 1347.5 | I42: 1370-1390 | J42: Profit of Rs.28.5/- | K42: =H42-F42 -> 28.5 | L42: =K42/F42 -> 2.16% | O42: Successful | P42: 2019-11-01 | R42: H
A43: 2 | B43: 2019-10-30 | D43: POWERGRID | E43: Buy | F43: 199.5 | G43: 194.5 | H43: 194.5 | I43: 210 | J43: Loss of Rs.5/- | K43: -5 | L43: -2.51% | O43: Unsuccessful | P43: 2019-11-07 | R43: H
A44: 3 | B44: 2019-10-31 | D44: MFSL NOV FUT | E44: Buy | F44: 407 | G44: 396 | H44: 414 | I44: 425 | J44: Profit of Rs.7/- | K44: 7 | M44: =N44*K44 -> 8400 | N44: 1200 | O44: Successful | P44: 2019-11-04 | R44: N
A45: 4 | B45: 2019-10-31 | D45: HDFCBANK NOV FUT | E45: Buy | F45: 1239 | G45: 1215 | H45: 1251 | I45: 1280 | J45: Profit of Rs.12/- | K45: 12 | M45: =N45*K45 -> 6000 | N45: 500 | O45: Successful | P45: 2019-11-06 | R45: N
A46: 5 | B46: 2019-11-01 | D46: TORNTPOWER NOV FUT | E46: Sell | F46: 285 | G46: 289 | H46: 282 | I46: 276 | J46: Profit of Rs.3/- | K46: =F46-H46 -> 3 | M46: =N46*K46 -> 9000 | N46: 3000 | O46: Successful | P46: 2019-11-01 | R46: N
A47: 6 | B47: 2019-11-01 | D47: SBIN | E47: Sell | F47: 314 | G47: 322 | H47: 323 | I47: 300-395 | J47: Loss of Rs.9/- | K47: =F47-H47 -> -9 | L47: =K47/F47 -> -2.87% | O47: Unsuccessful | P47: 2019-11-07 | R47: R
A48: 7 | B48: 2019-11-04 | D48: AXISBANK NOV FUT | E48: Sell | F48: 749 | G48: 758.3 | H48: 742.5 | I48: 733 | J48: Profit of Rs.6.50/- | K48: =F48-H48 -> 6.5 | M48: =N48*K48 -> 7800 | N48: 1200 | O48: Successful | P48: 2019-11-04 | R48: R
A49: 8 | B49: 2019-11-04 | D49: COLPAL NOV FUT | E49: Buy | F49: 1527.5 | G49: 1510 | H49: 1539 | I49: 1560 | J49: Profit of Rs.11.50/- | K49: =H49-F49 -> 11.5 | M49: =N49*K49 -> 8050 | N49: 700 | O49: Successful | P49: 2019-11-04 | R49: N
A50: 9 | B50: 2019-11-04 | D50: LUPIN | E50: Buy | F50: 762.5 | G50: 747 | H50: 781 | I50: 790-800 | J50: Profit of Rs.18.50/- | K50: 18.5 | L50: =K50/F50 -> 2.43% | O50: Successful | P50: 2019-11-06 | R50: H
A51: 10 | B51: 2019-11-04 | D51: MARUTI | E51: Sell | F51: 7515 | G51: 7777.7 | H51: 7335 | I51: 7100-7000 | J51: Profit of Rs.180/- | K51: =F51-H51 -> 180 | L51: 2.40% | O51: Successful | P51: 2019-11-05 | R51: R
A52: 11 | B52: 2019-11-04 | D52: BANKBARODA | E52: Sell | F52: 101.5 | G52: 105 | H52: 99.6 | I52: 97-95 | J52: Profit of Rs.1.90/- | K52: =F52-H52 -> 1.9 | L52: 1.87% | O52: Successful | P52: 2019-11-06 | R52: H
A53: 12 | B53: 2019-11-04 | D53: COALINDIA | E53: Sell | F53: 211 | G53: 216.3 | H53: 207.25 | I53: 200-198 | J53: Profit of Rs.3.75/- | K53: =F53-H53 -> 3.75 | L53: =K53/F53 -> 1.78% | O53: Successful | P53: 2019-11-11 | R53: R
A54: 13 | B54: 2019-11-05 | D54: TCS | E54: Buy | F54: 2170 | G54: 2097 | H54: 2205 | I54: 2300-2330 | J54: Profit of Rs.35/- | K54: =H54-F54 -> 35 | L54: =K54/F54 -> 1.61% | O54: Successful | P54: 2019-11-05 | R54: R
A55: 14 | B55: 2019-11-05 | D55: COLPAL NOV FUT | E55: Buy | F55: 1527 | G55: 1509 | H55: 1540 | I55: 1560 | J55: Profit of Rs.13/- | K55: 13 | M55: =N55*K55 -> 9100 | N55: 700 | O55: Successful | P55: 2019-11-06 | R55: N
A56: 15 | B56: 2019-11-05 | D56: HDFCLIFE | E56: Buy | F56: 588.5 | G56: 569 | H56: 571.5 | I56: 620-630 | J56: Loss of Rs.17/- | K56: -17 | L56: =K56/F56 -> -2.89% | O56: Unsuccessful | P56: 2019-11-08 | R56: H
A57: 16 | B57: 2019-11-05 | D57: ICICIBANK NOV FUT | E57: Sell | F57: 470 | G57: 480.2 | H57: 480.2 | I57: 450 | J57: Loss of Rs.10.20/- | K57: =F57-H57 -> -10.2 | M57: =N57*K57 -> -14025 | N57: 1375 | O57: Unsuccessful | P57: 2019-11-06 | R57: R
A58: 17 | B58: 2019-11-06 | D58: HINDALCO | E58: Sell | F58: 202.35 | G58: 208.3 | H58: 199 | I58: 193-190 | J58: Profit of Rs.3.35/- | K58: =F58-H58 -> 3.35 | L58: =K58/F58 -> 1.66% | O58: Successful | P58: 2019-11-06 | R58: R
A59: 18 | B59: 2019-11-06 | D59: KOTAKBANK NOV FUT | E59: Buy | F59: 1568 | G59: 1544 | H59: 1588 | I59: 1600-1620 | J59: Profit of Rs.20/- | K59: =H59-F59 -> 20 | M59: =N59*K59 -> 8000 | N59: 400 | O59: Successful | P59: 2019-11-06 | R59: R
A60: 19 | B60: 2019-11-07 | D60: MGL NOV FUT | E60: Sell | F60: 979.5 | G60: 959 | H60: 960 | I60: 1020 | J60: Loss of Rs.19.50/- | K60: -19.5 | M60: =N60*K60 -> -11700 | N60: 600 | O60: Unsuccessful | P60: 2019-11-07 | R60: N
A61: 20 | B61: 2019-11-07 | D61: HINDALCO | E61: Sell | F61: 202.5 | G61: 208.3 | H61: 197.25 | I61: 193-190 | J61: Profit of Rs.5.25/- | K61: =F61-H61 -> 5.25 | L61: =K61/F61 -> 2.59% | O61: Successful | P61: 2019-11-13 | R61: R
A62: 21 | B62: 2019-11-07 | D62: AXISBANK NOV FUT | E62: Buy | F62: 739 | G62: 729 | H62: 729 | I62: 760 | J62: Loss of Rs.10/- | K62: =H62-F62 -> -10 | M62: =N62*K62 -> -12000 | N62: 1200 | O62: Unsuccessful | P62: 2019-11-08 | R62: N
A63: 22 | B63: 2019-11-08 | D63: HINDPETRO | E63: Buy | F63: 304.5 | G63: 296.3 | H63: 296.3 | I63: 317-320 | J63: Loss of Rs.8.2/- | K63: =H63-F63 -> -8.2 | L63: =K63/F63 -> -2.69% | O63: Unsuccessful | P63: 2019-11-08 | R63: R
A64: 23 | B64: 2019-11-08 | D64: COLPAL NOV FUT | E64: Buy | F64: 1578 | G64: 1560 | H64: 1591 | I64: 1600 | J64: Profit of Rs.13/- | K64: 13 | M64: =N64*K64 -> 9100 | N64: 700 | O64: Successful | P64: 2019-11-08 | R64: N
A65: 24 | B65: 2019-11-08 | D65: AXISBANK | E65: Buy | F65: 733 | G65: 715 | H65: 712.5 | I65: 760-765 | J65: Loss of Rs.20.50/- | K65: -20.5 | L65: =K65/F65 -> -2.80% | O65: Unsuccessful | P65: 2019-11-13 | R65: H
A66: 25 | B66: 2019-11-08 | D66: HINDUNILVR | E66: Buy | F66: 2085 | G66: 2035 | H66: 2025 | I66: 2160-2180 | J66: Loss of Rs.60/- | K66: -60 | L66: -2.88% | O66: Unsuccessful | P66: 2019-11-20 | R66: H
A67: 26 | B67: 2019-11-08 | D67: RELIANCE | E67: Sell | F67: 1447.5 | G67: 1505 | H67: 1490.5 | I67: 1380-1350 | J67: Loss of Rs.43/- | K67: =F67-H67 -> -43 | L67: =K67/F67 -> -2.97% | O67: Unsuccessful | P67: 2019-11-19 | R67: H
A68: 27 | B68: 2019-11-08 | D68: COLPAL NOV FUT | E68: Buy | F68: 1574 | G68: 1556 | H68: 1586.5 | I68: 1600-1620 | J68: Profit of Rs.12.50/- | K68: =H68-F68 -> 12.5 | M68: =N68*K68 -> 8750 | N68: 700 | O68: Successful | P68: 2019-11-11 | R68: N
A69: 28 | B69: 2019-11-11 | D69: TATAGLOBAL | E69: Buy | F69: 294 | G69: 284 | H69: 301 | I69: 305-310 | J69: Profit of Rs.7/- | K69: 7 | L69: =K69/F69 -> 2.38% | O69: Successful | P69: 2019-11-15 | R69: H
A70: 29 | B70: 2019-11-11 | D70: TVSMOTOR NOV FUT | E70: Buy | F70: 443.5 | G70: 433 | H70: 448.5 | I70: 462 | J70: Profit of Rs.5/- | K70: =H70-F70 -> 5 | M70: =N70*K70 -> 5500 | N70: 1100 | O70: Successful | P70: 2019-11-13 | R70: R
A71: 30 | B71: 2019-11-11 | D71: APOLLOTYRE | E71: Buy | F71: 166.5 | G71: 162.2 | H71: 170 | I71: 173-176 | J71: Profit of Rs.3.50/- | K71: 3.5 | L71: =K71/F71 -> 2.10% | O71: Successful | P71: 2019-11-18 | R71: R
A72: 31 | B72: 2019-11-11 | D72: PIDILITIND NOV FUT | E72: Buy | F72: 1335 | G72: 1313 | H72: 1333 | I72: 1375 | J72: Loss of Rs.2/- | K72: =H72-F72 -> -2 | M72: =N72*K72 -> -1000 | N72: 500 | O72: Unsuccessful | P72: 2019-11-13 | R72: R
A73: 32 | B73: 2019-11-11 | D73: HAVELLS | E73: Buy | F73: 696.5 | G73: 677 | H73: 676.5 | I73: 725-735 | J73: Loss of Rs.20/- | K73: -20 | L73: =K73/F73 -> -2.87% | O73: Unsuccessful | P73: 2019-11-13 | R73: H
A74: 33 | B74: 2019-11-11 | D74: MFSL NOV FUT | E74: Buy | F74: 472 | G74: 461 | H74: 461.5 | I74: 493 | J74: Loss of Rs.10.50/- | K74: -10.5 | M74: =N74*K74 -> -12600 | N74: 1200 | O74: Unsuccessful | P74: 2019-11-13 | R74: N
A75: 34 | B75: 2019-11-11 | D75: TORNTPOWER NOV FUT | E75: Sell | F75: 298.5 | G75: 303 | H75: 303.5 | I75: 290 | J75: Loss of Rs.5/- | K75: =F75-H75 -> -5 | M75: =N75*K75 -> -15000 | N75: 3000 | O75: Unsuccessful | P75: 2019-11-13 | R75: N
A76: 35 | B76: 2019-11-13 | D76: CUMMINSIND NOV FUT | E76: Sell | F76: 569 | G76: 583.3 | H76: 559.5 | I76: 548 | J76: Profit of Rs.9.5/- | K76: =F76-H76 -> 9.5 | M76: =N76*K76 -> 6650 | N76: 700 | O76: Successful | P76: 2019-11-14 | R76: R
A77: 36 | B77: 2019-11-13 | D77: COLPAL NOV FUT | E77: Buy | F77: 1563 | G77: 1545 | H77: 1545 | I77: 1600 | J77: Loss of Rs.18/- | K77: =H77-F77 -> -18 | M77: =N77*K77 -> -12600 | N77: 700 | O77: Unsuccessful | P77: 2019-11-14 | R77: N
A78: 37 | B78: 2019-11-13 | D78: POWERGRID | E78: Buy | F78: 189.5 | G78: 184 | H78: 194.5 | I78: 200-205 | J78: Profit of Rs.5/- | K78: =H78-F78 -> 5 | L78: =K78/F78 -> 2.64% | O78: Successful | P78: 2019-11-19 | R78: H
A79: 38 | B79: 2019-11-13 | D79: SBIN | E79: Sell | F79: 313.5 | G79: 324.4 | H79: 306.5 | I79: 294-290 | J79: Profit of Rs.7/- | K79: =F79-H79 -> 7 | L79: =K79/F79 -> 2.23% | O79: Successful | P79: 2019-11-13 | R79: R
A80: 39 | B80: 2019-11-14 | D80: HINDPETRO | E80: Buy | F80: 291 | G80: 281.7 | H80: 297 | I80: 305-310 | J80: Profit of Rs.6/- | K80: =H80-F80 -> 6 | L80: 2.06% | O80: Successful | P80: 2019-11-20 | R80: R
A81: 40 | B81: 2019-11-14 | D81: SUNPHARMA | E81: Buy | F81: 413.5 | G81: 401 | H81: 423 | I81: 435-440 | J81: Profit of Rs.9.50/- | K81: =H81-F81 -> 9.5 | L81: =K81/F81 -> 2.30% | O81: Successful | P81: 2019-11-18 | R81: R
A82: 41 | B82: 2019-11-15 | D82: MCDOWELL-N NOV FUT | E82: Buy | F82: 623.5 | G82: 613 | H82: 613 | I82: 640 | J82: Loss of Rs.10.50/- | K82: =H82-F82 -> -10.5 | M82: =N82*K82 -> -13125 | N82: 1250 | O82: Unsuccessful | P82: 2019-11-19 | R82: R
A83: 42 | B83: 2019-11-15 | D83: GRASIM NOV FUT | E83: Buy | F83: 749.5 | G83: 733 | H83: 761 | I83: 775 | J83: Profit of Rs.11.5/- | K83: 11.5 | M83: =N83*K83 -> 8625 | N83: 750 | O83: Successful | P83: 2019-11-15 | R83: N
A84: 43 | B84: 2019-11-15 | D84: CESC NOV FUT | E84: Buy | F84: 754 | G84: 738 | H84: 764 | I84: 780 | J84: Profit of Rs.10/- | K84: =H84-F84 -> 10 | M84: =N84*K84 -> 8000 | N84: 800 | O84: Successful | P84: 2019-11-18 | R84: N
A85: 44 | B85: 2019-11-15 | D85: DLF | E85: Sell | F85: 215 | G85: 222.2 | H85: 211.25 | I85: 202-205 | J85: Profit of Rs.3.75/- | K85: =F85-H85 -> 3.75 | L85: =K85/F85 -> 1.74% | O85: Successful | P85: 2019-11-15 | R85: R
A86: 45 | B86: 2019-11-18 | D86: ICICIBANK | E86: Sell | F86: 498.5 | G86: 513 | H86: 509.5 | I86: 480-470 | J86: Loss of Rs.11/- | K86: =F86-H86 -> -11 | L86: -2.21% | O86: Unsuccessful | P86: 2019-11-26 | R86: H
A87: 46 | B87: 2019-11-18 | D87: TATAELXSI NOV FUT | E87: Buy | F87: 790 | G87: 766.6 | H87: 804.5 | I87: 825-830 | J87: Profit of Rs.14.50/- | K87: =H87-F87 -> 14.5 | M87: =N87*K87 -> 8700 | N87: 600 | O87: Successful | P87: 2019-11-19 | R87: R
A88: 47 | B88: 2019-11-18 | D88: DLF | E88: Sell | F88: 216.5 | G88: 223.2 | H88: 212.25 | I88: 205 | J88: Profit of Rs.4.25/- | K88: =F88-H88 -> 4.25 | L88: =K88/F88 -> 1.96% | O88: Successful | P88: 2019-11-19 | R88: R
A89: 48 | B89: 2019-11-19 | D89: GRASIM | E89: Sell | F89: 782.5 | G89: 803.3 | H89: 806.5 | I89: 745-735 | J89: Loss of Rs.24/- | K89: =F89-H89 -> -24 | L89: -3.07% | O89: Unsuccessful | P89: 2019-11-25 | R89: R
A90: 49 | B90: 2019-11-19 | D90: RADICO | E90: Buy | F90: 300 | G90: 291 | H90: 306.5 | I90: 315-318 | J90: Profit of Rs.6.5/- | K90: =H90-F90 -> 6.5 | L90: =K90/F90 -> 2.17% | O90: Successful | P90: 2019-11-19 | R90: R
A91: 50 | B91: 2019-11-19 | D91: AXISBANK NOV FUT | E91: Sell | F91: 737 | G91: 748.3 | H91: 748.3 | I91: 720 | J91: Loss of Rs.11.30/- | K91: =F91-H91 -> -11.3 | M91: =N91*K91 -> -13560 | N91: 1200 | O91: Unsuccessful | P91: 2019-11-19 | R91: R
A92: 51 | B92: 2019-11-19 | D92: MARICO | E92: Buy | F92: 355-357 | G92: 344.4 | I92: 375-380 | J92: Open | R92: R
A93: 52 | B93: 2019-11-19 | D93: DMART | E93: Buy | F93: 1855 | G93: 1794 | H93: 1765 | I93: 1945-1965 | J93: Loss of Rs.90/- | K93: =H93-F93 -> -90 | L93: =K93/F93 -> -4.85% | O93: Unsuccessful | P93: 2019-11-26 | R93: R
A94: 53 | B94: 2019-11-19 | D94: AMBUJACEM NOV FUT | E94: Buy | F94: 200.5 | G94: 195 | H94: 201 | I94: 210-212 | J94: Profit of Rs.0.50/- | K94: =H94-F94 -> 0.5 | M94: =N94*K94 -> 1250 | N94: 2500 | O94: Neutral | P94: 2019-11-26 | R94: N
A95: 54 | B95: 2019-11-19 | D95: CENTURYTEX NOV FUT | E95: Buy | F95: 439.5 | G95: 420 | H95: 449.5 | I95: 470 | J95: Profit of Rs.10/- | K95: 10 | M95: =N95*K95 -> 6000 | N95: 600 | O95: Successful | P95: 2019-11-19 | R95: N
A96: 55 | B96: 2019-11-19 | D96: APOLLOHOSP NOV FUT | E96: Buy | F96: 1404.5 | G96: 1383.3 | H96: 1426 | I96: 1440-1445 | J96: Profit of Rs.21.50/- | K96: 21.5 | M96: =N96*K96 -> 10750 | N96: 500 | O96: Successful | P96: 2019-11-20 | R96: R
A97: 56 | B97: 2019-11-19 | D97: DABUR | E97: Buy | F97: 454 | G97: 439 | H97: 465.5 | I97: 475-480 | J97: Profit of Rs.11.5/- | K97: 11.5 | L97: =K97/F97 -> 2.53% | O97: Successful | P97: 2019-11-20 | R97: H
A98: 57 | B98: 2019-11-19 | D98: CESC NOV FUT | E98: Buy | F98: 747 | G98: 732 | H98: 757 | I98: 770 | J98: Profit of Rs.10/- | K98: =H98-F98 -> 10 | M98: =N98*K98 -> 8000 | N98: 800 | O98: Successful | P98: 2019-11-19 | R98: N
A99: 58 | B99: 2019-11-19 | D99: COLPAL NOV FUT | E99: Buy | F99: 1542 | G99: 1525 | H99: 1550 | I99: 1580 | J99: Profit of Rs.8/- | K99: 8 | M99: =N99*K99 -> 5600 | N99: 700 | O99: Successful | P99: 2019-11-20 | R99: N
A100: 59 | B100: 2019-11-20 | D100: DLF | E100: Sell | F100: 218.5 | G100: 222.2 | H100: 214 | I100: 210-207 | J100: Profit of Rs.4.5/- | K100: =F100-H100 -> 4.5 | L100: =K100/F100 -> 2.06% | O100: Successful | P100: 2019-11-20 | R100: R
A101: 60 | B101: 2019-11-20 | D101: HCLTECH | E101: Buy | F101: 1126-1132 | G101: 1095 | I101: 1170-1190 | J101: Open | R101: H
A102: 61 | B102: 2019-11-20 | D102: BATAINDIA NOV FUT | E102: Buy | F102: 1703 | G102: 1678 | H102: 1678 | I102: 1740 | J102: Loss of Rs.25/- | K102: =H102-F102 -> -25 | M102: =N102*K102 -> -13750 | N102: 550 | O102: Unsuccessful | P102: 2019-11-21 | R102: N
A103: 62 | B103: 2019-11-21 | D103: GAIL | E103: Buy | F103: 122.5 | G103: 118.5 | H103: 125 | I103: 128-130 | J103: Profit of Rs.2.5/- | K103: 2.5 | L103: =K103/F103 -> 2.04% | O103: Successful | P103: 2019-11-26 | R103: H
A104: 63 | B104: 2019-11-21 | D104: PVR | E104: Buy | F104: 1785 | G104: 1728.8 | H104: 1822.5 | I104: 1870-1900 | J104: Profit of Rs.37.5/- | K104: =H104-F104 -> 37.5 | L104: =K104/F104 -> 2.10% | O104: Successful | P104: 2019-11-22 | R104: R
A105: 64 | B105: 2019-11-21 | D105: EXIDEIND NOV FUT | E105: Buy | F105: 189.5 | G105: 184 | H105: 193.25 | I105: 200 | J105: Profit of Rs.3.75/- | K105: 3.75 | M105: =N105*K105 -> 9000 | N105: 2400 | O105: Successful | P105: 2019-11-22 | R105: N
A106: 65 | B106: 2019-11-21 | D106: COLPAL NOV FUT | E106: Buy | F106: 1525 | G106: 1508 | H106: 1508 | I106: 1560 | J106: Loss of Rs.17/- | K106: -17 | M106: =N106*K106 -> -11900 | N106: 700 | O106: Unsuccessful | P106: 2019-11-22 | R106: N
A107: 66 | B107: 2019-11-22 | D107: SBIN | E107: Sell | F107: 333 | G107: 343.7 | H107: 343 | I107: 316-313 | J107: Loss of Rs.10/- | K107: =F107-H107 -> -10 | L107: =K107/F107 -> -3.00% | O107: Unsuccessful | P107: 2019-11-27 | R107: R
A108: 67 | B108: 2019-11-22 | D108: TATAELXSI NOV FUT | E108: Buy | F108: 785.5 | G108: 764.6 | H108: 797 | I108: 820-825 | J108: Profit of Rs.11.50/- | K108: =H108-F108 -> 11.5 | M108: =N108*K108 -> 6900 | N108: 600 | O108: Successful | P108: 2019-11-25 | R108: R
A109: 68 | B109: 2019-11-25 | D109: SIEMENS NOV FUT | E109: Sell | F109: 1508.5 | G109: 1535 | H109: 1529 | I109: 1450 | J109: Loss of Rs.20.50/- | K109: =F109-H109 -> -20.5 | M109: =N109*K109 -> -11275 | N109: 550 | O109: Unsuccessful | P109: 2019-11-26 | R109: N
A110: 69 | B110: 2019-11-25 | D110: NIFTY NOV FUT | E110: Sell | F110: 11962.5 | G110: 12070 | H110: 12070 | I110: 11750-11700 | J110: Loss of Rs.107.50/- | K110: =F110-H110 -> -107.5 | M110: =N110*K110 -> -8062.5 | N110: 75 | O110: Unsuccessful | P110: 2019-11-25 | R110: H
A111: 70 | B111: 2019-11-25 | D111: CESC NOV FUT | E111: Buy | F111: 745 | G111: 730 | H111: 755 | I111: 770 | J111: Profit of Rs.10/- | K111: =H111-F111 -> 10 | M111: =N111*K111 -> 8000 | N111: 800 | O111: Successful | P111: 2019-11-26 | R111: N
A112: 71 | B112: 2019-11-25 | D112: ONGC | E112: Buy | F112: 131-132 | G112: 127.3 | I112: 140 | J112: Open | R112: R
A113: 72 | B113: 2019-11-25 | D113: CENTURYTEX DEC FUT | E113: Buy | F113: 459 | G113: 438 | H113: 476 | I113: 490 | J113: Profit of Rs.17/- | K113: =H113-F113 -> 17 | M113: =N113*K113 -> 10200 | N113: 600 | O113: Successful | P113: 2019-11-29 | R113: N
A114: 73 | B114: 2019-11-26 | D114: POWERGRID DEC FUT | E114: Buy | F114: 197.25 | G114: 194 | H114: 194.25 | I114: 204 | J114: Loss of Rs.3/- | K114: -3 | M114: -12000 | N114: 4000 | O114: Unsuccessful | P114: 2019-11-29 | R114: N
A115: 74 | B115: 2019-11-26 | D115: SUNTV | E115: Buy | F115: 488-490 | G115: 472.7 | I115: 513-518 | J115: Open | R115: R
A116: 75 | B116: 2019-11-26 | D116: COLPAL | E116: Buy | F116: 1495-1505 | G116: 1465 | I116: 1560-1580 | J116: Open | R116: H
A117: 76 | B117: 2019-11-26 | D117: CESC DEC FUT | E117: Buy | F117: 746 | G117: 732 | H117: 758 | I117: 770-775 | J117: Profit of Rs.12/- | K117: =H117-F117 -> 12 | M117: =N117*K117 -> 9600 | N117: 800 | O117: Successful | P117: 2019-11-29 | R117: N
A118: 77 | B118: 2019-11-26 | D118: FEDERALBNK | E118: Sell | F118: 89.8 | G118: 92.5 | H118: 88.4 | I118: 85 | J118: Profit of Rs.1.40/- | K118: =F118-H118 -> 1.4 | L118: =K118/F118 -> 1.56% | O118: Successful | P118: 2019-11-26 | R118: H
A119: 78 | B119: 2019-11-26 | D119: AMARAJABAT | E119: Sell | F119: 769 | G119: 786 | H119: 753.5 | I119: 740-735 | J119: Profit of Rs.15.5/- | K119: =F119-H119 -> 15.5 | L119: =K119/F119 -> 2.02% | O119: Successful | P119: 2019-11-27 | R119: H
A120: 79 | B120: 2019-11-27 | D120: AXISBANK NOV FUT | E120: Sell | F120: 760.5 | G120: 771.7 | H120: 754 | I120: 742 | J120: Profit of Rs.6.5/- | K120: =F120-H120 -> 6.5 | M120: =N120*K120 -> 7800 | N120: 1200 | O120: Successful | P120: 2019-11-27 | R120: R
A121: 80 | B121: 2019-11-27 | D121: HINDALCO | E121: Sell | F121: 200.5 | G121: 208.3 | H121: 196.5 | I121: 193-190 | J121: Profit of Rs.4/- | K121: =F121-H121 -> 4 | L121: =K121/F121 -> 2.00% | O121: Successful | P121: 2019-11-29 | R121: R
A122: 81 | B122: 2019-11-27 | D122: MOTHERSUMI | E122: Sell | F122: 134 | G122: 138.3 | H122: 131.25 | I122: 127-125 | J122: Profit of Rs.2.75/- | K122: =F122-H122 -> 2.75 | L122: =K122/F122 -> 2.05% | O122: Successful | P122: 2019-11-29 | R122: R
A123: 82 | B123: 2019-11-27 | D123: TATACHEM DEC FUT | E123: Buy | F123: 660.5 | G123: 647 | H123: 668.5 | I123: 690 | J123: Profit of Rs.8/- | K123: =H123-F123 -> 8 | M123: =N123*K123 -> 7200 | N123: 900 | O123: Successful | P123: 2019-11-28 | R123: N
A124: 83 | B124: 2019-11-28 | D124: CHAMBLFERT | E124: Buy | F124: 151 | G124: 147 | H124: 154.5 | I124: 158-160 | J124: Profit of Rs.3.5/- | K124: 3.5 | L124: =K124/F124 -> 2.32% | O124: Successful | P124: 2019-11-29 | R124: H
A125: 84 | B125: 2019-11-28 | D125: NIITTECH | E125: Buy | F125: 1490-1498 | G125: 1448.7 | I125: 1565-1585 | J125: Open | R125: R
A126: 85 | B126: 2019-11-28 | D126: FEDERALBNK | E126: Sell | F126: 90-90.5 | G126: 92.5 | I126: 85 | J126: Open | R126: H
A127: 86 | B127: 2019-11-28 | D127: KOTAKBANK DEC FUT | E127: Sell | F127: 1617.5 | G127: 1647.7 | H127: 1600 | I127: 1580-1570 | J127: Profit of Rs.17.50/- | K127: =F127-H127 -> 17.5 | M127: =N127*K127 -> 7000 | N127: 400 | O127: Successful | P127: 2019-11-29 | R127: R
A128: 87 | B128: 2019-11-28 | D128: HDFCBANK DEC FUT | E128: Buy | F128: 1270-1272 | G128: 1249 | I128: 1300-1310 | J128: Open | R128: N
A129: 88 | B129: 2019-11-29 | D129: BANKBARODA | E129: Buy | F129: 106-107 | G129: 103 | I129: 111-113 | J129: Open | R129: H
A130: 89 | B130: 2019-11-29 | D130: GRASIM DEC FUT | E130: Buy | F130: 795-797 | G130: 779 | I130: 830 | J130: Open | R130: N
A131: 90 | B131: 2019-11-29 | D131: CHAMBLFERT | E131: Buy | F131: 149-150 | G131: 144 | I131: 157-160 | J131: Open | R131: H
A132: 91 | B132: 2019-11-29 | D132: RELIANCE | E132: Sell | F132: 1555-1560 | G132: 1603 | I132: 1475-1465 | J132: Open | R132: R
A133: 92 | B133: 2019-11-29 | D133: DLF | E133: Sell | F133: 221 | G133: 226 | H133: 217.5 | I133: 210 | J133: Profit of Rs.3.50/- | K133: =F133-H133 -> 3.5 | L133: =K133/F133 -> 1.58% | O133: Successful | P133: 2019-11-29 | R133: H
A143: CLBS = Closing Basis ***
A144: Dividend adjusted <> | F144: Reinitiated $
F145: Revised stoploss #
A147: Master Trade High Risk
A148: Sr.no | B148: Date | D148: Company | E148: Rec | F148: Rec Price | G148: Stop Loss | H148: Call Closed At | I148: Target | J148: Remark | K148: Profit / Loss per share | L148: Gain / Loss per Lot | M148: Lot | N148: Status | O148: Closed Date
A149: 1 | B149: 2019-10-30 | D149: BAJAJ-AUTO NOV FUT | E149: Sell | F149: 3240 | G149: 3360 | H149: 3205 | I149: 3040 | J149: Profit of Rs.36.50/- | K149: =F149-H149 -> 35 | L149: =M149*36.5 -> 9125 | M149: 250 | N149: Successful | O149: 2019-11-04 | R149: H
D150: BAJAJ-AUTO 3100 PE NOV | E150: Sell | F150: 49.50 | H150: 48 | K150: =F150-H150 -> 1.5 | R150: H
A151: 2 | B151: 2019-10-30 | D151: LT NOV FUT | E151: Buy | F151: 1476.5 | G151: 1418 | H151: 1427.5 | I151: 1550 | J151: Loss of Rs.28/- | K151: =H151-F151 -> -49 | L151: =M151*-28 -> -10500 | M151: 375 | N151: Unsuccessful | O151: 2019-11-08 | R151: H
D152: LT 1520 CE NOV | E152: Sell | F152: 28 | H152: 7 | K152: =F152-H152 -> 21 | R152: H
A153: 3 | B153: 2019-10-30 | D153: HEROMOTOCO NOV FUT | E153: Buy | F153: 2715 | G153: 2640 | H153: 2747.5 | I153: 2900 | J153: Profit of Rs.27.50/- | K153: =H153-F153 -> 32.5 | L153: =M153*27.5 -> 5500 | M153: 200 | N153: Successful | O153: 2019-11-01 | R153: N
D154: HEROMOTOCO 2850 CE NOV | E154: Sell | F154: 55 | H154: 60 | K154: =F154-H154 -> -5 | R154: N
A155: 4 | B155: 2019-10-31 | D155: AXISBANK NOV FUT | E155: Buy | F155: 738 | G155: 718 | H155: 743.5 | I155: 760 | J155: Profit of Rs.5/- | K155: =H155-F155 -> 5.5 | L155: =M155*5 -> 6000 | M155: 1200 | N155: Successful | O155: 2019-11-01 | R155: H
D156: AXISBANK 760 CE NOV | E156: Sell | F156: 17.50 | H156: 18 | K156: =F156-H156 -> -0.5 | R156: H
A157: 5 | B157: 2019-11-01 | D157: NIFTY NOV FUT | E157: Sell | F157: 11907.5 | G157: 12060 | H157: 12060 | I157: 11700 | J157: Loss of Rs.82.50/- | K157: =F157-H157 -> -152.5 | L157: =M157*-82.5 -> -6187.5 | M157: 75 | N157: Unsuccessful | O157: 2019-11-08 | R157: H
D158: Nifty 11750 PE 14-NOV | E158: Sell | F158: 78 | H158: 8 | K158: =F158-H158 -> 70 | R158: H
A159: 6 | B159: 2019-11-05 | D159: HAVELLS NOV FUT | E159: Buy | F159: 687 | G159: 670 | H159: 696 | I159: 720-730 | J159: Profit of Rs.8.50/- | K159: =H159-F159 -> 9 | L159: =M159*8.5 -> 8500 | M159: 1000 | N159: Successful | O159: 2019-11-06 | R159: N
D160: HAVELLS 710 CE NOV | E160: Sell | F160: 13.50 | H160: 14 | K160: =F160-H160 -> -0.5 | R160: N
A161: 7 | B161: 2019-11-05 | D161: BATAINDIA NOV FUT | E161: Buy | F161: 1735 | G161: 1701 | H161: 1701 | I161: 1820 | J161: Loss of Rs.22.50/- | K161: =H161-F161 -> -34 | L161: =M161*-22.5 -> -12375 | M161: 550 | N161: Unsuccessful | O161: 2019-11-06 | R161: N
D162: BATAINDIA 1800 CE NOV | E162: Sell | F162: 35 | H162: 23.5 | K162: =F162-H162 -> 11.5 | R162: N
A163: 8 | B163: 2019-11-06 | D163: GRASIM NOV FUT | E163: Buy | F163: 775 | G163: 754 | H163: 788 | I163: 820 | J163: Profit of Rs.11/- | K163: =H163-F163 -> 13 | L163: =M163*11 -> 8250 | M163: 750 | N163: Successful | O163: 2019-11-08 | R163: N
D164: GRASIM 820 CE NOV | E164: Sell | F164: 15.5 | H164: 17.5 | K164: =F164-H164 -> -2 | R164: N
A165: 9 | B165: 2019-11-06 | D165: ULTRACEMCO NOV FUT | E165: Buy | F165: 4150 | G165: 4070 | H165: 4195 | I165: 4350 | J165: Profit of Rs.37.50/- | K165: =H165-F165 -> 45 | L165: =M165*37.5 -> 7500 | M165: 200 | N165: Successful | O165: 2019-11-07 | R165: N
D166: ULTRACEMCO 4300 CE NOV | E166: Sell | F166: 70 | H166: 77.5 | K166: =F166-H166 -> -7.5 | R166: N
A167: 10 | B167: 2019-11-07 | D167: BAJAJ-AUTO NOV FUT | E167: Sell | F167: 3240 | G167: 3355 | H167: 3212.5 | I167: 3100 | J167: Profit of Rs.32.50/- | K167: =F167-H167 -> 27.5 | L167: =M167*32.5 -> 8125 | M167: 250 | N167: Successful | O167: 2019-11-13 | R167: H
D168: BAJAJ-AUTO 3150 PE NOV | E168: Sell | F168: 47.50 | H168: 42.5 | K168: =F168-H168 -> 5 | R168: H
A169: 11 | B169: 2019-11-11 | D169: KOTAKBANK NOV FUT | E169: Buy | F169: 1600 | G169: 1560 | H169: 1617 | I169: 1660-1680 | J169: Profit of Rs.19/- | K169: =H169-F169 -> 17 | L169: =M169*19 -> 7600 | M169: 400 | N169: Successful | O169: 2019-11-15 | R169: N
D170: KOTAKBANK 1640 CE NOV | E170: Sell | F170: 22 | H170: 20 | K170: =F170-H170 -> 2 | R170: N
A171: 12 | B171: 2019-11-11 | D171: ULTRACEMCO NOV FUT | E171: Buy | F171: 4160 | G171: 4070 | H171: 4080 | I171: 4350 | J171: Loss of Rs.50/- | K171: =H171-F171 -> -80 | L171: =M171*-50 -> -10000 | M171: 200 | N171: Unsuccessful | O171: 2019-11-14 | R171: N
D172: ULTRACEMCO 4300 CE NOV | E172: Sell | F172: 62.50 | H172: 32.5 | K172: =F172-H172 -> 30 | R172: N
A173: 13 | B173: 2019-11-13 | D173: NIFTY NOV FUT | E173: Sell | F173: 11930 | G173: 12070 | H173: 11850 | I173: 11700 | J173: Profit of Rs.67.50/- | K173: =F173-H173 -> 80 | L173: =M173*67.5 -> 5062.5 | M173: 75 | N173: Successful | O173: 2019-11-14 | R173: H
D174: Nifty 11750 PE NOV | E174: Sell | F174: 80 | H174: 92.5 | K174: =F174-H174 -> -12.5 | R174: H
A175: 14 | B175: 2019-11-14 | D175: M&M NOV FUT | E175: Buy | F175: 577.5 | G175: 559 | H175: 589.25 | I175: 600 | J175: Profit of Rs.8.25/- | K175: =H175-F175 -> 11.75 | L175: =M175*8.25 -> 8250 | M175: 1000 | N175: Successful | O175: 2019-11-15 | R175: H
D176: M&M Nov 590 CE | E176: Sell | F176: 9.5 | H176: 13 | K176: =F176-H176 -> -3.5 | R176: H
A177: 15 | B177: 2019-11-14 | D177: ICICIBANK NOV FUT | E177: Sell | F177: 494.5 | G177: 507 | H177: 505.5 | I177: 480 | J177: Loss of Rs.8.5/- | K177: =F177-H177 -> -11 | L177: =M177*-8.5 -> -11687.5 | M177: 1375 | N177: Unsuccessful | O177: 2019-11-15 | R177: H
D178: ICICIBANK 480 PE NOV | E178: Sell | F178: 6.5 | H178: 4 | K178: =F178-H178 -> 2.5 | R178: H
A179: 16 | B179: 2019-11-15 | D179: HEROMOTOCO NOV FUT | E179: Buy | F179: 2592.5 | G179: 2518 | H179: 2515 | I179: 2700-2750 | J179: Loss of Rs.50.5/- | K179: =H179-F179 -> -77.5 | L179: =+-50.5*M179 -> -10100 | M179: 200 | N179: Unsuccessful | O179: 2019-11-18 | R179: H
D180: HEROMOTOCO Nov 2650 CE | E180: Sell | F180: 47.50 | H180: 20.5 | K180: =F180-H180 -> 27 | R180: H
A181: 17 | B181: 2019-11-18 | D181: HAVELLS NOV FUT | E181: Buy | F181: 665.5 | G181: 647 | H181: 675 | I181: 690 | J181: Profit of Rs.7.50/- | K181: =H181-F181 -> 9.5 | L181: =M181*7.5 -> 7500 | M181: 1000 | N181: Successful | O181: 2019-11-19 | R181: H
D182: HAVELLS NOV 680 CE | E182: Sell | F182: 9.50 | H182: 11.5 | K182: =F182-H182 -> -2 | R182: H
A183: 18 | B183: 2019-11-19 | D183: NIFTY NOV FUT | E183: Sell | F183: 11945 | G183: 12070 | H183: 11895 | I183: 11750-11700 | J183: Profit of Rs.50/- | K183: =F183-H183 -> 50 | L183: =K183*M183 -> 3750 | M183: 75 | N183: Successful | O183: 2019-11-22 | R183: H
A184: 19 | B184: 2019-11-19 | D184: HAVELLS OCT FUT | E184: Buy | F184: 667 | G184: 649 | H184: 649 | I184: 690 | J184: Loss of Rs.12.5/- | K184: =H184-F184 -> -18 | L184: =+-12.5*M184 -> -12500 | M184: 1000 | N184: Unsuccessful | O184: 2019-11-22 | R184: H
D185: HAVELLS 680 CE OCT | E185: Sell | F185: 9 | H185: 3.5 | K185: =F185-H185 -> 5.5 | R185: H
A186: 20 | B186: 2019-11-20 | D186: ASIANPAINT NOV FUT | E186: Buy | F186: 1741 | G186: 1708 | H186: 1708 | I186: 1780 | J186: Loss of Rs.21/- | K186: =H186-F186 -> -33 | L186: =+-21*M186 -> -12600 | M186: 600 | N186: Unsuccessful | O186: 2019-11-22 | R186: H
D187: ASIANPAINT 1760 CE NOV | E187: Sell | F187: 16.50 | H187: 4.5 | K187: =F187-H187 -> 12 | R187: H
A195: Master Trade Medium Risk
A196: Sr.no | B196: Date | D196: Company | E196: Rec | F196: Rec Price | G196: Stop Loss | H196: Call Closed At | I196: Target | J196: Remark | K196: Profit/ Loss per lot | L196: Gain / Loss per Lot | M196: Lot | N196: Status | O196: Closed Date
A197: 1 | B197: 2019-11-01 | D197: INFRATEL NOV 200 CE | E197: Buy | F197: 16.50 | H197: 21.5 | J197: Profit of Rs.2/- | K197: =H197-F197 -> 5 | L197: =2000*2 -> 4000 | M197: 2000 | N197: Successful | O197: 2019-11-04 | R197: H
D198: INFRATEL NOV 210 CE | E198: Sell | F198: 12.50 | H198: 15.5 | K198: =F198-H198 -> -3 | R198: H
A199: 2 | B199: 2019-11-01 | D199: MARUTI NOV 7500 PE | E199: Buy | F199: 200 | H199: 270 | J199: Profit of Rs.30/- | K199: =H199-F199 -> 70 | L199: =30*M199 -> 2250 | M199: 75 | N199: Successful | O199: 2019-11-05 | R199: N
D200: MARUTI NOV 7300 PE | E200: Sell | F200: 132.50 | H200: 172.5 | K200: =F200-H200 -> -40 | R200: N
A201: 3 | B201: 2019-11-01 | D201: BANKNIFTY 30000 PE 7-NOV | E201: Buy | F201: 250 | G201: 130 | H201: 130 | I201: 450-500 | J201: Loss of Rs.120/- | K201: =H201-F201 -> -120 | L201: =M201*K201 -> -2400 | M201: 20 | N201: Unsuccessful | O201: 2019-11-04 | R201: H
A202: 4 | B202: 2019-11-04 | D202: BANKNIFTY 14 NOV 30400 PE | E202: Buy | F202: 410 | H202: 0 | J202: Loss of Rs.110/- | K202: =H202-F202 -> -410 | L202: =M202*-110 -> -2200 | M202: 20 | N202: Unsuccessful | O202: 2019-11-15 | R202: H
D203: BANKNIFTY 14 NOV 30100 PE | E203: Sell | F203: 300 | H203: 0 | K203: =F203-H203 -> 300 | R203: H
A204: 5 | B204: 2019-11-04 | D204: MOTHERSUMI NOV 120 PE | E204: Buy | F204: 5.75 | H204: 0 | J204: Loss of Rs. 1.65/- | K204: =H204-F204 -> -5.75 | L204: =+-1.65*M204 -> -5445 | M204: 3300 | N204: Unsuccessful | O204: 2019-11-28 | R204: H
D205: MOTHERSUMI 115 PE | E205: Sell | F205: 4.10 | H205: 0 | K205: =F205-H205 -> 4.1 | R205: H
A206: 6 | B206: 2019-11-13 | D206: ICICIBANK NOV 490 PE | E206: Buy | F206: 11.50 | H206: 14.5 | J206: Profit of Rs.2.10/- | K206: =H206-F206 -> 3 | L206: =2.1*M206 -> 2887.5 | M206: 1375 | N206: Successful | O206: 2019-11-14 | R206: H
D207: ICICIBANK NOV 475 PE | E207: Sell | F207: 6.50 | H207: 7.4 | K207: =F207-H207 -> -0.9 | R207: H
A208: 7 | B208: 2019-11-14 | D208: BANKBARODA NOV 95 CE | E208: Buy | F208: 1.9 | H208: 3 | J208: Profit of Rs.0.60/- | K208: =H208-F208 -> 1.1 | L208: =0.6*M208 -> 2700 | M208: 4500 | N208: Successful | O208: 2019-11-15 | R208: H
D209: BANKBARODA NOV 100 CE | E209: Sell | F209: 1 | H209: 1.5 | K209: =F209-H209 -> -0.5 | R209: H
A210: 8 | B210: 2019-11-14 | D210: HINDUNILVR NOV 2100 CE | E210: Buy | F210: 26 | H210: 0 | J210: Loss of Rs. 12/- | K210: =H210-F210 -> -26 | L210: -3600 | M210: 300 | N210: Unsuccessful | O210: 2019-11-28 | R210: N
D211: HINDUNILVR NOV 2140 CE | E211: Sell | F211: 14 | H211: 0 | K211: =F211-H211 -> 14 | R211: N
A212: 9 | B212: 2019-11-18 | D212: LT NOV 1380 PE | E212: Buy | F212: 18 | G212: 5 | H212: 24 | I212: 40 | J212: Profit of Rs.6/- | K212: =H212-F212 -> 6 | L212: =M212*K212 -> 2250 | M212: 375 | N212: Successful | O212: 2019-11-18 | R212: H
A213: 10 | B213: 2019-11-18 | D213: UPL NOV 530 PE | E213: Buy | F213: 12 | H213: 0 | J213: Loss of Rs. 6/- | K213: =H213-F213 -> -12 | L213: -3600 | M213: 900 | N213: Unsuccessful | O213: 2019-11-28 | R213: N
D214: UPL 510 PE | E214: Sell | F214: 6 | H214: 0 | K214: =F214-H214 -> 6 | R214: N
A215: 11 | B215: 2019-11-18 | D215: LT NOV 1380 PE | E215: Buy | F215: 25 | H215: 31.5 | J215: Profit of Rs.4/- | K215: =H215-F215 -> 6.5 | L215: =4*M215 -> 1500 | M215: 375 | N215: Successful | O215: 2019-11-18 | R215: H
D216: LT NOV 1340 PE | E216: Sell | F216: 11 | H216: 13.5 | K216: =F216-H216 -> -2.5 | R216: H
A217: 12 | B217: 2019-11-18 | D217: BHARTIARTL NOV 410 PE | E217: Buy | F217: 12.5 | H217: 0 | J217: Loss of Rs. 4.5/- | K217: =H217-F217 -> -12.5 | L217: =-1375*4.5 -> -6187.5 | M217: 1375 | N217: Unsuccessful | O217: 2019-11-28 | R217: H
D218: BHARTIARTL NOV 395 PE | E218: Sell | F218: 8 | H218: 0 | K218: =F218-H218 -> 8 | R218: H
A219: 13 | B219: 2019-11-18 | D219: AXISBANK NOV 730 CE | E219: Buy | F219: 11.25 | G219: 6 | H219: 13 | I219: 16-18 | J219: Profit of Rs.1.75/- | K219: =H219-F219 -> 1.75 | L219: =M219*K219 -> 2100 | M219: 1200 | N219: Successful | O219: 2019-11-18 | R219: N
A220: 14 | B220: 2019-11-19 | D220: KOTAKBANK NOV 1620 CE | E220: Buy | F220: 25 | G220: 14 | H220: 29.5 | I220: 35-40 | J220: Profit of Rs.4.50/- | K220: =H220-F220 -> 4.5 | L220: =M220*K220 -> 1800 | M220: 400 | N220: Successful | O220: 2019-11-19 | R220: N
A221: 15 | B221: 2019-11-19 | D221: LT NOV 1380 PE | E221: Buy | F221: 24 | H221: 26 | J221: Profit of Rs.3/- | K221: =H221-F221 -> 2 | L221: =3*M221 -> 1125 | M221: 375 | N221: Successful | O221: 2019-11-22 | R221: H
D222: LT NOV 1340 PE | E222: Sell | F222: 10 | H222: 9 | K222: =F222-H222 -> 1 | R222: H
A223: 16 | B223: 2019-11-19 | D223: BHARATFORG NOV 440 PE | E223: Buy | F223: 8.25 | J223: Loss of Rs. 3/- | K223: =H223-F223 -> -8.25 | L223: -3600 | M223: 1200 | N223: Unsuccessful | O223: 2019-11-28 | R223: N
... 169 more rows

Sheet Sheet2 (hidden)
A1: SYMBOL | B1: SERIES | C1: OPEN | D1: HIGH | E1: LOW | F1: CLOSE | G1: LAST | H1: PREVCLOSE | I1: TOTTRDQTY | J1: TOTTRDVAL | K1: TIMESTAMP | L1: TOTALTRADES | M1: ISIN | N1: ISIN
A2: 20MICRONS | B2: EQ | C2: 33.85 | D2: 34.4 | E2: 33.4 | F2: 33.55 | G2: 33.4 | H2: 34.1 | I2: 37909 | J2: 1285362.25 | K2: 2019-11-29 | L2: 621 | M2: INE144J01027
A3: 21STCENMGM | B3: EQ | C3: 13.1 | D3: 13.35 | E3: 13.1 | F3: 13.35 | G3: 13.35 | H3: 13.1 | I3: 154 | J3: 2055.65 | K3: 2019-11-29 | L3: 8 | M3: INE253B01015
A4: 3IINFOTECH | B4: EQ | C4: 2 | D4: 2.05 | E4: 1.95 | F4: 1.95 | G4: 1.95 | H4: 2 | I4: 1358174 | J4: 2677450.95 | K4: 2019-11-29 | L4: 625 | M4: INE748C01020
A5: 3MINDIA | B5: EQ | C5: 22370.1 | D5: 22499.5 | E5: 22157.05 | F5: 22241.75 | G5: 22275 | H5: 22352.65 | I5: 1233 | J5: 27442348.3 | K5: 2019-11-29 | L5: 342 | M5: INE470A01017
A6: 3PLAND | B6: EQ | C6: 6.45 | D6: 6.45 | E6: 5.85 | F6: 5.85 | G6: 5.85 | H6: 6.15 | I6: 1096 | J6: 7032.75 | K6: 2019-11-29 | L6: 8 | M6: INE105C01023
A7: 5PAISA | B7: EQ | C7: 164.4 | D7: 166 | E7: 160.8 | F7: 165.45 | G7: 166 | H7: 162.95 | I7: 4253 | J7: 698827.45 | K7: 2019-11-29 | L7: 277 | M7: INE618L01018
A8: 63MOONS | B8: EQ | C8: 104.7 | D8: 107.9 | E8: 103.35 | F8: 104.85 | G8: 104.8 | H8: 104.15 | I8: 131757 | J8: 13904066.95 | K8: 2019-11-29 | L8: 2723 | M8: INE111B01023
A9: A2ZINFRA | B9: EQ | C9: 8.95 | D9: 8.95 | E9: 8.8 | F9: 8.85 | G9: 8.85 | H9: 8.95 | I9: 73977 | J9: 653630.2 | K9: 2019-11-29 | L9: 250 | M9: INE619I01012
A10: AARTIDRUGS | B10: EQ | C10: 520.3 | D10: 525.95 | E10: 518.05 | F10: 520 | G10: 519.95 | H10: 520.95 | I10: 3903 | J10: 2032554.45 | K10: 2019-11-29 | L10: 626 | M10: INE767A01016
A11: AARTIIND | B11: EQ | C11: 848.5 | D11: 854.8 | E11: 825 | F11: 843.65 | G11: 840 | H11: 847.8 | I11: 95209 | J11: 80446997.75 | K11: 2019-11-29 | L11: 9415 | M11: INE769A01020
A12: AARVEEDEN | B12: EQ | C12: 12.55 | D12: 12.8 | E12: 12.2 | F12: 12.6 | G12: 12.8 | H12: 12.6 | I12: 6502 | J12: 79985.1 | K12: 2019-11-29 | L12: 57 | M12: INE273D01019
A13: AAVAS | B13: EQ | C13: 1799.95 | D13: 1840 | E13: 1752 | F13: 1773.25 | G13: 1760 | H13: 1794.3 | I13: 415805 | J13: 748246007.4 | K13: 2019-11-29 | L13: 5518 | M13: INE216P01012
A14: ABAN | B14: BE | C14: 26.7 | D14: 26.9 | E14: 26 | F14: 26.55 | G14: 26.5 | H14: 26.3 | I14: 17640 | J14: 466703.65 | K14: 2019-11-29 | L14: 232 | M14: INE421A01028
A15: ABB | B15: EQ | C15: 1452 | D15: 1480 | E15: 1441.3 | F15: 1447.8 | G15: 1445 | H15: 1447 | I15: 58803 | J15: 85945432.9 | K15: 2019-11-29 | L15: 5147 | M15: INE117A01022
A16: ABBOTINDIA | B16: EQ | C16: 12750 | D16: 12792 | E16: 12510 | F16: 12578.4 | G16: 12650 | H16: 12743.1 | I16: 5272 | J16: 66590038.75 | K16: 2019-11-29 | L16: 1781 | M16: INE358A01014
A17: ABCAPITAL | B17: EQ | C17: 110.3 | D17: 114.6 | E17: 108.8 | F17: 109.45 | G17: 109.15 | H17: 110.15 | I17: 6000573 | J17: 668549125.1 | K17: 2019-11-29 | L17: 51298 | M17: INE674K01013
A18: ABFRL | B18: EQ | C18: 221.6 | D18: 228 | E18: 221.6 | F18: 225.25 | G18: 225 | H18: 220.9 | I18: 903609 | J18: 203768825.1 | K18: 2019-11-29 | L18: 17257 | M18: INE647O01011
A19: ABSLBANETF | B19: EQ | C19: 320 | D19: 325 | E19: 320 | F19: 323.33 | G19: 325 | H19: 319.51 | I19: 50 | J19: 16100 | K19: 2019-11-29 | L19: 5 | M19: INF209KB1O58
A20: ABSLNN50ET | B20: EQ | C20: 280.87 | D20: 289.73 | E20: 280.87 | F20: 286.3 | G20: 286.3 | H20: 289.18 | I20: 83 | J20: 23612.59 | K20: 2019-11-29 | L20: 6 | M20: INF209KB1B87
A21: ACC | B21: EQ | C21: 1514 | D21: 1535 | E21: 1510 | F21: 1522.15 | G21: 1521 | H21: 1516.4 | I21: 851825 | J21: 1296097438 | K21: 2019-11-29 | L21: 25344 | M21: INE012A01025
A22: ACCELYA | B22: EQ | C22: 950.1 | D22: 960 | E22: 948 | F22: 954.1 | G22: 956.7 | H22: 953.6 | I22: 5515 | J22: 5257657.45 | K22: 2019-11-29 | L22: 407 | M22: INE793A01012
A23: ACE | B23: EQ | C23: 78.95 | D23: 79.2 | E23: 76.85 | F23: 77.8 | G23: 77.95 | H23: 76.7 | I23: 94749 | J23: 7376754.25 | K23: 2019-11-29 | L23: 1424 | M23: INE731H01025
A24: ADANIENT | B24: EQ | C24: 212.4 | D24: 221.5 | E24: 211.7 | F24: 214.9 | G24: 213.6 | H24: 213.1 | I24: 7969827 | J24: 1733065586 | K24: 2019-11-29 | L24: 50943 | M24: INE423A01024
A25: ADANIGAS | B25: EQ | C25: 150.5 | D25: 168.7 | E25: 149.1 | F25: 161.35 | G25: 160.7 | H25: 149.45 | I25: 10414685 | J25: 1672068443 | K25: 2019-11-29 | L25: 79780 | M25: INE399L01023
A26: ADANIGREEN | B26: EQ | C26: 136 | D26: 138.75 | E26: 132.35 | F26: 137.1 | G26: 137.15 | H26: 132.15 | I26: 5716364 | J26: 784867908.2 | K26: 2019-11-29 | L26: 35088 | M26: INE364U01010
A27: ADANIPORTS | B27: EQ | C27: 372 | D27: 384.95 | E27: 370.8 | F27: 382.05 | G27: 381 | H27: 372.6 | I27: 30111277 | J27: 1.143740998e+10 | K27: 2019-11-29 | L27: 136495 | M27: INE742F01042
A28: ADANIPOWER | B28: EQ | C28: 61.6 | D28: 66.65 | E28: 61.5 | F28: 63.6 | G28: 63.35 | H28: 61.55 | I28: 20190214 | J28: 1304819394 | K28: 2019-11-29 | L28: 47493 | M28: INE814H01011
A29: ADANITRANS | B29: EQ | C29: 280.65 | D29: 317.5 | E29: 278.9 | F29: 310.15 | G29: 308 | H29: 279.85 | I29: 2083819 | J29: 639162603.1 | K29: 2019-11-29 | L29: 32496 | M29: INE931S01010
A30: ADFFOODS | B30: EQ | C30: 290.05 | D30: 304.7 | E30: 288.1 | F30: 300.35 | G30: 300.1 | H30: 289.85 | I30: 54251 | J30: 16123472.75 | K30: 2019-11-29 | L30: 1048 | M30: INE982B01019
A31: ADHUNIKIND | B31: EQ | C31: 118.95 | D31: 124.95 | E31: 116.5 | F31: 116.75 | G31: 116.5 | H31: 118.8 | I31: 27713 | J31: 3262754.7 | K31: 2019-11-29 | L31: 713 | M31: INE452L01012
A32: ADLABS | B32: BE | C32: 4.2 | D32: 4.2 | E32: 4.2 | F32: 4.2 | G32: 4.2 | H32: 4 | I32: 23794 | J32: 99934.8 | K32: 2019-11-29 | L32: 57 | M32: INE172N01012
A33: ADORWELD | B33: EQ | C33: 315 | D33: 316.55 | E33: 310 | F33: 312.6 | G33: 314 | H33: 312.8 | I33: 3868 | J33: 1210529.5 | K33: 2019-11-29 | L33: 138 | M33: INE045A01017
A34: ADROITINFO | B34: BE | C34: 9.35 | D34: 9.8 | E34: 8.9 | F34: 8.95 | G34: 8.9 | H34: 9.35 | I34: 511 | J34: 4604.35 | K34: 2019-11-29 | L34: 11 | M34: INE737B01033
A35: ADSL | B35: EQ | C35: 25.1 | D35: 25.1 | E35: 23.15 | F35: 23.65 | G35: 23.85 | H35: 25.7 | I35: 555216 | J35: 13303911.65 | K35: 2019-11-29 | L35: 2510 | M35: INE102I01027
A36: ADVANIHOTR | B36: EQ | C36: 55.2 | D36: 56 | E36: 54.55 | F36: 54.65 | G36: 54.55 | H36: 55.4 | I36: 5379 | J36: 296068.6 | K36: 2019-11-29 | L36: 161 | M36: INE199C01026
A37: ADVENZYMES | B37: EQ | C37: 168.4 | D37: 169.95 | E37: 164.8 | F37: 165.55 | G37: 165.5 | H37: 168.4 | I37: 115260 | J37: 19297564.4 | K37: 2019-11-29 | L37: 2844 | M37: INE837H01020
A38: AEGISCHEM | B38: EQ | C38: 195.75 | D38: 198.9 | E38: 194.3 | F38: 195.6 | G38: 195.8 | H38: 194.15 | I38: 175797 | J38: 34505173.4 | K38: 2019-11-29 | L38: 4825 | M38: INE208C01025
A39: AFFLE | B39: EQ | C39: 1570 | D39: 1578 | E39: 1502.25 | F39: 1521.45 | G39: 1527 | H39: 1567.6 | I39: 83186 | J39: 128236008.2 | K39: 2019-11-29 | L39: 7213 | M39: INE00WC01019
A40: AGARIND | B40: EQ | C40: 103.9 | D40: 104.9 | E40: 100.4 | F40: 101 | G40: 101 | H40: 100.95 | I40: 3793 | J40: 386964.05 | K40: 2019-11-29 | L40: 81 | M40: INE204E01012
A41: AGCNET | B41: BE | C41: 125 | D41: 126 | E41: 123 | F41: 125.95 | G41: 125.95 | H41: 125 | I41: 1197 | J41: 149594.95 | K41: 2019-11-29 | L41: 18 | M41: INE676A01019
A42: AGRITECH | B42: EQ | C42: 43.05 | D42: 43.9 | E42: 42.15 | F42: 43.05 | G42: 42.75 | H42: 42.7 | I42: 2686 | J42: 115721.2 | K42: 2019-11-29 | L42: 177 | M42: INE449G01018
A43: AGROPHOS | B43: EQ | C43: 132.7 | D43: 133.45 | E43: 132.7 | F43: 133.25 | G43: 133.25 | H43: 132.45 | I43: 858892 | J43: 114330556.4 | K43: 2019-11-29 | L43: 11074 | M43: INE740V01019
A44: AHLEAST | B44: EQ | C44: 183 | D44: 186.75 | E44: 177.95 | F44: 182.4 | G44: 185 | H44: 175.8 | I44: 102267 | J44: 18279986.05 | K44: 2019-11-29 | L44: 363 | M44: INE926K01017
A45: AHLUCONT | B45: EQ | C45: 274 | D45: 278 | E45: 272.3 | F45: 274.8 | G45: 275.95 | H45: 274.65 | I45: 1015 | J45: 279201.8 | K45: 2019-11-29 | L45: 117 | M45: INE758C01029
A46: AHLWEST | B46: EQ | C46: 334.25 | D46: 335 | E46: 327 | F46: 334.65 | G46: 335 | H46: 334.25 | I46: 410 | J46: 135803.85 | K46: 2019-11-29 | L46: 65 | M46: INE915K01010
A47: AIAENG | B47: EQ | C47: 1629 | D47: 1652 | E47: 1626.05 | F47: 1644.25 | G47: 1643 | H47: 1647.75 | I47: 10500 | J47: 17293885.75 | K47: 2019-11-29 | L47: 1974 | M47: INE212H01026
A48: AIONJSW | B48: EQ | C48: 10 | D48: 10 | E48: 9.75 | F48: 9.9 | G48: 9.95 | H48: 9.95 | I48: 76364 | J48: 759836.1 | K48: 2019-11-29 | L48: 131 | M48: INE743C01021
A49: AIRAN | B49: EQ | C49: 11 | D49: 11 | E49: 10.8 | F49: 10.95 | G49: 11 | H49: 10.9 | I49: 9097 | J49: 99500 | K49: 2019-11-29 | L49: 33 | M49: INE645W01026
A50: AJANTPHARM | B50: EQ | C50: 1003 | D50: 1004.9 | E50: 991 | F50: 996.9 | G50: 1000 | H50: 999.9 | I50: 77054 | J50: 76711013.15 | K50: 2019-11-29 | L50: 2766 | M50: INE031B01049
A51: AJMERA | B51: EQ | C51: 119.6 | D51: 124.35 | E51: 119 | F51: 122.35 | G51: 122.45 | H51: 120.15 | I51: 57129 | J51: 6956971.05 | K51: 2019-11-29 | L51: 1408 | M51: INE298G01027
A52: AKASH | B52: EQ | C52: 63 | D52: 63.1 | E52: 62 | F52: 62.4 | G52: 62 | H52: 64 | I52: 2805 | J52: 175405.25 | K52: 2019-11-29 | L52: 11 | M52: INE737W01013
A53: AKSHARCHEM | B53: EQ | C53: 190.4 | D53: 191.8 | E53: 185.5 | F53: 188.35 | G53: 187.5 | H53: 190.4 | I53: 5226 | J53: 985335.3 | K53: 2019-11-29 | L53: 169 | M53: INE542B01011
A54: AKSHOPTFBR | B54: EQ | C54: 6.75 | D54: 7.2 | E54: 6.75 | F54: 7.05 | G54: 7.05 | H54: 6.9 | I54: 240307 | J54: 1686110.25 | K54: 2019-11-29 | L54: 499 | M54: INE523B01011
A55: AKZOINDIA | B55: EQ | C55: 1947.95 | D55: 1947.95 | E55: 1902.65 | F55: 1935.05 | G55: 1931.55 | H55: 1935.95 | I55: 11472 | J55: 22142916.45 | K55: 2019-11-29 | L55: 2400 | M55: INE133A01011
A56: ALANKIT | B56: EQ | C56: 13.4 | D56: 13.75 | E56: 12.65 | F56: 12.85 | G56: 12.9 | H56: 13.3 | I56: 76723 | J56: 995477.05 | K56: 2019-11-29 | L56: 378 | M56: INE914E01040
A57: ALBERTDAVD | B57: EQ | C57: 402.05 | D57: 414.65 | E57: 402.05 | F57: 405.35 | G57: 412.9 | H57: 406.95 | I57: 6498 | J57: 2643877.55 | K57: 2019-11-29 | L57: 383 | M57: INE155C01010
A58: ALBK | B58: EQ | C58: 23.95 | D58: 24.6 | E58: 23.7 | F58: 23.85 | G58: 23.8 | H58: 23.85 | I58: 2490734 | J58: 60229605 | K58: 2019-11-29 | L58: 6240 | M58: INE428A01015
A59: ALCHEM | B59: BE | C59: 0.95 | D59: 0.95 | E59: 0.85 | F59: 0.85 | G59: 0.85 | H59: 0.9 | I59: 16107 | J59: 14095.25 | K59: 2019-11-29 | L59: 27 | M59: INE964B01033
A60: ALEMBICLTD | B60: EQ | C60: 53.05 | D60: 54.55 | E60: 52.4 | F60: 52.75 | G60: 52.5 | H60: 52.95 | I60: 146182 | J60: 7802850.05 | K60: 2019-11-29 | L60: 3158 | M60: INE426A01027
A61: ALICON | B61: EQ | C61: 371 | D61: 376.55 | E61: 368 | F61: 372.25 | G61: 374 | H61: 370.95 | I61: 820 | J61: 305976.3 | K61: 2019-11-29 | L61: 259 | M61: INE062D01024
A62: ALKALI | B62: EQ | C62: 40.5 | D62: 41 | E62: 39.55 | F62: 40.55 | G62: 40.9 | H62: 39.55 | I62: 11548 | J62: 467100.4 | K62: 2019-11-29 | L62: 165 | M62: INE773I01017
A63: ALKEM | B63: EQ | C63: 2026.1 | D63: 2039.95 | E63: 2002 | F63: 2029.1 | G63: 2010 | H63: 2025.45 | I63: 33717 | J63: 68371488.35 | K63: 2019-11-29 | L63: 2967 | M63: INE540L01014
A64: ALKYLAMINE | B64: EQ | C64: 1070 | D64: 1077 | E64: 1055.05 | F64: 1071.7 | G64: 1070 | H64: 1074.7 | I64: 9815 | J64: 10483879.65 | K64: 2019-11-29 | L64: 620 | M64: INE150B01021
A65: ALLCARGO | B65: EQ | C65: 93 | D65: 94.5 | E65: 92 | F65: 93.25 | G65: 93.35 | H65: 92.8 | I65: 66286 | J65: 6189793.85 | K65: 2019-11-29 | L65: 1167 | M65: INE418H01029
A66: ALLSEC | B66: EQ | C66: 275.5 | D66: 279.8 | E66: 275.5 | F66: 277.2 | G66: 275.5 | H66: 280 | I66: 845 | J66: 234072.2 | K66: 2019-11-29 | L66: 192 | M66: INE835G01018
A67: ALMONDZ | B67: EQ | C67: 9.8 | D67: 10 | E67: 9.45 | F67: 9.45 | G67: 9.45 | H67: 9.8 | I67: 113 | J67: 1125.45 | K67: 2019-11-29 | L67: 6 | M67: INE326B01027
A68: ALOKTEXT | B68: EQ | C68: 3 | D68: 3 | E68: 3 | F68: 3 | G68: 3 | H68: 2.9 | I68: 375171 | J68: 1125513 | K68: 2019-11-29 | L68: 215 | M68: INE270A01011
A69: ALPA | B69: EQ | C69: 15.7 | D69: 16.25 | E69: 15.55 | F69: 15.7 | G69: 15.7 | H69: 15.8 | I69: 4008 | J69: 63465.45 | K69: 2019-11-29 | L69: 54 | M69: INE385I01010
A70: ALPHAGEO | B70: EQ | C70: 185.35 | D70: 185.35 | E70: 177.15 | F70: 184.35 | G70: 184.85 | H70: 176.55 | I70: 37017 | J70: 6827921.1 | K70: 2019-11-29 | L70: 920 | M70: INE137C01018
A71: ALPSINDUS | B71: BE | C71: 1.2 | D71: 1.2 | E71: 1.2 | F71: 1.2 | G71: 1.2 | H71: 1.15 | I71: 1571 | J71: 1885.2 | K71: 2019-11-29 | L71: 6 | M71: INE093B01015
A72: AMARAJABAT | B72: EQ | C72: 754.7 | D72: 756.3 | E72: 743.55 | F72: 750.65 | G72: 751.7 | H72: 754.75 | I72: 260369 | J72: 195220224.2 | K72: 2019-11-29 | L72: 10890 | M72: INE885A01032
A73: AMBER | B73: EQ | C73: 1024 | D73: 1050 | E73: 1012.5 | F73: 1032 | G73: 1045 | H73: 1016.4 | I73: 73165 | J73: 75356680.85 | K73: 2019-11-29 | L73: 4160 | M73: INE371P01015
A74: AMBIKCO | B74: EQ | C74: 878.95 | D74: 879 | E74: 868 | F74: 872.8 | G74: 872.9 | H74: 870.6 | I74: 1034 | J74: 901572.25 | K74: 2019-11-29 | L74: 154 | M74: INE540G01014
A75: AMBUJACEM | B75: EQ | C75: 206 | D75: 208.2 | E75: 203.9 | F75: 204.65 | G75: 204.65 | H75: 204.95 | I75: 2788327 | J75: 574414095.6 | K75: 2019-11-29 | L75: 22417 | M75: INE079A01024
A76: AMDIND | B76: EQ | C76: 16.5 | D76: 16.5 | E76: 16.15 | F76: 16.35 | G76: 16.35 | H76: 16.5 | I76: 1243 | J76: 20290.7 | K76: 2019-11-29 | L76: 15 | M76: INE005I01014
A77: AMJLAND | B77: EQ | C77: 18.5 | D77: 19.5 | E77: 18.25 | F77: 19.3 | G77: 19.5 | H77: 19.35 | I77: 11577 | J77: 219825.95 | K77: 2019-11-29 | L77: 38 | M77: INE606A01024
A78: AMRUTANJAN | B78: EQ | C78: 462.35 | D78: 463.75 | E78: 442.25 | F78: 446.4 | G78: 447 | H78: 459.85 | I78: 20857 | J78: 9502932.7 | K78: 2019-11-29 | L78: 3920 | M78: INE098F01031
A79: ANANTRAJ | B79: EQ | C79: 33.55 | D79: 33.95 | E79: 33.2 | F79: 33.7 | G79: 33.9 | H79: 33.45 | I79: 176113 | J79: 5911916.05 | K79: 2019-11-29 | L79: 1018 | M79: INE242C01024
A80: ANDHRABANK | B80: EQ | C80: 19.15 | D80: 19.15 | E80: 18.75 | F80: 18.8 | G80: 18.8 | H80: 19.05 | I80: 1070605 | J80: 20271518.95 | K80: 2019-11-29 | L80: 2169 | M80: INE434A01013
A81: ANDHRACEMT | B81: BE | C81: 2.3 | D81: 2.45 | E81: 2.25 | F81: 2.3 | G81: 2.35 | H81: 2.35 | I81: 235910 | J81: 550273 | K81: 2019-11-29 | L81: 221 | M81: INE666E01012
A82: ANDHRSUGAR | B82: EQ | C82: 291.75 | D82: 301 | E82: 289.65 | F82: 292.2 | G82: 293.6 | H82: 291.9 | I82: 44746 | J82: 13205446.35 | K82: 2019-11-29 | L82: 1614 | M82: INE715B01013
A83: ANIKINDS | B83: BE | C83: 8.75 | D83: 9.15 | E83: 8.5 | F83: 8.8 | G83: 8.8 | H83: 8.75 | I83: 3207 | J83: 28480.05 | K83: 2019-11-29 | L83: 26 | M83: INE087B01017
A84: ANKITMETAL | B84: BE | C84: 1.1 | D84: 1.1 | E84: 1.1 | F84: 1.1 | G84: 1.1 | H84: 1.05 | I84: 48921 | J84: 53813.1 | K84: 2019-11-29 | L84: 57 | M84: INE106I01010
A85: ANSALAPI | B85: EQ | C85: 4.8 | D85: 5.05 | E85: 4.8 | F85: 4.9 | G85: 4.9 | H85: 4.85 | I85: 82624 | J85: 404992.35 | K85: 2019-11-29 | L85: 115 | M85: INE436A01026
A86: ANSALHSG | B86: BE | C86: 6.05 | D86: 6.05 | E86: 5.75 | F86: 5.8 | G86: 5.85 | H86: 6.05 | I86: 52615 | J86: 306874.3 | K86: 2019-11-29 | L86: 145 | M86: INE880B01015
A87: ANTGRAPHIC | B87: BE | C87: 0.6 | D87: 0.6 | E87: 0.55 | F87: 0.6 | G87: 0.6 | H87: 0.6 | I87: 112898 | J87: 63022.9 | K87: 2019-11-29 | L87: 78 | M87: INE414B01021
A88: ANUP | B88: EQ | C88: 452 | D88: 462 | E88: 444.55 | F88: 449.8 | G88: 454 | H88: 459.8 | I88: 6518 | J88: 2946757.4 | K88: 2019-11-29 | L88: 535 | M88: INE294Z01018
A89: APARINDS | B89: EQ | C89: 456.55 | D89: 459.95 | E89: 452.9 | F89: 454.3 | G89: 453.15 | H89: 456.1 | I89: 1949 | J89: 888874.2 | K89: 2019-11-29 | L89: 382 | M89: INE372A01015
A90: APCL | B90: EQ | C90: 142.55 | D90: 145.45 | E90: 142.55 | F90: 144.05 | G90: 143.25 | H90: 145.55 | I90: 3712 | J90: 535130.1 | K90: 2019-11-29 | L90: 218 | M90: INE071F01012
A91: APCOTEXIND | B91: EQ | C91: 173.9 | D91: 174.95 | E91: 161.55 | F91: 169.55 | G91: 169 | H91: 172.2 | I91: 83625 | J91: 13843404 | K91: 2019-11-29 | L91: 2376 | M91: INE116A01032
A92: APEX | B92: EQ | C92: 303.85 | D92: 309.8 | E92: 301 | F92: 303.7 | G92: 303.2 | H92: 303.85 | I92: 102152 | J92: 31132621.5 | K92: 2019-11-29 | L92: 2647 | M92: INE346W01013
A93: APLAPOLLO | B93: EQ | C93: 1562.15 | D93: 1572.6 | E93: 1551.25 | F93: 1565.95 | G93: 1565 | H93: 1562.9 | I93: 10771 | J93: 16797905.7 | K93: 2019-11-29 | L93: 1079 | M93: INE702C01019
A94: APLLTD | B94: EQ | C94: 567 | D94: 577.1 | E94: 549 | F94: 551.9 | G94: 556.9 | H94: 567.3 | I94: 58260 | J94: 32683076.45 | K94: 2019-11-29 | L94: 3022 | M94: INE901L01018
A95: APOLLO | B95: EQ | C95: 71.4 | D95: 72.5 | E95: 69.65 | F95: 70.4 | G95: 70.6 | H95: 70.4 | I95: 39654 | J95: 2805132.05 | K95: 2019-11-29 | L95: 1016 | M95: INE713T01010
A96: APOLLOHOSP | B96: EQ | C96: 1453.5 | D96: 1466.85 | E96: 1431 | F96: 1441.2 | G96: 1438.55 | H96: 1444.5 | I96: 359720 | J96: 519768908.4 | K96: 2019-11-29 | L96: 13147 | M96: INE437A01024
A97: APOLLOPIPE | B97: EQ | C97: 353.4 | D97: 353.4 | E97: 340.7 | F97: 346.05 | G97: 346.8 | H97: 347 | I97: 2948 | J97: 1018704.25 | K97: 2019-11-29 | L97: 384 | M97: INE126J01016
A98: APOLLOTYRE | B98: EQ | C98: 171 | D98: 172.8 | E98: 167.3 | F98: 168.05 | G98: 167.8 | H98: 171.35 | I98: 2077562 | J98: 351695482.6 | K98: 2019-11-29 | L98: 15556 | M98: INE438A01022
A99: APOLSINHOT | B99: EQ | C99: 672 | D99: 683.95 | E99: 669 | F99: 669.6 | G99: 669 | H99: 685.15 | I99: 591 | J99: 396196 | K99: 2019-11-29 | L99: 66 | M99: INE451F01024
A100: APTECHT | B100: EQ | C100: 161.4 | D100: 169.9 | E100: 160.85 | F100: 163.65 | G100: 163.4 | H100: 161.4 | I100: 350246 | J100: 58025346.6 | K100: 2019-11-29 | L100: 6057 | M100: INE266F01018
A101: ARCHIDPLY | B101: EQ | C101: 28.6 | D101: 28.6 | E101: 27.4 | F101: 28.05 | G101: 28.2 | H101: 28.25 | I101: 12572 | J101: 354465.15 | K101: 2019-11-29 | L101: 194 | M101: INE877I01016
A102: ARCHIES | B102: BE | C102: 19.2 | D102: 19.75 | E102: 19.2 | F102: 19.65 | G102: 19.75 | H102: 19.45 | I102: 22220 | J102: 433387.1 | K102: 2019-11-29 | L102: 100 | M102: INE731A01020
A103: ARCOTECH | B103: BE | C103: 2.55 | D103: 2.55 | E103: 2.55 | F103: 2.55 | G103: 2.55 | H103: 2.65 | I103: 10668 | J103: 27203.4 | K103: 2019-11-29 | L103: 24 | M103: INE574I01035
A104: ARIES | B104: EQ | C104: 66.25 | D104: 66.95 | E104: 65.4 | F104: 65.7 | G104: 66 | H104: 66.75 | I104: 11819 | J104: 780741.2 | K104: 2019-11-29 | L104: 203 | M104: INE298I01015
A105: ARIHANT | B105: EQ | C105: 23.25 | D105: 23.25 | E105: 22.1 | F105: 22.15 | G105: 22.1 | H105: 23.25 | I105: 3223 | J105: 72654.4 | K105: 2019-11-29 | L105: 43 | M105: INE413D01011
A106: ARIHANTSUP | B106: BE | C106: 24.4 | D106: 24.4 | E106: 23 | F106: 24 | G106: 23.7 | H106: 23.45 | I106: 1688 | J106: 40131.45 | K106: 2019-11-29 | L106: 14 | M106: INE643K01018
A107: ARMANFIN | B107: EQ | C107: 538 | D107: 596.7 | E107: 530.1 | F107: 571.35 | G107: 576 | H107: 544.1 | I107: 17299 | J107: 9812768.9 | K107: 2019-11-29 | L107: 1782 | M107: INE109C01017
A108: AROGRANITE | B108: EQ | C108: 37.7 | D108: 39.2 | E108: 37.5 | F108: 38.25 | G108: 38.5 | H108: 37.8 | I108: 2386 | J108: 91102.75 | K108: 2019-11-29 | L108: 66 | M108: INE210C01013
A109: ARROWGREEN | B109: EQ | C109: 50 | D109: 50.9 | E109: 49.25 | F109: 49.8 | G109: 49.7 | H109: 50 | I109: 8286 | J109: 415946.4 | K109: 2019-11-29 | L109: 202 | M109: INE570D01018
A110: ARROWTEX | B110: EQ | C110: 9.5 | D110: 9.8 | E110: 9.4 | F110: 9.4 | G110: 9.4 | H110: 9.5 | I110: 19839 | J110: 187847.4 | K110: 2019-11-29 | L110: 60 | M110: INE933J01015
A111: ARSHIYA | B111: EQ | C111: 16.5 | D111: 16.55 | E111: 16.1 | F111: 16.55 | G111: 16.55 | H111: 15.8 | I111: 32013 | J111: 527991.95 | K111: 2019-11-29 | L111: 97 | M111: INE968D01022
A112: ARSSINFRA | B112: EQ | C112: 26.7 | D112: 26.8 | E112: 24.55 | F112: 26.15 | G112: 26.1 | H112: 25.8 | I112: 65789 | J112: 1707552.85 | K112: 2019-11-29 | L112: 406 | M112: INE267I01010
A113: ARVIND | B113: EQ | C113: 44.5 | D113: 45.5 | E113: 42.8 | F113: 43.2 | G113: 43 | H113: 44.4 | I113: 1803605 | J113: 79599187.4 | K113: 2019-11-29 | L113: 8101 | M113: INE034A01011
A114: ARVINDFASN | B114: EQ | C114: 343.95 | D114: 346 | E114: 338.65 | F114: 343.3 | G114: 340.45 | H114: 339.85 | I114: 88125 | J114: 30094584.15 | K114: 2019-11-29 | L114: 7937 | M114: INE955V01021
A115: ARVSMART | B115: EQ | C115: 89.6 | D115: 90.5 | E115: 88.55 | F115: 89.55 | G115: 88.55 | H115: 89.35 | I115: 10364 | J115: 930959.05 | K115: 2019-11-29 | L115: 301 | M115: INE034S01021
A116: ASAHIINDIA | B116: EQ | C116: 205.05 | D116: 206.9 | E116: 204.05 | F116: 205.5 | G116: 205 | H116: 204.9 | I116: 6221 | J116: 1276015.35 | K116: 2019-11-29 | L116: 177 | M116: INE439A01020
A117: ASAHISONG | B117: EQ | C117: 139 | D117: 146 | E117: 137.75 | F117: 139.8 | G117: 139 | H117: 139.85 | I117: 4712 | J117: 664775.45 | K117: 2019-11-29 | L117: 433 | M117: INE228I01012
A118: ASAL | B118: EQ | C118: 32 | D118: 32 | E118: 31 | F118: 31.65 | G118: 31.75 | H118: 31.75 | I118: 2383 | J118: 75264.7 | K118: 2019-11-29 | L118: 61 | M118: INE900C01027
A119: ASHAPURMIN | B119: BE | C119: 30.95 | D119: 30.95 | E119: 28.2 | F119: 28.75 | G119: 29 | H119: 29.5 | I119: 39447 | J119: 1184994.8 | K119: 2019-11-29 | L119: 161 | M119: INE348A01023
A120: ASHIANA | B120: EQ | C120: 95 | D120: 95.7 | E120: 93.2 | F120: 93.45 | G120: 93.2 | H120: 94.05 | I120: 25031 | J120: 2355141.7 | K120: 2019-11-29 | L120: 496 | M120: INE365D01021
A121: ASHIMASYN | B121: EQ | C121: 7.2 | D121: 7.25 | E121: 7 | F121: 7.05 | G121: 7 | H121: 7.05 | I121: 6758 | J121: 48043.7 | K121: 2019-11-29 | L121: 47 | M121: INE440A01010
A122: ASHOKA | B122: EQ | C122: 97.05 | D122: 98.8 | E122: 96 | F122: 96.55 | G122: 96.4 | H122: 95 | I122: 2656787 | J122: 258195269.4 | K122: 2019-11-29 | L122: 32590 | M122: INE442H01029
A123: ASHOKLEY | B123: EQ | C123: 81 | D123: 82.1 | E123: 78.25 | F123: 79.15 | G123: 79.05 | H123: 81.45 | I123: 22446824 | J123: 1793910397 | K123: 2019-11-29 | L123: 77623 | M123: INE208A01029
A124: ASIANHOTNR | B124: EQ | C124: 98 | D124: 104.85 | E124: 97.05 | F124: 103.75 | G124: 104 | H124: 99 | I124: 1691 | J124: 173279.45 | K124: 2019-11-29 | L124: 305 | M124: INE363A01022
A125: ASIANPAINT | B125: EQ | C125: 1715 | D125: 1720.4 | E125: 1677.35 | F125: 1706.15 | G125: 1706 | H125: 1714.6 | I125: 1890290 | J125: 3202571031 | K125: 2019-11-29 | L125: 112615 | M125: INE021A01026
A126: ASIANTILES | B126: EQ | C126: 254.45 | D126: 254.45 | E126: 247 | F126: 247.5 | G126: 247 | H126: 254.7 | I126: 54622 | J126: 13611894.85 | K126: 2019-11-29 | L126: 3141 | M126: INE022I01019
A127: ASPINWALL | B127: EQ | C127: 142 | D127: 149.8 | E127: 142 | F127: 143.45 | G127: 143.85 | H127: 140 | I127: 283 | J127: 40472.2 | K127: 2019-11-29 | L127: 8 | M127: INE991I01015
A128: ASTEC | B128: EQ | C128: 379 | D128: 388 | E128: 375 | F128: 383.45 | G128: 388 | H128: 383.15 | I128: 1739 | J128: 660055.75 | K128: 2019-11-29 | L128: 177 | M128: INE563J01010
A129: ASTERDM | B129: EQ | C129: 152.3 | D129: 163.1 | E129: 151 | F129: 160.4 | G129: 157 | H129: 153.9 | I129: 611960 | J129: 97680549.4 | K129: 2019-11-29 | L129: 8140 | M129: INE914M01019
A130: ASTRAL | B130: EQ | C130: 1139 | D130: 1148 | E130: 1111 | F130: 1133.95 | G130: 1132.95 | H130: 1134.95 | I130: 243025 | J130: 275177064.7 | K130: 2019-11-29 | L130: 6982 | M130: INE006I01046
A131: ASTRAMICRO | B131: EQ | C131: 89.15 | D131: 91.15 | E131: 87.5 | F131: 89.2 | G131: 89.9 | H131: 88.55 | I131: 114789 | J131: 10212358 | K131: 2019-11-29 | L131: 1344 | M131: INE386C01029
A132: ASTRAZEN | B132: EQ | C132: 2672.3 | D132: 2708 | E132: 2625 | F132: 2649.15 | G132: 2640 | H132: 2672.25 | I132: 7302 | J132: 19408704.45 | K132: 2019-11-29 | L132: 1782 | M132: INE203A01020
A133: ASTRON | B133: EQ | C133: 40.05 | D133: 40.6 | E133: 39.65 | F133: 39.65 | G133: 39.95 | H133: 40.15 | I133: 187337 | J133: 7439338.25 | K133: 2019-11-29 | L133: 572 | M133: INE646X01014
A134: ATFL | B134: EQ | C134: 588.95 | D134: 608 | E134: 578.45 | F134: 598.65 | G134: 588.05 | H134: 584 | I134: 9259 | J134: 5472373.15 | K134: 2019-11-29 | L134: 696 | M134: INE209A01019
A135: ATLANTA | B135: BE | C135: 6.85 | D135: 7.1 | E135: 6.65 | F135: 7 | G135: 7 | H135: 7 | I135: 24857 | J135: 168733.4 | K135: 2019-11-29 | L135: 79 | M135: INE285H01022
A136: ATLASCYCLE | B136: BE | C136: 51.95 | D136: 51.95 | E136: 50.5 | F136: 51.85 | G136: 51.85 | H136: 51.1 | I136: 1526 | J136: 78431 | K136: 2019-11-29 | L136: 23 | M136: INE446A01025
A137: ATUL | B137: EQ | C137: 4115 | D137: 4115 | E137: 4032.05 | F137: 4046.3 | G137: 4033.15 | H137: 4085.5 | I137: 4158 | J137: 16865875.85 | K137: 2019-11-29 | L137: 1155 | M137: INE100A01010
A138: ATULAUTO | B138: EQ | C138: 243.35 | D138: 252 | E138: 242.8 | F138: 248.65 | G138: 249 | H138: 240.95 | I138: 71753 | J138: 17762613.45 | K138: 2019-11-29 | L138: 3068 | M138: INE951D01028
A139: AUBANK | B139: EQ | C139: 812.9 | D139: 826.55 | E139: 806 | F139: 823.75 | G139: 822.9 | H139: 808.8 | I139: 177876 | J139: 145376586.9 | K139: 2019-11-29 | L139: 7615 | M139: INE949L01017
A140: AURIONPRO | B140: EQ | C140: 68 | D140: 70.05 | E140: 66.1 | F140: 66.9 | G140: 67.8 | H140: 68.55 | I140: 5528 | J140: 373601.9 | K140: 2019-11-29 | L140: 212 | M140: INE132H01018
A141: AUROPHARMA | B141: EQ | C141: 454 | D141: 461.85 | E141: 445.6 | F141: 449.9 | G141: 450 | H141: 449.65 | I141: 4129315 | J141: 1873609036 | K141: 2019-11-29 | L141: 52048 | M141: INE406A01037
A142: AUSOMENT | B142: EQ | C142: 36.1 | D142: 39.6 | E142: 35.05 | F142: 36 | G142: 35.5 | H142: 37.65 | I142: 5620 | J142: 206431.1 | K142: 2019-11-29 | L142: 137 | M142: INE218C01016
A143: AUTOAXLES | B143: EQ | C143: 815.1 | D143: 832 | E143: 798.05 | F143: 819.05 | G143: 812 | H143: 819.35 | I143: 7782 | J143: 6324595.2 | K143: 2019-11-29 | L143: 978 | M143: INE449A01011
A144: AUTOIND | B144: EQ | C144: 29.9 | D144: 31.55 | E144: 28.7 | F144: 31.5 | G144: 31.55 | H144: 28.7 | I144: 112964 | J144: 3521223.45 | K144: 2019-11-29 | L144: 1042 | M144: INE718H01014
A145: AUTOLITIND | B145: EQ | C145: 23.05 | D145: 25.05 | E145: 23 | F145: 24.5 | G145: 24.75 | H145: 22.8 | I145: 37401 | J145: 904006.4 | K145: 2019-11-29 | L145: 828 | M145: INE448A01013
A146: AVADHSUGAR | B146: EQ | C146: 225.1 | D146: 234.7 | E146: 221.95 | F146: 228.3 | G146: 229 | H146: 224.65 | I146: 95763 | J146: 21928051.55 | K146: 2019-11-29 | L146: 2561 | M146: INE349W01017
A147: AVANTIFEED | B147: EQ | C147: 508.1 | D147: 519 | E147: 506 | F147: 511.6 | G147: 510.1 | H147: 505.9 | I147: 269215 | J147: 137907525.9 | K147: 2019-11-29 | L147: 7824 | M147: INE871C01038
A148: AVTNPL | B148: EQ | C148: 29.85 | D148: 29.85 | E148: 29.1 | F148: 29.4 | G148: 29.4 | H148: 29.45 | I148: 26316 | J148: 775799.7 | K148: 2019-11-29 | L148: 231 | M148: INE488D01021
A149: AXISBANK | B149: EQ | C149: 749.9 | D149: 756.35 | E149: 736.5 | F149: 739.05 | G149: 738.6 | H149: 750.6 | I149: 12674173 | J149: 9440830186 | K149: 2019-11-29 | L149: 133009 | M149: INE238A01034
A150: AXISCADES | B150: EQ | C150: 63.95 | D150: 64.8 | E150: 62.1 | F150: 63 | G150: 63.05 | H150: 63.95 | I150: 91475 | J150: 5824252.95 | K150: 2019-11-29 | L150: 987 | M150: INE555B01013
A151: AXISGOLD | B151: EQ | C151: 3344 | D151: 3354.95 | E151: 3320.05 | F151: 3323.75 | G151: 3339.7 | H151: 3318.25 | I151: 155 | J151: 517513.35 | K151: 2019-11-29 | L151: 54 | M151: INF846K01347
A152: AXISNIFTY | B152: EQ | C152: 1251.5 | D152: 1251.5 | E152: 1234.35 | F152: 1247.75 | G152: 1247.55 | H152: 1244.98 | I152: 36 | J152: 44610.92 | K152: 2019-11-29 | L152: 11 | M152: INF846K01ZL0
A153: AYMSYNTEX | B153: EQ | C153: 32.95 | D153: 33.65 | E153: 32.1 | F153: 33.2 | G153: 33.65 | H153: 31.6 | I153: 6466 | J153: 211896.25 | K153: 2019-11-29 | L153: 114 | M153: INE193B01039
A154: BAGFILMS | B154: BE | C154: 2.05 | D154: 2.1 | E154: 2 | F154: 2.1 | G154: 2.05 | H154: 2 | I154: 112194 | J154: 231798.95 | K154: 2019-11-29 | L154: 135 | M154: INE116D01028
A155: BAJAJ-AUTO | B155: EQ | C155: 3186 | D155: 3196 | E155: 3147.1 | F155: 3176 | G155: 3178.85 | H155: 3196.4 | I155: 203765 | J155: 645708462.8 | K155: 2019-11-29 | L155: 23629 | M155: INE917I01010
A156: BAJAJCON | B156: EQ | C156: 245.1 | D156: 250 | E156: 243.05 | F156: 246.1 | G156: 245 | H156: 245.05 | I156: 136809 | J156: 33752563.15 | K156: 2019-11-29 | L156: 3114 | M156: INE933K01021
A157: BAJAJELEC | B157: EQ | C157: 343.5 | D157: 345.65 | E157: 335 | F157: 339.7 | G157: 339.5 | H157: 342.55 | I157: 89151 | J157: 30278054.2 | K157: 2019-11-29 | L157: 3846 | M157: INE193E01025
A158: BAJAJFINSV | B158: EQ | C158: 9230 | D158: 9235.8 | E158: 9095.3 | F158: 9110.25 | G158: 9118.9 | H158: 9240.1 | I158: 148877 | J158: 1362983958 | K158: 2019-11-29 | L158: 21054 | M158: INE918I01018
A159: BAJAJHIND | B159: EQ | C159: 6.5 | D159: 6.6 | E159: 6.4 | F159: 6.5 | G159: 6.5 | H159: 6.45 | I159: 1379237 | J159: 8991403.55 | K159: 2019-11-29 | L159: 12806 | M159: INE306A01021
A160: BAJAJHLDNG | B160: EQ | C160: 3620.05 | D160: 3625.15 | E160: 3552 | F160: 3564.35 | G160: 3561.35 | H160: 3634.65 | I160: 12025 | J160: 43129105.4 | K160: 2019-11-29 | L160: 3198 | M160: INE118A01012
A161: BAJFINANCE | B161: EQ | C161: 4095 | D161: 4135 | E161: 4062.35 | F161: 4074.2 | G161: 4068 | H161: 4102.05 | I161: 831983 | J161: 3400771191 | K161: 2019-11-29 | L161: 61467 | M161: INE296A01024
A162: BALAJITELE | B162: EQ | C162: 56.5 | D162: 57.9 | E162: 56.35 | F162: 57.2 | G162: 57.4 | H162: 56.8 | I162: 17721 | J162: 1012574.2 | K162: 2019-11-29 | L162: 333 | M162: INE794B01026
A163: BALAMINES | B163: EQ | C163: 373.9 | D163: 373.9 | E163: 362 | F163: 364.65 | G163: 362.15 | H163: 366.8 | I163: 34348 | J163: 12602483.95 | K163: 2019-11-29 | L163: 1569 | M163: INE050E01027
A164: BALAXI | B164: EQ | C164: 81.3 | D164: 81.3 | E164: 77.45 | F164: 78.3 | G164: 81 | H164: 77.45 | I164: 148 | J164: 11909.75 | K164: 2019-11-29 | L164: 7 | M164: INE618N01014
A165: BALKRISHNA | B165: BE | C165: 16.9 | D165: 17.05 | E165: 16.55 | F165: 16.85 | G165: 16.9 | H165: 16.25 | I165: 6921 | J165: 116697.65 | K165: 2019-11-29 | L165: 58 | M165: INE875R01011
A166: BALKRISIND | B166: EQ | C166: 932.7 | D166: 941.95 | E166: 911.25 | F166: 926.25 | G166: 923.8 | H166: 933.05 | I166: 776081 | J166: 714284044.8 | K166: 2019-11-29 | L166: 20328 | M166: INE787D01026
A167: BALLARPUR | B167: EQ | C167: 0.7 | D167: 0.7 | E167: 0.65 | F167: 0.7 | G167: 0.7 | H167: 0.65 | I167: 13019666 | J167: 9102801.7 | K167: 2019-11-29 | L167: 1123 | M167: INE294A01037
A168: BALMLAWRIE | B168: EQ | C168: 195.25 | D168: 196 | E168: 194 | F168: 194.55 | G168: 195 | H168: 194.75 | I168: 88461 | J168: 17225169.8 | K168: 2019-11-29 | L168: 1476 | M168: INE164A01016
A169: BALPHARMA | B169: EQ | C169: 40.9 | D169: 41.3 | E169: 39.8 | F169: 40.25 | G169: 40.9 | H169: 39.7 | I169: 6251 | J169: 254250.3 | K169: 2019-11-29 | L169: 75 | M169: INE083D01012
A170: BALRAMCHIN | B170: EQ | C170: 148.95 | D170: 154 | E170: 147.45 | F170: 153 | G170: 153.2 | H170: 149.1 | I170: 1065064 | J170: 162599029.8 | K170: 2019-11-29 | L170: 13529 | M170: INE119A01028
A171: BANARBEADS | B171: EQ | C171: 30.05 | D171: 31.45 | E171: 30.05 | F171: 31.2 | G171: 30.6 | H171: 30.05 | I171: 612 | J171: 18695.3 | K171: 2019-11-29 | L171: 10 | M171: INE655B01011
A172: BANARISUG | B172: EQ | C172: 1114 | D172: 1156.9 | E172: 1114 | F172: 1137.7 | G172: 1121 | H172: 1132.5 | I172: 268 | J172: 305681.5 | K172: 2019-11-29 | L172: 194 | M172: INE459A01010
A173: BANCOINDIA | B173: EQ | C173: 95 | D173: 96.5 | E173: 94.1 | F173: 95 | G173: 95.25 | H173: 94.1 | I173: 27262 | J173: 2594273.65 | K173: 2019-11-29 | L173: 1071 | M173: INE213C01025
A174: BANDHANBNK | B174: EQ | C174: 584.4 | D174: 597 | E174: 571.1 | F174: 581.2 | G174: 578.2 | H174: 583.1 | I174: 3170352 | J174: 1853263421 | K174: 2019-11-29 | L174: 68822 | M174: INE545U01014
A175: BANG | B175: EQ | C175: 17.55 | D175: 18 | E175: 16.85 | F175: 17.2 | G175: 17.25 | H175: 17.5 | I175: 7680 | J175: 133269.8 | K175: 2019-11-29 | L175: 107 | M175: INE863I01016
A176: BANKBARODA | B176: EQ | C176: 106.95 | D176: 108.25 | E176: 104.5 | F176: 104.9 | G176: 104.7 | H176: 106.4 | I176: 36061330 | J176: 3838560400 | K176: 2019-11-29 | L176: 92980 | M176: INE028A01039
A177: BANKBEES | B177: EQ | C177: 3277.89 | D177: 3277.9 | E177: 3243.94 | F177: 3256.07 | G177: 3253 | H177: 3278.26 | I177: 3849 | J177: 12549938.89 | K177: 2019-11-29 | L177: 1571 | M177: INF732E01078
A178: BANKINDIA | B178: EQ | C178: 77 | D178: 77.95 | E178: 75.5 | F178: 75.9 | G178: 75.85 | H178: 77.4 | I178: 4333117 | J178: 332619475.4 | K178: 2019-11-29 | L178: 15327 | M178: INE084A01016
A179: BANSWRAS | B179: EQ | C179: 88.65 | D179: 88.9 | E179: 87.75 | F179: 88.05 | G179: 88 | H179: 89.75 | I179: 7509 | J179: 662884.9 | K179: 2019-11-29 | L179: 60 | M179: INE629D01012
A180: BARTRONICS | B180: BE | C180: 1.8 | D180: 1.8 | E180: 1.7 | F180: 1.8 | G180: 1.8 | H180: 1.75 | I180: 2444 | J180: 4351.7 | K180: 2019-11-29 | L180: 15 | M180: INE855F01034
A181: BASF | B181: EQ | C181: 992.9 | D181: 1012 | E181: 982.85 | F181: 1000.35 | G181: 1004 | H181: 988 | I181: 18801 | J181: 18746031.55 | K181: 2019-11-29 | L181: 2092 | M181: INE373A01013
A182: BASML | B182: EQ | C182: 120.85 | D182: 121 | E182: 115 | F182: 120.2 | G182: 120.05 | H182: 120.95 | I182: 3898 | J182: 468772 | K182: 2019-11-29 | L182: 198 | M182: INE186H01014
A183: BATAINDIA | B183: EQ | C183: 1638 | D183: 1645.15 | E183: 1622.05 | F183: 1629.05 | G183: 1628.4 | H183: 1634.1 | I183: 310263 | J183: 506516525.8 | K183: 2019-11-29 | L183: 13894 | M183: INE176A01028
A184: BAYERCROP | B184: EQ | C184: 3595 | D184: 3740 | E184: 3592.8 | F184: 3716.35 | G184: 3730 | H184: 3601.05 | I184: 5841 | J184: 21515552.35 | K184: 2019-11-29 | L184: 2153 | M184: INE462A01022
A185: BBL | B185: EQ | C185: 841.45 | D185: 841.45 | E185: 828 | F185: 830.8 | G185: 828.05 | H185: 841.45 | I185: 2065 | J185: 1721626 | K185: 2019-11-29 | L185: 342 | M185: INE464A01028
A186: BBTC | B186: EQ | C186: 1102.9 | D186: 1126.45 | E186: 1091.7 | F186: 1106.4 | G186: 1106 | H186: 1100.55 | I186: 160907 | J186: 178661704.8 | K186: 2019-11-29 | L186: 7760 | M186: INE050A01025
A187: BCG | B187: EQ | C187: 4.4 | D187: 4.4 | E187: 4.2 | F187: 4.4 | G187: 4.4 | H187: 4.2 | I187: 639698 | J187: 2814400.4 | K187: 2019-11-29 | L187: 226 | M187: INE425B01027
A188: BCP | B188: EQ | C188: 9.75 | D188: 9.75 | E188: 9.45 | F188: 9.75 | G188: 9.75 | H188: 9.6 | I188: 43893 | J188: 420994.3 | K188: 2019-11-29 | L188: 55 | M188: INE905P01028
A189: BDL | B189: EQ | C189: 349.95 | D189: 349.95 | E189: 329 | F189: 333.35 | G189: 332.35 | H189: 337.75 | I189: 98894 | J189: 33746932.5 | K189: 2019-11-29 | L189: 4414 | M189: INE171Z01018
A190: BEARDSELL | B190: EQ | C190: 9.6 | D190: 10 | E190: 8.55 | F190: 9.35 | G190: 9.35 | H190: 9.75 | I190: 35969 | J190: 338183.35 | K190: 2019-11-29 | L190: 131 | M190: INE520H01022
A191: BEDMUTHA | B191: EQ | C191: 17.8 | D191: 20 | E191: 17.8 | F191: 18.2 | G191: 18.05 | H191: 18.35 | I191: 29445 | J191: 548280.55 | K191: 2019-11-29 | L191: 162 | M191: INE844K01012
A192: BEL | B192: EQ | C192: 104.55 | D192: 105.4 | E192: 102.65 | F192: 103.1 | G192: 102.8 | H192: 104.3 | I192: 4887239 | J192: 507144982.1 | K192: 2019-11-29 | L192: 28034 | M192: INE263A01024
A193: BEML | B193: EQ | C193: 1011.5 | D193: 1027 | E193: 991 | F193: 997.8 | G193: 993.9 | H193: 1000.85 | I193: 720074 | J193: 726376240 | K193: 2019-11-29 | L193: 25778 | M193: INE258A01016
A194: BEPL | B194: EQ | C194: 47.1 | D194: 48.4 | E194: 47 | F194: 47.3 | G194: 47.05 | H194: 47.4 | I194: 283098 | J194: 13433960.85 | K194: 2019-11-29 | L194: 1444 | M194: INE922A01025
A195: BERGEPAINT | B195: EQ | C195: 493.6 | D195: 499.75 | E195: 486 | F195: 496.55 | G195: 494.7 | H195: 495.6 | I195: 1484202 | J195: 731192291.4 | K195: 2019-11-29 | L195: 21006 | M195: INE463A01038
A196: BFINVEST | B196: EQ | C196: 328.65 | D196: 334.95 | E196: 323.1 | F196: 325.5 | G196: 325.05 | H196: 328.7 | I196: 64220 | J196: 21083336.05 | K196: 2019-11-29 | L196: 1770 | M196: INE878K01010
A197: BFUTILITIE | B197: EQ | C197: 270 | D197: 273 | E197: 265 | F197: 266.2 | G197: 267.15 | H197: 269.45 | I197: 139221 | J197: 37413447.4 | K197: 2019-11-29 | L197: 4609 | M197: INE243D01012
A198: BGLOBAL | B198: BE | C198: 1.95 | D198: 1.95 | E198: 1.9 | F198: 1.95 | G198: 1.95 | H198: 1.9 | I198: 2150 | J198: 4167.35 | K198: 2019-11-29 | L198: 15 | M198: INE224M01013
A199: BGRENERGY | B199: EQ | C199: 31.05 | D199: 32.45 | E199: 29.6 | F199: 30.75 | G199: 30.55 | H199: 31.25 | I199: 235722 | J199: 7277258.05 | K199: 2019-11-29 | L199: 2225 | M199: INE661I01014
A200: BHAGERIA | B200: EQ | C200: 96.85 | D200: 99 | E200: 96.8 | F200: 97.2 | G200: 97 | H200: 97.3 | I200: 6892 | J200: 673508.3 | K200: 2019-11-29 | L200: 187 | M200: INE354C01027
... 1486 more rows

Sheet Sheet1 (hidden)

Sheet Sheet3 (hidden)

Sheet Sheet4 (hidden)

Sheet Sheet5 (hidden)
